Department Family,Entity,Payment Date,Expense Type,Expense Area,Supplier,Transaction Number,Amount,Description
DFE,Skills Funding Agency,15/12/2016,Bank Charges,Strategic Finance - Financial Control Accounting Services,ROYAL BANK OF SCOTLAND,BANKCHARGES_331,51.2,Bank Charge
DFE,Skills Funding Agency,30/12/2016,Bank Charges,Strategic Finance - Financial Control Accounting Services,ROYAL BANK OF SCOTLAND,BANKCHARGES_332,133.33,Bank Charge
DFE,Skills Funding Agency,30/12/2016,Bank Charges,Strategic Finance - Financial Control Accounting Services,RBS European Social Fund Account,BANKCHARGES_333,25,Bank Charge
DFE,Skills Funding Agency,19/12/2016,Stationery General,Various,BANNER BUSINESS SUPPLIES LTD,DD_381,927.99,Payment Card
DFE,Skills Funding Agency,19/12/2016,Self-Drive Car Hire,Various,ENTERPRISE RENT A CAR UK LTD,DD_381,2037.65,Payment Card
DFE,Skills Funding Agency,19/12/2016,"Travel, Subsistence & Accommodation",Various,REDFERN,DD_381,105690.06,Payment Card
DFE,Skills Funding Agency,19/12/2016,Conferences & Events,Various,CALDER CONFERENCES EVENT MANAGEMENT LTD,DD_381,327.17,Payment Card
DFE,Skills Funding Agency,19/12/2016,Government Procurement Card,Various,ROYAL BANK OF SCOTLAND,DD_382,28073.29,Payment Card
DFE,Skills Funding Agency,08/12/2016,Salary Advances,None,Agency Staff Member,PAYCHAPSAUTO_571,15662.92,Payroll
DFE,Skills Funding Agency,16/12/2016,Flexible Benefits Administration,HR - Human Resources,EDENRED,PAYCHAPSAUTO_572,30.28,Payroll
DFE,Skills Funding Agency,16/12/2016,Flexible Benefits Provider Payover,HR - Human Resources,EDENRED,PAYCHAPSAUTO_572,14014.71,Payroll
DFE,Skills Funding Agency,23/12/2016,Principal Civil Service Pension Scheme,Various - Staff Payroll,CIVIL SUPERANNUATION VOTE,PAYCHAPSAUTO_574,589144.22,Payroll
DFE,Skills Funding Agency,23/12/2016,Salary Advances,None,Agency Staff Member,PAYCHAPSAUTO_573,980,Payroll
DFE,Skills Funding Agency,19/12/2016,Provision Utilised - Early Retirement,Strategic Finance - Financial Control Corporate Controls,CAPITA HARTSHEAD,PREMRETIRE_356,87566.8,Payroll
DFE,Skills Funding Agency,19/12/2016,Provision Utilised - Early Retirement,Strategic Finance - Financial Control Corporate Controls,CAPITA HARTSHEAD,PREMRETIRE_357,3700.34,Payroll
DFE,Skills Funding Agency,19/12/2016,Provision Utilised - Early Retirement,Strategic Finance - Financial Control Corporate Controls,CAPITA HARTSHEAD,PREMRETIRE_358,57812.1,Payroll
DFE,Skills Funding Agency,19/12/2016,Provision Utilised - Early Retirement,Strategic Finance - Financial Control Corporate Controls,CAPITA HARTSHEAD,PREMRETIRE_359,172111.85,Payroll
DFE,Skills Funding Agency,22/12/2016,Salaries Control,Various - Staff Payroll,Staff Members,WC_478,1515241.33,Payroll
DFE,Skills Funding Agency,29/11/2016,Young People's Helpline,Main Funding,PIXELTRIX LTD,SPINVB_33404,300,Purchase Invoice
DFE,Skills Funding Agency,29/11/2016,Young People's Helpline,Main Funding,REDHOUSE LANE COMMUNICATIONS LTD,SPINVB_33406,2520,Purchase Invoice
DFE,Skills Funding Agency,29/11/2016,Young People's Helpline,Main Funding,REDHOUSE LANE COMMUNICATIONS LTD,SPINVB_33407,3588,Purchase Invoice
DFE,Skills Funding Agency,29/11/2016,Young People's Helpline,Main Funding,REDHOUSE LANE COMMUNICATIONS LTD,SPINVB_33408,1824,Purchase Invoice
DFE,Skills Funding Agency,29/11/2016,Young People's Helpline,Main Funding,REDHOUSE LANE COMMUNICATIONS LTD,SPINVB_33409,480,Purchase Invoice
DFE,Skills Funding Agency,29/11/2016,Young People's Helpline,Main Funding,WHITESPACE EXHIBITIONS,SPINVB_33290,27272.28,Purchase Invoice
DFE,Skills Funding Agency,29/11/2016,National Careers Service Development,Main Funding,MARKED IMPROVEMENT E-LEARNING LTD,SPINVB_33442,2700,Purchase Invoice
DFE,Skills Funding Agency,29/11/2016,Next Step Helpline,Main Funding,SERCO LTD,SPINVB_33343,177006.88,Purchase Invoice
DFE,Skills Funding Agency,29/11/2016,"National Apprenticeship Service - Business, Innovation & Skills - Non-Participation",Main Funding,LITTLE FISH EVENT MANAGEMENT,SPINVB_33405,690,Purchase Invoice
DFE,Skills Funding Agency,29/11/2016,Business Support Service,Main Funding,SERCO LTD,SPINVB_33342,218466.6,Purchase Invoice
DFE,Skills Funding Agency,29/11/2016,Temporary Staff,Apprenticeships & Delivery Services - Executive Office,MICHAEL PAGE INTERNATIONAL RECRUITMENT LTD,SPINVB_33425,7349.22,Purchase Invoice
DFE,Skills Funding Agency,29/11/2016,Temporary Staff,Apprenticeships & Delivery Services - Executive Office,MICHAEL PAGE INTERNATIONAL RECRUITMENT LTD,SPINVB_33426,6369.32,Purchase Invoice
DFE,Skills Funding Agency,29/11/2016,Temporary Staff,Apprenticeships & Delivery Services - Executive Office,MICHAEL PAGE INTERNATIONAL RECRUITMENT LTD,SPINVB_33427,151.92,Purchase Invoice
DFE,Skills Funding Agency,29/11/2016,Temporary Staff,Operations Finance - Executive Office,SF RECRUITMENT LTD,SPINVB_33401,1463.04,Purchase Invoice
DFE,Skills Funding Agency,29/11/2016,Temporary Staff,Operations ICT - Information & Communication Technology - Technical,LA INTERNATIONAL,SPINVB_33414,2556.9,Purchase Invoice
DFE,Skills Funding Agency,29/11/2016,Temporary Staff,Data Science,SMART SOURCING PLC,SPINVB_32865,9169.99,Purchase Invoice
DFE,Skills Funding Agency,29/11/2016,Temporary Staff,Data Science,SMART SOURCING PLC,SPINVB_33318,10077.36,Purchase Invoice
DFE,Skills Funding Agency,29/11/2016,Training Venue & Refreshments,Funding & Programmes - Executive Office,PROFESSIONAL CONFERENCES LTD,SPINVB_33410,142.8,Purchase Invoice
DFE,Skills Funding Agency,29/11/2016,Landline Telephone Service,Operations ICT - Technical Design Authority,LEVEL 3 COMMUNICATIONS UK LIMITED,SPINVB_33416,40955.57,Purchase Invoice
DFE,Skills Funding Agency,29/11/2016,Landline Telephone Service,Operations ICT - Technical Design Authority,UNIFY ENTERPRISE COMMUNICATIONS LTD,SPINVB_33415,20707.74,Purchase Invoice
DFE,Skills Funding Agency,29/11/2016,Professional Services,Funding & Programmes - Executive Office,CAPGEMINI UK PLC,SPINVB_33132,345,Purchase Invoice
DFE,Skills Funding Agency,29/11/2016,Professional Services,Funding & Programmes - Executive Office,CAPGEMINI UK PLC,SPINVB_33133,22545.6,Purchase Invoice
DFE,Skills Funding Agency,29/11/2016,Professional Services,HR - Human Resources,HEALTH MANAGEMENT LTD,SPINVB_33403,1043.42,Purchase Invoice
DFE,Skills Funding Agency,29/11/2016,Managed IT Service,Apprenticeships & Delivery Services - Executive Office,LEIDOS INNOVATIONS UK LTD,SPINVB_33384,13562.1,Purchase Invoice
DFE,Skills Funding Agency,29/11/2016,Managed IT Service,Apprenticeships & Delivery Services - Executive Office,LEIDOS INNOVATIONS UK LTD,SPINVB_33392,38105.2,Purchase Invoice
DFE,Skills Funding Agency,29/11/2016,Managed IT Service,Funding & Programmes - Executive Office,LEIDOS INNOVATIONS UK LTD,SPINVB_33391,14250,Purchase Invoice
DFE,Skills Funding Agency,29/11/2016,Managed IT Service,Funding & Programmes - Executive Office,NCC GROUP SECURITY SERVICES LTD,SPINVB_32388,2472,Purchase Invoice
DFE,Skills Funding Agency,29/11/2016,Managed IT Service,Funding & Programmes - Executive Office,NCC GROUP SECURITY SERVICES LTD,SPINVB_32466,11021.02,Purchase Invoice
DFE,Skills Funding Agency,29/11/2016,Managed IT Service,Data Science,CENTRE4 RESOURCES LIMITED,SPINVB_32908,2160,Purchase Invoice
DFE,Skills Funding Agency,29/11/2016,Managed IT Service,Data Science,CENTRE4 RESOURCES LIMITED,SPINVB_33222,18900,Purchase Invoice
DFE,Skills Funding Agency,29/11/2016,Managed IT Service,Data Science,CENTRE4 RESOURCES LIMITED,SPINVB_33224,11340,Purchase Invoice
DFE,Skills Funding Agency,29/11/2016,Managed IT Service,Data Science,CENTRE4 RESOURCES LIMITED,SPINVB_33353,11340,Purchase Invoice
DFE,Skills Funding Agency,29/11/2016,Managed IT Service,Data Science,SOGETI UK LIMITED,SPINVB_33346,7560,Purchase Invoice
DFE,Skills Funding Agency,29/11/2016,Managed IT Service,Data Science,SOGETI UK LIMITED,SPINVB_33364,7200,Purchase Invoice
DFE,Skills Funding Agency,29/11/2016,Managed IT Service,Data Science,TRUEPENNY PEOPLE UK LTD,SPINVB_33296,5400,Purchase Invoice
DFE,Skills Funding Agency,29/11/2016,Managed IT Service,Data Science,TRUEPENNY PEOPLE UK LTD,SPINVB_33297,12000,Purchase Invoice
DFE,Skills Funding Agency,29/11/2016,Managed IT Service,Data Science,TRUEPENNY PEOPLE UK LTD,SPINVB_33298,35393.1,Purchase Invoice
DFE,Skills Funding Agency,29/11/2016,Licences,Operations ICT - Service Integration & Management,MESSAGELABS LTD,SPINVB_33382,24840,Purchase Invoice
DFE,Skills Funding Agency,29/11/2016,Licences,Data Science,BIRST INC.,SPINVB_33366,18709.58,Purchase Invoice
DFE,Skills Funding Agency,29/11/2016,Support Services,Data Science,LEIDOS INNOVATIONS UK LTD,SPINVB_33319,170.66,Purchase Invoice
DFE,Skills Funding Agency,30/11/2016,Young People's Helpline,Main Funding,SKILLS FESTIVAL COMPANY LTD,SPINVB_33458,35000,Purchase Invoice
DFE,Skills Funding Agency,30/11/2016,Young People's Helpline,Main Funding,WHITESPACE EXHIBITIONS,SPINVB_33158,8413.44,Purchase Invoice
DFE,Skills Funding Agency,30/11/2016,Young People's Helpline,Main Funding,WHITESPACE EXHIBITIONS,SPINVB_33281,8334,Purchase Invoice
DFE,Skills Funding Agency,30/11/2016,Young People's Helpline,Main Funding,WHITESPACE EXHIBITIONS,SPINVB_33291,2895.6,Purchase Invoice
DFE,Skills Funding Agency,30/11/2016,19+ Employer Ownership Fund - Non Centralised Contract Management,Main Funding,LOWRI BECK SERVICES LIMITED,NUPS16_7317,129485,Programme Template
DFE,Skills Funding Agency,30/11/2016,"National Apprenticeship Service - Business, Innovation & Skills - Non-Participation",Main Funding,CATERING2LIVERPOOL,SPINVB_33451,356.25,Purchase Invoice
DFE,Skills Funding Agency,30/11/2016,"National Apprenticeship Service - Business, Innovation & Skills - Non-Participation",Main Funding,CENTRE FOR ENTERPRISE LTD,SPINVB_33450,29843.2,Purchase Invoice
DFE,Skills Funding Agency,30/11/2016,Temporary Staff,Apprenticeships & Delivery Services - Executive Office,HAYS SPECIALIST RECRUITMENT LTD,IPINVELECT3_2176,1072.91,Purchase Invoice
DFE,Skills Funding Agency,30/11/2016,Temporary Staff,Apprenticeships & Delivery Services - Executive Office,SF RECRUITMENT LTD,SPINVB_33402,841.86,Purchase Invoice
DFE,Skills Funding Agency,30/11/2016,Temporary Staff,Chief Executive Office - Executive Office,HAYS SPECIALIST RECRUITMENT LTD,IPINVELECT3_2176,2576.7,Purchase Invoice
DFE,Skills Funding Agency,30/11/2016,Temporary Staff,Operations Finance - Executive Office,HAYS SPECIALIST RECRUITMENT LTD,IPINVELECT3_2176,2160,Purchase Invoice
DFE,Skills Funding Agency,30/11/2016,Temporary Staff,Funding & Programmes - Executive Office,HAYS SPECIALIST RECRUITMENT LTD,IPINVELECT3_2176,11064.54,Purchase Invoice
DFE,Skills Funding Agency,30/11/2016,Temporary Staff,Funding & Programmes - Executive Office,LA INTERNATIONAL,SPINVB_33412,4350,Purchase Invoice
DFE,Skills Funding Agency,30/11/2016,Temporary Staff,Funding & Programmes - Executive Office,LA INTERNATIONAL,SPINVB_33413,193.08,Purchase Invoice
DFE,Skills Funding Agency,30/11/2016,Temporary Staff,Operations ICT - Information & Communication Technology - Technical,HAYS SPECIALIST RECRUITMENT LTD,IPINVELECT3_2176,8896.71,Purchase Invoice
DFE,Skills Funding Agency,30/11/2016,Temporary Staff,Operations ICT - Technical Design Authority,SMART SOURCING PLC,SPINVB_33313,14483.7,Purchase Invoice
DFE,Skills Funding Agency,30/11/2016,Temporary Staff,Data Science,HAYS SPECIALIST RECRUITMENT LTD,IPINVELECT3_2176,9150,Purchase Invoice
DFE,Skills Funding Agency,30/11/2016,Temporary Staff,Transformation & Corporate Strategy,HAYS SPECIALIST RECRUITMENT LTD,IPINVELECT3_2176,4180.5,Purchase Invoice
DFE,Skills Funding Agency,30/11/2016,Temporary Staff,Transaction Unit,GOODMAN MASSON RECRUITMENT SERVICES LTD,SPINVB_33418,2376,Purchase Invoice
DFE,Skills Funding Agency,30/11/2016,Course Fees,Operations Finance - Executive Office,Agency Staff Member,SCLAIM_47065,83,Staff Expenses Claim
DFE,Skills Funding Agency,30/11/2016,Diesel Car Mileage,Apprenticeships & Delivery Services - Executive Office,Agency Staff Member,SCLAIM_47066,117.9,Staff Expenses Claim
DFE,Skills Funding Agency,30/11/2016,Diesel Car Mileage,Apprenticeships & Delivery Services - Executive Office,Agency Staff Member,SCLAIM_47078,45,Staff Expenses Claim
DFE,Skills Funding Agency,30/11/2016,Diesel Car Mileage,Apprenticeships & Delivery Services - Executive Office,Agency Staff Member,SCLAIM_47061,648.9,Staff Expenses Claim
DFE,Skills Funding Agency,30/11/2016,Diesel Car Mileage,Apprenticeships & Delivery Services - Executive Office,Agency Staff Member,SCLAIM_47077,176.4,Staff Expenses Claim
DFE,Skills Funding Agency,30/11/2016,Diesel Car Mileage,Apprenticeships & Delivery Services - Executive Office,Agency Staff Member,SCLAIM_47054,263.25,Staff Expenses Claim
DFE,Skills Funding Agency,30/11/2016,Diesel Car Mileage,Apprenticeships & Delivery Services - Executive Office,Agency Staff Member,SCLAIM_47050,537.3,Staff Expenses Claim
DFE,Skills Funding Agency,30/11/2016,Diesel Car Mileage,Employer & Provider Services North West,Agency Staff Member,SCLAIM_47071,99.9,Staff Expenses Claim
DFE,Skills Funding Agency,30/11/2016,Diesel Car Mileage,Apprenticeships & Delivery Services - Apprenticeships & Employer Policy Implementation,Agency Staff Member,SCLAIM_47079,67.5,Staff Expenses Claim
DFE,Skills Funding Agency,30/11/2016,Diesel Car Mileage,National Careers & Learner Services,Agency Staff Member,SCLAIM_47039,81,Staff Expenses Claim
DFE,Skills Funding Agency,30/11/2016,Diesel Car Mileage,National Careers & Learner Services,Agency Staff Member,SCLAIM_47082,236.7,Staff Expenses Claim
DFE,Skills Funding Agency,30/11/2016,Diesel Car Mileage,Operations Finance - Executive Office,Agency Staff Member,SCLAIM_47074,376.2,Staff Expenses Claim
DFE,Skills Funding Agency,30/11/2016,Diesel Car Mileage,Operations Finance - Executive Office,Agency Staff Member,SCLAIM_47075,31.5,Staff Expenses Claim
DFE,Skills Funding Agency,30/11/2016,Diesel Car Mileage,Operations Finance - Executive Office,Agency Staff Member,SCLAIM_47081,18,Staff Expenses Claim
DFE,Skills Funding Agency,30/11/2016,Diesel Car Mileage,Finance Division - Provider Finance,Agency Staff Member,SCLAIM_47059,12.6,Staff Expenses Claim
DFE,Skills Funding Agency,30/11/2016,Diesel Car Mileage,Central Delivery Service - Leeds,Agency Staff Member,SCLAIM_47036,569.7,Staff Expenses Claim
DFE,Skills Funding Agency,30/11/2016,Diesel Car Mileage,Central Delivery Service - European Social Fund - Audit Compliance,Agency Staff Member,SCLAIM_47042,397.8,Staff Expenses Claim
DFE,Skills Funding Agency,30/11/2016,Diesel Car Mileage,Central Delivery Service - European Social Fund - Audit Compliance,Agency Staff Member,SCLAIM_47043,90,Staff Expenses Claim
DFE,Skills Funding Agency,30/11/2016,Diesel Car Mileage,Central Delivery Service - European Social Fund - Audit Compliance,Agency Staff Member,SCLAIM_47083,61.2,Staff Expenses Claim
DFE,Skills Funding Agency,30/11/2016,Diesel Car Mileage,Central Delivery Service - European Social Fund - Audit Compliance,Agency Staff Member,SCLAIM_47044,43.2,Staff Expenses Claim
DFE,Skills Funding Agency,30/11/2016,Diesel Car Mileage,Funding & Programmes - Provider Management & Intervention South,Agency Staff Member,SCLAIM_47038,73.8,Staff Expenses Claim
DFE,Skills Funding Agency,30/11/2016,Diesel Car Mileage,Intervention,Agency Staff Member,SCLAIM_47037,87.3,Staff Expenses Claim
DFE,Skills Funding Agency,30/11/2016,Petrol Car Mileage,Chief Executive Office - Communications,Agency Staff Member,SCLAIM_47033,19.8,Staff Expenses Claim
DFE,Skills Funding Agency,30/11/2016,Petrol Car Mileage,Apprenticeships & Delivery Services - Executive Office,Agency Staff Member,SCLAIM_47048,48.6,Staff Expenses Claim
DFE,Skills Funding Agency,30/11/2016,Petrol Car Mileage,Employer & Provider Services London,Agency Staff Member,SCLAIM_47051,129.6,Staff Expenses Claim
DFE,Skills Funding Agency,30/11/2016,Petrol Car Mileage,Apprenticeships & Delivery Services - Apprenticeships & Employer Policy Implementation,Agency Staff Member,SCLAIM_47062,36.9,Staff Expenses Claim
DFE,Skills Funding Agency,30/11/2016,Petrol Car Mileage,National Careers & Learner Services,Agency Staff Member,SCLAIM_47072,112.95,Staff Expenses Claim
DFE,Skills Funding Agency,30/11/2016,Petrol Car Mileage,Operations Finance - Executive Office,Agency Staff Member,SCLAIM_47034,121.5,Staff Expenses Claim
DFE,Skills Funding Agency,30/11/2016,Petrol Car Mileage,Operations Finance - Executive Office,Agency Staff Member,SCLAIM_47035,286.2,Staff Expenses Claim
DFE,Skills Funding Agency,30/11/2016,Petrol Car Mileage,Operations Finance - Executive Office,Agency Staff Member,SCLAIM_47040,75.6,Staff Expenses Claim
DFE,Skills Funding Agency,30/11/2016,Petrol Car Mileage,Operations Finance - Executive Office,Agency Staff Member,SCLAIM_47080,99,Staff Expenses Claim
DFE,Skills Funding Agency,30/11/2016,Petrol Car Mileage,Finance Division - Provider Financial Assurance Audit,Agency Staff Member,SCLAIM_47067,1.8,Staff Expenses Claim
DFE,Skills Funding Agency,30/11/2016,Petrol Car Mileage,Central Delivery Service - European Social Fund - Audit Compliance,Agency Staff Member,SCLAIM_47070,149.4,Staff Expenses Claim
DFE,Skills Funding Agency,30/11/2016,Petrol Car Mileage,Central Delivery Service - European Social Fund - Audit Compliance,Agency Staff Member,SCLAIM_47056,477.45,Staff Expenses Claim
DFE,Skills Funding Agency,30/11/2016,Petrol Car Mileage,Funding & Programmes - Executive Office,Agency Staff Member,SCLAIM_47076,252,Staff Expenses Claim
DFE,Skills Funding Agency,30/11/2016,Petrol Car Mileage,Intervention,Agency Staff Member,SCLAIM_47068,1532.25,Staff Expenses Claim
DFE,Skills Funding Agency,30/11/2016,Other Fuel Car Mileage,Employer & Provider Services North East & Yorkshire,Agency Staff Member,SCLAIM_47052,429.3,Staff Expenses Claim
DFE,Skills Funding Agency,30/11/2016,Other Fuel Car Mileage,Intervention,Agency Staff Member,SCLAIM_47068,83,Staff Expenses Claim
DFE,Skills Funding Agency,30/11/2016,Diesel Car Mileage Passenger Supplement,Apprenticeships & Delivery Services - Executive Office,Agency Staff Member,SCLAIM_47050,5.7,Staff Expenses Claim
DFE,Skills Funding Agency,30/11/2016,Diesel Car Mileage Passenger Supplement,Operations Finance - Executive Office,Agency Staff Member,SCLAIM_47074,14.2,Staff Expenses Claim
DFE,Skills Funding Agency,30/11/2016,Subsistence,Apprenticeships & Delivery Services - Executive Office,Agency Staff Member,SCLAIM_47066,61.97,Staff Expenses Claim
DFE,Skills Funding Agency,30/11/2016,Subsistence,Apprenticeships & Delivery Services - Executive Office,Agency Staff Member,SCLAIM_47078,31.1,Staff Expenses Claim
DFE,Skills Funding Agency,30/11/2016,Subsistence,Apprenticeships & Delivery Services - Executive Office,Agency Staff Member,SCLAIM_47054,22.75,Staff Expenses Claim
DFE,Skills Funding Agency,30/11/2016,Subsistence,Apprenticeships & Delivery Services - Executive Office,Agency Staff Member,SCLAIM_47060,47.1,Staff Expenses Claim
DFE,Skills Funding Agency,30/11/2016,Subsistence,Apprenticeships & Delivery Services - Executive Office,Agency Staff Member,SCLAIM_47048,10.35,Staff Expenses Claim
DFE,Skills Funding Agency,30/11/2016,Subsistence,Employer & Provider Services London,Agency Staff Member,SCLAIM_47051,22.6,Staff Expenses Claim
DFE,Skills Funding Agency,30/11/2016,Subsistence,Employer & Provider Services North East & Yorkshire,Agency Staff Member,SCLAIM_47058,10.5,Staff Expenses Claim
DFE,Skills Funding Agency,30/11/2016,Subsistence,Employer & Provider Services North West,Agency Staff Member,SCLAIM_47071,74.92,Staff Expenses Claim
DFE,Skills Funding Agency,30/11/2016,Subsistence,Employer & Provider Services North West,Agency Staff Member,SCLAIM_47046,45.8,Staff Expenses Claim
DFE,Skills Funding Agency,30/11/2016,Subsistence,Employer & Provider Services North West,Agency Staff Member,SCLAIM_47047,72.5,Staff Expenses Claim
DFE,Skills Funding Agency,30/11/2016,Subsistence,Apprenticeships & Delivery Services - Apprenticeships & Employer Policy Implementation,Agency Staff Member,SCLAIM_47079,31.51,Staff Expenses Claim
DFE,Skills Funding Agency,30/11/2016,Subsistence,National Careers & Learner Services,Agency Staff Member,SCLAIM_47072,98.64,Staff Expenses Claim
DFE,Skills Funding Agency,30/11/2016,Subsistence,National Careers & Learner Services,Agency Staff Member,SCLAIM_47039,8.8,Staff Expenses Claim
DFE,Skills Funding Agency,30/11/2016,Subsistence,National Careers & Learner Services,Agency Staff Member,SCLAIM_47049,50.75,Staff Expenses Claim
DFE,Skills Funding Agency,30/11/2016,Subsistence,Operations Finance - Executive Office,Agency Staff Member,SCLAIM_47034,9.1,Staff Expenses Claim
DFE,Skills Funding Agency,30/11/2016,Subsistence,Operations Finance - Executive Office,Agency Staff Member,SCLAIM_47074,16.87,Staff Expenses Claim
DFE,Skills Funding Agency,30/11/2016,Subsistence,Operations Finance - Executive Office,Agency Staff Member,SCLAIM_47064,15.1,Staff Expenses Claim
DFE,Skills Funding Agency,30/11/2016,Subsistence,Operations Finance - Executive Office,Agency Staff Member,SCLAIM_47073,57.96,Staff Expenses Claim
DFE,Skills Funding Agency,30/11/2016,Subsistence,Operations Finance - Executive Office,Agency Staff Member,SCLAIM_47055,21.8,Staff Expenses Claim
DFE,Skills Funding Agency,30/11/2016,Subsistence,Operations Finance - Executive Office,Agency Staff Member,SCLAIM_47080,13.1,Staff Expenses Claim
DFE,Skills Funding Agency,30/11/2016,Subsistence,Operations Finance - Executive Office,Agency Staff Member,SCLAIM_47075,10.88,Staff Expenses Claim
DFE,Skills Funding Agency,30/11/2016,Subsistence,Operations Finance - Executive Office,Agency Staff Member,SCLAIM_47081,13.22,Staff Expenses Claim
DFE,Skills Funding Agency,30/11/2016,Subsistence,Finance Division - Provider Finance,Agency Staff Member,SCLAIM_47059,5.95,Staff Expenses Claim
DFE,Skills Funding Agency,30/11/2016,Subsistence,Finance Division - Provider Financial Assurance Audit,Agency Staff Member,SCLAIM_47067,4.5,Staff Expenses Claim
DFE,Skills Funding Agency,30/11/2016,Subsistence,Central Delivery Service - European Social Fund - Audit Compliance,Agency Staff Member,SCLAIM_47043,61.55,Staff Expenses Claim
DFE,Skills Funding Agency,30/11/2016,Subsistence,Central Delivery Service - European Social Fund - Audit Compliance,Agency Staff Member,SCLAIM_47070,14.32,Staff Expenses Claim
DFE,Skills Funding Agency,30/11/2016,Subsistence,Central Delivery Service - European Social Fund - Audit Compliance,Agency Staff Member,SCLAIM_47083,4.18,Staff Expenses Claim
DFE,Skills Funding Agency,30/11/2016,Subsistence,Central Delivery Service - European Social Fund - Audit Compliance,Agency Staff Member,SCLAIM_47056,17.04,Staff Expenses Claim
DFE,Skills Funding Agency,30/11/2016,Subsistence,Central Delivery Service - European Social Fund - Audit Compliance,Agency Staff Member,SCLAIM_47044,43.82,Staff Expenses Claim
DFE,Skills Funding Agency,30/11/2016,Subsistence,Central Delivery Service - European Social Fund - Audit Compliance,Agency Staff Member,SCLAIM_47041,8.79,Staff Expenses Claim
DFE,Skills Funding Agency,30/11/2016,Subsistence,Funding & Programmes - Localism Policy Implementation,Agency Staff Member,SCLAIM_47063,12.05,Staff Expenses Claim
DFE,Skills Funding Agency,30/11/2016,Subsistence,Intervention,Agency Staff Member,SCLAIM_47053,12.42,Staff Expenses Claim
DFE,Skills Funding Agency,30/11/2016,Rail Warrants & Tickets,Apprenticeships & Delivery Services - Executive Office,Agency Staff Member,SCLAIM_47048,72.5,Staff Expenses Claim
DFE,Skills Funding Agency,30/11/2016,Rail Warrants & Tickets,Employer & Provider Services London,Agency Staff Member,SCLAIM_47051,6.7,Staff Expenses Claim
DFE,Skills Funding Agency,30/11/2016,Rail Warrants & Tickets,Employer & Provider Services North East & Yorkshire,Agency Staff Member,SCLAIM_47058,4.9,Staff Expenses Claim
DFE,Skills Funding Agency,30/11/2016,Rail Warrants & Tickets,Employer & Provider Services North West,Agency Staff Member,SCLAIM_47047,12.3,Staff Expenses Claim
DFE,Skills Funding Agency,30/11/2016,Rail Warrants & Tickets,National Careers & Learner Services,Agency Staff Member,SCLAIM_47072,26.5,Staff Expenses Claim
DFE,Skills Funding Agency,30/11/2016,Rail Warrants & Tickets,National Careers & Learner Services,Agency Staff Member,SCLAIM_47049,86.4,Staff Expenses Claim
DFE,Skills Funding Agency,30/11/2016,Rail Warrants & Tickets,Operations Finance - Executive Office,Agency Staff Member,SCLAIM_47034,4.8,Staff Expenses Claim
DFE,Skills Funding Agency,30/11/2016,Rail Warrants & Tickets,Central Delivery Service - Leeds,Agency Staff Member,SCLAIM_47036,12.1,Staff Expenses Claim
DFE,Skills Funding Agency,30/11/2016,Rail Warrants & Tickets,Central Delivery Service - European Social Fund - Audit Compliance,Agency Staff Member,SCLAIM_47044,52.2,Staff Expenses Claim
DFE,Skills Funding Agency,30/11/2016,Self-Drive Car Hire,Employer & Provider Services North West,Agency Staff Member,SCLAIM_47071,48.61,Staff Expenses Claim
DFE,Skills Funding Agency,30/11/2016,Self-Drive Car Hire,Operations Finance - Executive Office,Agency Staff Member,SCLAIM_47034,42.01,Staff Expenses Claim
DFE,Skills Funding Agency,30/11/2016,Self-Drive Car Hire,Operations Finance - Executive Office,Agency Staff Member,SCLAIM_47035,36.58,Staff Expenses Claim
DFE,Skills Funding Agency,30/11/2016,Self-Drive Car Hire,Operations Finance - Executive Office,Agency Staff Member,SCLAIM_47055,40.5,Staff Expenses Claim
DFE,Skills Funding Agency,30/11/2016,Self-Drive Car Hire,Finance Division - Provider Finance,Agency Staff Member,SCLAIM_47059,15.16,Staff Expenses Claim
DFE,Skills Funding Agency,30/11/2016,Self-Drive Car Hire,Central Delivery Service - European Social Fund - Audit Compliance,Agency Staff Member,SCLAIM_47044,73.48,Staff Expenses Claim
DFE,Skills Funding Agency,30/11/2016,Self-Drive Car Hire,Intervention,Agency Staff Member,SCLAIM_47068,402.59,Staff Expenses Claim
DFE,Skills Funding Agency,30/11/2016,Self-Drive Car Hire,Intervention,Agency Staff Member,SCLAIM_47038,55.88,Staff Expenses Claim
DFE,Skills Funding Agency,30/11/2016,Self-Drive Car Hire,Intervention,Agency Staff Member,SCLAIM_47053,65.1,Staff Expenses Claim
DFE,Skills Funding Agency,30/11/2016,Taxis,Apprenticeships & Delivery Services - Executive Office,Agency Staff Member,SCLAIM_47048,60,Staff Expenses Claim
DFE,Skills Funding Agency,30/11/2016,Taxis,Large Companies Unit,Agency Staff Member,SCLAIM_47057,20,Staff Expenses Claim
DFE,Skills Funding Agency,30/11/2016,Taxis,Employer & Provider Services North West,Agency Staff Member,SCLAIM_47071,10.35,Staff Expenses Claim
DFE,Skills Funding Agency,30/11/2016,Taxis,Employer & Provider Services North West,Agency Staff Member,SCLAIM_47045,9,Staff Expenses Claim
DFE,Skills Funding Agency,30/11/2016,Taxis,Operations Finance - Executive Office,Agency Staff Member,SCLAIM_47073,16.6,Staff Expenses Claim
DFE,Skills Funding Agency,30/11/2016,Taxis,Funding & Programmes - Localism Policy Implementation,Agency Staff Member,SCLAIM_47063,19.6,Staff Expenses Claim
DFE,Skills Funding Agency,30/11/2016,Other Travel,Apprenticeships & Delivery Services - Executive Office,Agency Staff Member,SCLAIM_47066,11,Staff Expenses Claim
DFE,Skills Funding Agency,30/11/2016,Other Travel,Apprenticeships & Delivery Services - Executive Office,Agency Staff Member,SCLAIM_47078,12.5,Staff Expenses Claim
DFE,Skills Funding Agency,30/11/2016,Other Travel,Apprenticeships & Delivery Services - Executive Office,Agency Staff Member,SCLAIM_47054,104.4,Staff Expenses Claim
DFE,Skills Funding Agency,30/11/2016,Other Travel,Employer & Provider Services London,Agency Staff Member,SCLAIM_47051,25,Staff Expenses Claim
DFE,Skills Funding Agency,30/11/2016,Other Travel,Employer & Provider Services North East & Yorkshire,Agency Staff Member,SCLAIM_47052,16.5,Staff Expenses Claim
DFE,Skills Funding Agency,30/11/2016,Other Travel,Employer & Provider Services North East & Yorkshire,Agency Staff Member,SCLAIM_47058,27.5,Staff Expenses Claim
DFE,Skills Funding Agency,30/11/2016,Other Travel,Employer & Provider Services North West,Agency Staff Member,SCLAIM_47071,135,Staff Expenses Claim
DFE,Skills Funding Agency,30/11/2016,Other Travel,Apprenticeships & Delivery Services - Apprenticeships & Employer Policy Implementation,Agency Staff Member,SCLAIM_47062,43.19,Staff Expenses Claim
DFE,Skills Funding Agency,30/11/2016,Other Travel,National Careers & Learner Services,Agency Staff Member,SCLAIM_47072,36.5,Staff Expenses Claim
DFE,Skills Funding Agency,30/11/2016,Other Travel,National Careers & Learner Services,Agency Staff Member,SCLAIM_47039,45.5,Staff Expenses Claim
DFE,Skills Funding Agency,30/11/2016,Other Travel,National Careers & Learner Services,Agency Staff Member,SCLAIM_47082,6,Staff Expenses Claim
DFE,Skills Funding Agency,30/11/2016,Other Travel,Operations Finance - Executive Office,Agency Staff Member,SCLAIM_47034,29.3,Staff Expenses Claim
DFE,Skills Funding Agency,30/11/2016,Other Travel,Operations Finance - Executive Office,Agency Staff Member,SCLAIM_47035,51,Staff Expenses Claim
DFE,Skills Funding Agency,30/11/2016,Other Travel,Operations Finance - Executive Office,Agency Staff Member,SCLAIM_47074,19,Staff Expenses Claim
DFE,Skills Funding Agency,30/11/2016,Other Travel,Operations Finance - Executive Office,Agency Staff Member,SCLAIM_47073,20,Staff Expenses Claim
DFE,Skills Funding Agency,30/11/2016,Other Travel,Operations Finance - Executive Office,Agency Staff Member,SCLAIM_47040,18,Staff Expenses Claim
DFE,Skills Funding Agency,30/11/2016,Other Travel,Operations Finance - Executive Office,Agency Staff Member,SCLAIM_47080,17,Staff Expenses Claim
DFE,Skills Funding Agency,30/11/2016,Other Travel,Operations Finance - Executive Office,Agency Staff Member,SCLAIM_47081,23.6,Staff Expenses Claim
DFE,Skills Funding Agency,30/11/2016,Other Travel,Finance Division - Provider Finance,Agency Staff Member,SCLAIM_47059,23,Staff Expenses Claim
DFE,Skills Funding Agency,30/11/2016,Other Travel,Finance Division - Provider Financial Assurance Audit,Agency Staff Member,SCLAIM_47067,4.5,Staff Expenses Claim
DFE,Skills Funding Agency,30/11/2016,Other Travel,Central Delivery Service - European Social Fund - Audit Compliance,Agency Staff Member,SCLAIM_47043,10.5,Staff Expenses Claim
DFE,Skills Funding Agency,30/11/2016,Other Travel,Central Delivery Service - European Social Fund - Audit Compliance,Agency Staff Member,SCLAIM_47070,17,Staff Expenses Claim
DFE,Skills Funding Agency,30/11/2016,Other Travel,Central Delivery Service - European Social Fund - Audit Compliance,Agency Staff Member,SCLAIM_47056,26.3,Staff Expenses Claim
DFE,Skills Funding Agency,30/11/2016,Other Travel,Central Delivery Service - European Social Fund - Audit Compliance,Agency Staff Member,SCLAIM_47044,13.2,Staff Expenses Claim
DFE,Skills Funding Agency,30/11/2016,Other Travel,Funding & Programmes - Executive Office,Agency Staff Member,SCLAIM_47076,24,Staff Expenses Claim
DFE,Skills Funding Agency,30/11/2016,Other Travel,Intervention,Agency Staff Member,SCLAIM_47037,10,Staff Expenses Claim
DFE,Skills Funding Agency,30/11/2016,Other Travel,Intervention,Agency Staff Member,SCLAIM_47038,32.2,Staff Expenses Claim
DFE,Skills Funding Agency,30/11/2016,Other Travel,Intervention,Agency Staff Member,SCLAIM_47053,21.99,Staff Expenses Claim
DFE,Skills Funding Agency,30/11/2016,Professional Subscriptions,Operations Finance - Financial Management,Agency Staff Member,SCLAIMPRO_959,124,Staff Expenses Claim
DFE,Skills Funding Agency,30/11/2016,Room Hire,Apprenticeships & Delivery Services - Executive Office,CAPITA TRAVEL AND EVENTS LTD,IPINVELECT3_2175,841.44,Purchase Invoice
DFE,Skills Funding Agency,30/11/2016,Professional Services,Operations ICT - Technical Design Authority,SPECIALIST COMPUTER CENTRES PLC,SPINVB_33444,40755,Purchase Invoice
DFE,Skills Funding Agency,30/11/2016,Professional Services,Operations ICT - Technical Design Authority,SPECIALIST COMPUTER CENTRES PLC,SPINVB_33445,15600,Purchase Invoice
DFE,Skills Funding Agency,30/11/2016,Sundry Items,Operations Finance - Executive Office,Agency Staff Member,SCLAIM_47034,15,Staff Expenses Claim
DFE,Skills Funding Agency,30/11/2016,Sundry Items,Operations Finance - Executive Office,Agency Staff Member,SCLAIM_47035,25,Staff Expenses Claim
DFE,Skills Funding Agency,30/11/2016,Managed IT Service,Operations ICT - Information & Communication Technology - Technical,LEIDOS INNOVATIONS UK LTD,SPINVB_33387,15738.88,Purchase Invoice
DFE,Skills Funding Agency,30/11/2016,Managed IT Service,Operations ICT - Technical Design Authority,LEIDOS INNOVATIONS UK LTD,SPINVB_33389,6681.4,Purchase Invoice
DFE,Skills Funding Agency,30/11/2016,Managed IT Service,Operations ICT - Technical Design Authority,LEIDOS INNOVATIONS UK LTD,SPINVB_33393,38874.28,Purchase Invoice
DFE,Skills Funding Agency,30/11/2016,Managed IT Service,Operations ICT - Technical Design Authority,LEIDOS INNOVATIONS UK LTD,SPINVB_33395,14238,Purchase Invoice
DFE,Skills Funding Agency,30/11/2016,Managed IT Service,Operations ICT - Technical Design Authority,LEIDOS INNOVATIONS UK LTD,SPINVB_33396,15975.76,Purchase Invoice
DFE,Skills Funding Agency,30/11/2016,Managed IT Service,Data Science,LEIDOS INNOVATIONS UK LTD,SPINVB_33388,33962.4,Purchase Invoice
DFE,Skills Funding Agency,30/11/2016,Managed IT Service,Data Science,LEIDOS INNOVATIONS UK LTD,SPINVB_33390,96256.6,Purchase Invoice
DFE,Skills Funding Agency,30/11/2016,Licences,Operations ICT - Business IT - Agency Services,SERVICENOW NEDERLAND B.V.,SPINVB_32451,1682.9,Purchase Invoice
DFE,Skills Funding Agency,30/11/2016,Licences,Operations ICT - Business IT - Agency Services,SERVICENOW NEDERLAND B.V.,SPINVB_32452,1197.81,Purchase Invoice
DFE,Skills Funding Agency,30/11/2016,Support Services,Operations ICT - Technical Design Authority,SPECIALIST COMPUTER CENTRES PLC,SPINVB_33446,10132.5,Purchase Invoice
DFE,Skills Funding Agency,02/12/2016,Young People's Helpline,Main Funding,LATRA LTD,SPINVB_33484,2160,Purchase Invoice
DFE,Skills Funding Agency,02/12/2016,Temporary Staff,Apprenticeships & Delivery Services - Executive Office,CAPITA BUSINESS SERVICES LTD,IPINVELECT3_2177,6260.75,Purchase Invoice
DFE,Skills Funding Agency,02/12/2016,Temporary Staff,Funding & Programmes - Executive Office,CAPITA BUSINESS SERVICES LTD,IPINVELECT3_2177,16414.95,Purchase Invoice
DFE,Skills Funding Agency,02/12/2016,Temporary Staff,Funding & Programmes - Executive Office,LA INTERNATIONAL,SPINVB_33411,1029.48,Purchase Invoice
DFE,Skills Funding Agency,02/12/2016,Temporary Staff,Funding & Programmes - Executive Office,MICHAEL PAGE INTERNATIONAL RECRUITMENT LTD,SPINVB_33359,8808.3,Purchase Invoice
DFE,Skills Funding Agency,02/12/2016,Temporary Staff,Operations ICT - Information & Communication Technology - Technical,CAPITA BUSINESS SERVICES LTD,IPINVELECT3_2177,2111.28,Purchase Invoice
DFE,Skills Funding Agency,02/12/2016,Temporary Staff,Operations ICT - Projects,CAPITA BUSINESS SERVICES LTD,IPINVELECT3_2177,5408.7,Purchase Invoice
DFE,Skills Funding Agency,02/12/2016,Temporary Staff,Data Science,CAPITA BUSINESS SERVICES LTD,IPINVELECT3_2177,2802.48,Purchase Invoice
DFE,Skills Funding Agency,02/12/2016,Temporary Staff,Data Science,LA INTERNATIONAL,SPINVB_33266,7558.02,Purchase Invoice
DFE,Skills Funding Agency,02/12/2016,Professional Services,Funding & Programmes - Executive Office,LEIDOS INNOVATIONS UK LTD,SPINVB_33394,15209.05,Purchase Invoice
DFE,Skills Funding Agency,02/12/2016,Professional Services,Funding & Programmes - Executive Office,CAPGEMINI UK PLC,SPINVB_33456,12492.96,Purchase Invoice
DFE,Skills Funding Agency,02/12/2016,Professional Services,Operations ICT - Information & Communication Technology - Technical,CAPGEMINI UK PLC,SPINVB_33457,68663.56,Purchase Invoice
DFE,Skills Funding Agency,02/12/2016,Managed IT Service,Funding & Programmes - Executive Office,LEIDOS INNOVATIONS UK LTD,SPINVB_33385,48059.72,Purchase Invoice
DFE,Skills Funding Agency,02/12/2016,Software Maintenance & Repair,Operations ICT - Mission IT / Business As Usual Major Releases,CAPGEMINI UK PLC,SPINVB_33455,104081.29,Purchase Invoice
DFE,Skills Funding Agency,02/12/2016,Support Services,Operations ICT - Technical Design Authority,SPECIALIST COMPUTER CENTRES PLC,SPINVB_33447,2145,Purchase Invoice
DFE,Skills Funding Agency,02/12/2016,Support Services,Operations ICT - Technical Design Authority,SPECIALIST COMPUTER CENTRES PLC,SPINVB_33448,1287,Purchase Invoice
DFE,Skills Funding Agency,02/12/2016,Support Services,Operations ICT - Technical Design Authority,SPECIALIST COMPUTER CENTRES PLC,SPINVB_33459,4200,Purchase Invoice
DFE,Skills Funding Agency,02/12/2016,Support Services,Operations ICT - Technical Design Authority,SPECIALIST COMPUTER CENTRES PLC,SPINVB_33460,6435,Purchase Invoice
DFE,Skills Funding Agency,06/12/2016,Young People's Helpline,Main Funding,REDHOUSE LANE COMMUNICATIONS LTD,SPINVB_33525,1008,Purchase Invoice
DFE,Skills Funding Agency,06/12/2016,Young People's Helpline,Main Funding,FIND A FUTURE LIMITED,SPINVB_33526,6884,Purchase Invoice
DFE,Skills Funding Agency,06/12/2016,Classroom Based Training Organisations - Non Centralised Contract Management,Main Funding,CRISIS UK,SPINVB_33397,19273,Purchase Invoice
DFE,Skills Funding Agency,06/12/2016,"National Apprenticeship Service - Business, Innovation & Skills - Non-Participation",Main Funding,SIMON UDAL DESIGN LTD,SPINVB_33534,1278.31,Purchase Invoice
DFE,Skills Funding Agency,06/12/2016,Temporary Staff,Apprenticeships & Delivery Services - Executive Office,LA INTERNATIONAL,SPINVB_33489,1492.5,Purchase Invoice
DFE,Skills Funding Agency,06/12/2016,Temporary Staff,Apprenticeships & Delivery Services - Executive Office,PARITY RESOURCES LTD,IPINVELECT3_2178,23097.78,Purchase Invoice
DFE,Skills Funding Agency,06/12/2016,Temporary Staff,Apprenticeships & Delivery Services - Executive Office,PARITY RESOURCES LTD,IPINVELECT3_2179,16051.38,Purchase Invoice
DFE,Skills Funding Agency,06/12/2016,Temporary Staff,Apprenticeships & Delivery Services - Executive Office,PARITY RESOURCES LTD,IPINVELECT3_2180,6738.9,Purchase Invoice
DFE,Skills Funding Agency,06/12/2016,Temporary Staff,Apprenticeships & Delivery Services - Executive Office,PARITY RESOURCES LTD,IPINVELECT3_2181,21041.82,Purchase Invoice
DFE,Skills Funding Agency,06/12/2016,Temporary Staff,Apprenticeships & Delivery Services - Executive Office,PARITY RESOURCES LTD,IPINVELECT3_2182,1200,Purchase Invoice
DFE,Skills Funding Agency,06/12/2016,Temporary Staff,Apprenticeships & Delivery Services - Executive Office,SF RECRUITMENT LTD,SPINVB_33470,795.1,Purchase Invoice
DFE,Skills Funding Agency,06/12/2016,Temporary Staff,Chief Executive Office - Executive Office,SF RECRUITMENT LTD,SPINVB_33466,1646.7,Purchase Invoice
DFE,Skills Funding Agency,06/12/2016,Temporary Staff,Chief Executive Office - Executive Office,SF RECRUITMENT LTD,SPINVB_33468,988.02,Purchase Invoice
DFE,Skills Funding Agency,06/12/2016,Temporary Staff,Chief Executive Office - Executive Office,SF RECRUITMENT LTD,SPINVB_33469,1646.7,Purchase Invoice
DFE,Skills Funding Agency,06/12/2016,Temporary Staff,Operations Finance - Executive Office,PARITY RESOURCES LTD,IPINVELECT3_2178,2309.76,Purchase Invoice
DFE,Skills Funding Agency,06/12/2016,Temporary Staff,Operations Finance - Executive Office,PARITY RESOURCES LTD,IPINVELECT3_2181,2309.76,Purchase Invoice
DFE,Skills Funding Agency,06/12/2016,Temporary Staff,Operations Finance - Executive Office,PARITY RESOURCES LTD,IPINVELECT3_2182,2309.76,Purchase Invoice
DFE,Skills Funding Agency,06/12/2016,Temporary Staff,Funding & Programmes - Executive Office,MICHAEL PAGE INTERNATIONAL RECRUITMENT LTD,SPINVB_33360,4590,Purchase Invoice
DFE,Skills Funding Agency,06/12/2016,Temporary Staff,Funding & Programmes - Executive Office,PARITY RESOURCES LTD,IPINVELECT3_2178,8111.94,Purchase Invoice
DFE,Skills Funding Agency,06/12/2016,Temporary Staff,Funding & Programmes - Executive Office,PARITY RESOURCES LTD,IPINVELECT3_2179,13260,Purchase Invoice
DFE,Skills Funding Agency,06/12/2016,Temporary Staff,Funding & Programmes - Executive Office,PARITY RESOURCES LTD,IPINVELECT3_2181,5202.66,Purchase Invoice
DFE,Skills Funding Agency,06/12/2016,Temporary Staff,Funding & Programmes - Executive Office,PARITY RESOURCES LTD,IPINVELECT3_2182,2909.28,Purchase Invoice
DFE,Skills Funding Agency,06/12/2016,Temporary Staff,Operations ICT - Information & Communication Technology - Technical,KELLY SERVICES UK LTD,SPINVB_33463,1021.64,Purchase Invoice
DFE,Skills Funding Agency,06/12/2016,Temporary Staff,Operations ICT - Information & Communication Technology - Technical,PARITY RESOURCES LTD,IPINVELECT3_2178,3737.35,Purchase Invoice
DFE,Skills Funding Agency,06/12/2016,Temporary Staff,Operations ICT - Information & Communication Technology - Technical,PARITY RESOURCES LTD,IPINVELECT3_2179,8541.25,Purchase Invoice
DFE,Skills Funding Agency,06/12/2016,Temporary Staff,Operations ICT - Information & Communication Technology - Technical,PARITY RESOURCES LTD,IPINVELECT3_2180,14680.92,Purchase Invoice
DFE,Skills Funding Agency,06/12/2016,Temporary Staff,Operations ICT - Information & Communication Technology - Technical,PARITY RESOURCES LTD,IPINVELECT3_2181,6568.56,Purchase Invoice
DFE,Skills Funding Agency,06/12/2016,Temporary Staff,Operations ICT - Information & Communication Technology - Technical,PARITY RESOURCES LTD,IPINVELECT3_2182,1080,Purchase Invoice
DFE,Skills Funding Agency,06/12/2016,Temporary Staff,Data Science,PARITY RESOURCES LTD,IPINVELECT3_2179,2999.28,Purchase Invoice
DFE,Skills Funding Agency,06/12/2016,Temporary Staff,Data Science,PARITY RESOURCES LTD,IPINVELECT3_2180,2999.28,Purchase Invoice
DFE,Skills Funding Agency,06/12/2016,Temporary Staff,Data Science,PARITY RESOURCES LTD,IPINVELECT3_2181,2999.28,Purchase Invoice
DFE,Skills Funding Agency,06/12/2016,Temporary Staff,Transaction Unit,GOODMAN MASSON RECRUITMENT SERVICES LTD,SPINVB_33481,2400,Purchase Invoice
DFE,Skills Funding Agency,06/12/2016,Temporary Staff,Transaction Unit,GOODMAN MASSON RECRUITMENT SERVICES LTD,SPINVB_33482,2376,Purchase Invoice
DFE,Skills Funding Agency,06/12/2016,Temporary Staff,Transaction Unit,PARITY RESOURCES LTD,IPINVELECT3_2179,6617.63,Purchase Invoice
DFE,Skills Funding Agency,06/12/2016,Temporary Staff,Transaction Unit,PARITY RESOURCES LTD,IPINVELECT3_2180,5874.35,Purchase Invoice
DFE,Skills Funding Agency,06/12/2016,Temporary Staff,Transaction Unit,PARITY RESOURCES LTD,IPINVELECT3_2181,6167.81,Purchase Invoice
DFE,Skills Funding Agency,06/12/2016,Interviewee Expenses,Transformation & Corporate Strategy,Private Individual,SPINVNO_3907,79.58,Purchase Invoice
DFE,Skills Funding Agency,06/12/2016,Interviewee Expenses,Transformation & Corporate Strategy,Private Individual,SPINVNO_3908,84.8,Purchase Invoice
DFE,Skills Funding Agency,06/12/2016,Interviewee Expenses,Transformation & Corporate Strategy,Private Individual,SPINVNO_3909,18.15,Purchase Invoice
DFE,Skills Funding Agency,06/12/2016,Self-Drive Car Hire,Central Delivery Service - Leeds,ENTERPRISE RENT A CAR UK LTD,SPINVNO_3906,345.97,Purchase Invoice
DFE,Skills Funding Agency,06/12/2016,Professional Services,Operations ICT - Technical Design Authority,SPECIALIST COMPUTER CENTRES PLC,SPINVB_33485,27918,Purchase Invoice
DFE,Skills Funding Agency,06/12/2016,Professional Services,Operations ICT - Technical Design Authority,SPECIALIST COMPUTER CENTRES PLC,SPINVB_33497,3432,Purchase Invoice
DFE,Skills Funding Agency,06/12/2016,Hosting,Operations ICT - Technical Design Authority,SPECIALIST COMPUTER CENTRES PLC,SPINVB_33486,212387.92,Purchase Invoice
DFE,Skills Funding Agency,06/12/2016,Hosting,Operations ICT - Technical Design Authority,SPECIALIST COMPUTER CENTRES PLC,SPINVB_33498,28800,Purchase Invoice
DFE,Skills Funding Agency,06/12/2016,Managed IT Service,Apprenticeships & Delivery Services - Executive Office,SCROLL LLP,SPINVB_33420,5850,Purchase Invoice
DFE,Skills Funding Agency,06/12/2016,Managed IT Service,Apprenticeships & Delivery Services - Executive Office,SCROLL LLP,SPINVB_33421,4500,Purchase Invoice
DFE,Skills Funding Agency,06/12/2016,Managed IT Service,Apprenticeships & Delivery Services - Executive Office,SCROLL LLP,SPINVB_33422,33065.88,Purchase Invoice
DFE,Skills Funding Agency,06/12/2016,Managed IT Service,Operations ICT - Information & Communication Technology - Technical,SCROLL LLP,SPINVB_33423,16632,Purchase Invoice
DFE,Skills Funding Agency,06/12/2016,Licences,Operations ICT - Service Integration & Management,ORACLE CORP UK LTD,SPINVB_33461,26080.16,Purchase Invoice
DFE,Skills Funding Agency,06/12/2016,Software Maintenance & Repair,Operations ICT - Business IT - Citizen Services,LEIDOS INNOVATIONS UK LTD,SPINVB_33490,118643.86,Purchase Invoice
DFE,Skills Funding Agency,06/12/2016,Software Maintenance & Repair,Operations ICT - Mission IT / Business As Usual Major Releases,CAPGEMINI UK PLC,SPINVB_33454,17471.38,Purchase Invoice
DFE,Skills Funding Agency,06/12/2016,Software Maintenance & Repair,Operations ICT - Project Delivery,BOTTOMLINE TECHNOLOGIES EUROPE LTD,SPINVB_33499,2100,Purchase Invoice
DFE,Skills Funding Agency,06/12/2016,Design,Operations ICT - Information & Communication Technology - Technical,MICROSOFT LTD,SPINVB_33307,152.4,Purchase Invoice
DFE,Skills Funding Agency,07/12/2016,Young People's Helpline,Main Funding,BL TRAINING LTD,SPINVB_33494,174000,Purchase Invoice
DFE,Skills Funding Agency,07/12/2016,Young People's Helpline,Main Funding,MANAGEMENT LEARNING RESOURCES LTD,SPINVB_33540,4493.93,Purchase Invoice
DFE,Skills Funding Agency,07/12/2016,Young People's Helpline,Main Funding,SERCO LTD,SPINVB_33502,42993.46,Purchase Invoice
DFE,Skills Funding Agency,07/12/2016,Young People's Helpline,Main Funding,SPORTCEL MARKETING LTD,SPINVB_33541,6000,Purchase Invoice
DFE,Skills Funding Agency,07/12/2016,Young People's Helpline,Main Funding,WILLIAMS LEA LIMITED,SPINVB_33542,1800,Purchase Invoice
DFE,Skills Funding Agency,07/12/2016,Next Step Helpline,Main Funding,SERCO LTD,SPINVB_33500,188423.68,Purchase Invoice
DFE,Skills Funding Agency,07/12/2016,"National Apprenticeship Service - Business, Innovation & Skills - Non-Participation",Main Funding,K C JONES CONFERENCE & EVENTS LTD,SPINVB_33537,5081.04,Purchase Invoice
DFE,Skills Funding Agency,07/12/2016,Temporary Staff,Operations ICT - Information & Communication Technology - Technical,CADENCE PARTNERSHIP LLP,SPINVB_33515,20790,Purchase Invoice
DFE,Skills Funding Agency,07/12/2016,Temporary Staff,Operations ICT - Information & Communication Technology - Technical,KELLY SERVICES UK LTD,SPINVB_33528,1028.2,Purchase Invoice
DFE,Skills Funding Agency,07/12/2016,Temporary Staff,Operations ICT - Information & Communication Technology - Technical,LA INTERNATIONAL,SPINVB_33474,6330,Purchase Invoice
DFE,Skills Funding Agency,07/12/2016,Temporary Staff,Operations ICT - Information & Communication Technology - Technical,LA INTERNATIONAL,SPINVB_33477,2301.22,Purchase Invoice
DFE,Skills Funding Agency,07/12/2016,Temporary Staff,Operations ICT - Business IT - Agency Services,RUSSAM GMS LTD,SPINVB_33535,9600,Purchase Invoice
DFE,Skills Funding Agency,07/12/2016,Interviewee Expenses,Transformation & Corporate Strategy,Private Individual,SPINVNO_3910,18.86,Purchase Invoice
DFE,Skills Funding Agency,07/12/2016,Eye Tests,Central Delivery Service - Gateshead,Agency Staff Member,SCLAIM_47144,20,Staff Expenses Claim
DFE,Skills Funding Agency,07/12/2016,Diesel Car Mileage,Southern Division,Agency Staff Member,SCLAIM_47109,241.2,Staff Expenses Claim
DFE,Skills Funding Agency,07/12/2016,Diesel Car Mileage,Apprenticeships & Delivery Services - Executive Office,Agency Staff Member,SCLAIM_47102,477,Staff Expenses Claim
DFE,Skills Funding Agency,07/12/2016,Diesel Car Mileage,Apprenticeships & Delivery Services - Executive Office,Agency Staff Member,SCLAIM_47122,21.6,Staff Expenses Claim
DFE,Skills Funding Agency,07/12/2016,Diesel Car Mileage,Apprenticeships & Delivery Services - Executive Office,Agency Staff Member,SCLAIM_47141,157.5,Staff Expenses Claim
DFE,Skills Funding Agency,07/12/2016,Diesel Car Mileage,Apprenticeships & Delivery Services - Executive Office,Agency Staff Member,SCLAIM_47106,172.8,Staff Expenses Claim
DFE,Skills Funding Agency,07/12/2016,Diesel Car Mileage,Large Companies Unit,Agency Staff Member,SCLAIM_47100,340.2,Staff Expenses Claim
DFE,Skills Funding Agency,07/12/2016,Diesel Car Mileage,Large Companies Unit,Agency Staff Member,SCLAIM_47128,385.65,Staff Expenses Claim
DFE,Skills Funding Agency,07/12/2016,Diesel Car Mileage,Large Companies Unit,Agency Staff Member,SCLAIM_47087,90,Staff Expenses Claim
DFE,Skills Funding Agency,07/12/2016,Diesel Car Mileage,Employer & Provider Services North East & Yorkshire,Agency Staff Member,SCLAIM_47086,291.6,Staff Expenses Claim
DFE,Skills Funding Agency,07/12/2016,Diesel Car Mileage,Operations Finance - Executive Office,Agency Staff Member,SCLAIM_47115,103.5,Staff Expenses Claim
DFE,Skills Funding Agency,07/12/2016,Diesel Car Mileage,Operations Finance - Executive Office,Agency Staff Member,SCLAIM_47095,36,Staff Expenses Claim
DFE,Skills Funding Agency,07/12/2016,Diesel Car Mileage,Central Delivery Service - Leeds,Agency Staff Member,SCLAIM_47085,288,Staff Expenses Claim
DFE,Skills Funding Agency,07/12/2016,Diesel Car Mileage,Central Delivery Service - Leeds,Agency Staff Member,SCLAIM_47092,229.5,Staff Expenses Claim
DFE,Skills Funding Agency,07/12/2016,Diesel Car Mileage,Central Delivery Service - Leeds,Agency Staff Member,SCLAIM_47110,111.15,Staff Expenses Claim
DFE,Skills Funding Agency,07/12/2016,Diesel Car Mileage,Central Delivery Service - European Social Fund - Audit Compliance,Agency Staff Member,SCLAIM_47139,151.2,Staff Expenses Claim
DFE,Skills Funding Agency,07/12/2016,Diesel Car Mileage,Central Delivery Service - European Social Fund - Audit Compliance,Agency Staff Member,SCLAIM_47125,563.4,Staff Expenses Claim
DFE,Skills Funding Agency,07/12/2016,Diesel Car Mileage,Funding & Programmes - Executive Office,Agency Staff Member,SCLAIM_47127,712.8,Staff Expenses Claim
DFE,Skills Funding Agency,07/12/2016,Diesel Car Mileage,Funding & Programmes - Executive Office,Agency Staff Member,SCLAIM_47126,265.95,Staff Expenses Claim
DFE,Skills Funding Agency,07/12/2016,Diesel Car Mileage,Funding & Programmes - Provider Management & Intervention North,Agency Staff Member,SCLAIM_47099,278.55,Staff Expenses Claim
DFE,Skills Funding Agency,07/12/2016,Diesel Car Mileage,Funding & Programmes - Provider Management & Intervention North,Agency Staff Member,SCLAIM_47118,301.95,Staff Expenses Claim
DFE,Skills Funding Agency,07/12/2016,Diesel Car Mileage,Funding & Programmes - Provider Management & Intervention North,Agency Staff Member,SCLAIM_47104,20.7,Staff Expenses Claim
DFE,Skills Funding Agency,07/12/2016,Diesel Car Mileage,Funding & Programmes - Provider Management & Intervention North,Agency Staff Member,SCLAIM_47105,281.7,Staff Expenses Claim
DFE,Skills Funding Agency,07/12/2016,Diesel Car Mileage,Funding & Programmes - Provider Management & Intervention North,Agency Staff Member,SCLAIM_47107,174.6,Staff Expenses Claim
DFE,Skills Funding Agency,07/12/2016,Diesel Car Mileage,Intervention,Agency Staff Member,SCLAIM_47148,51.3,Staff Expenses Claim
DFE,Skills Funding Agency,07/12/2016,Diesel Car Mileage,Intervention,Agency Staff Member,SCLAIM_47149,231.3,Staff Expenses Claim
DFE,Skills Funding Agency,07/12/2016,Petrol Car Mileage,Chief Executive Office - Communications,Agency Staff Member,SCLAIM_47103,19.8,Staff Expenses Claim
DFE,Skills Funding Agency,07/12/2016,Petrol Car Mileage,Apprenticeships & Delivery Services - Executive Office,Agency Staff Member,SCLAIM_47130,432,Staff Expenses Claim
DFE,Skills Funding Agency,07/12/2016,Petrol Car Mileage,Large Companies Unit,Agency Staff Member,SCLAIM_47142,221.4,Staff Expenses Claim
DFE,Skills Funding Agency,07/12/2016,Petrol Car Mileage,Large Companies Unit,Agency Staff Member,SCLAIM_47147,340.2,Staff Expenses Claim
DFE,Skills Funding Agency,07/12/2016,Petrol Car Mileage,Employer & Provider Services North East & Yorkshire,Agency Staff Member,SCLAIM_47143,681,Staff Expenses Claim
DFE,Skills Funding Agency,07/12/2016,Petrol Car Mileage,Employer & Provider Services North East & Yorkshire,Agency Staff Member,SCLAIM_47134,280.8,Staff Expenses Claim
DFE,Skills Funding Agency,07/12/2016,Petrol Car Mileage,Employer & Provider Services South East,Agency Staff Member,SCLAIM_47117,214.2,Staff Expenses Claim
DFE,Skills Funding Agency,07/12/2016,Petrol Car Mileage,Apprenticeships & Delivery Services - Apprenticeships & Employer Policy Implementation,Agency Staff Member,SCLAIM_47135,337.05,Staff Expenses Claim
DFE,Skills Funding Agency,07/12/2016,Petrol Car Mileage,National Careers & Learner Services,Agency Staff Member,SCLAIM_47133,110.7,Staff Expenses Claim
DFE,Skills Funding Agency,07/12/2016,Petrol Car Mileage,Operations Finance - Executive Office,Agency Staff Member,SCLAIM_47096,64.35,Staff Expenses Claim
DFE,Skills Funding Agency,07/12/2016,Petrol Car Mileage,Operations Finance - Executive Office,Agency Staff Member,SCLAIM_47093,273.6,Staff Expenses Claim
DFE,Skills Funding Agency,07/12/2016,Petrol Car Mileage,Operations Finance - Executive Office,Agency Staff Member,SCLAIM_47090,234,Staff Expenses Claim
DFE,Skills Funding Agency,07/12/2016,Petrol Car Mileage,Operations Finance - Executive Office,Agency Staff Member,SCLAIM_47101,90.9,Staff Expenses Claim
DFE,Skills Funding Agency,07/12/2016,Petrol Car Mileage,Central Delivery Service - Birmingham,Agency Staff Member,SCLAIM_47116,450,Staff Expenses Claim
DFE,Skills Funding Agency,07/12/2016,Petrol Car Mileage,Central Delivery Service - European Social Fund - Audit Compliance,Agency Staff Member,SCLAIM_47084,40.5,Staff Expenses Claim
DFE,Skills Funding Agency,07/12/2016,Petrol Car Mileage,Central Delivery Service - European Social Fund - Audit Compliance,Agency Staff Member,SCLAIM_47123,20.7,Staff Expenses Claim
DFE,Skills Funding Agency,07/12/2016,Petrol Car Mileage,Central Delivery Service - European Social Fund - Audit Compliance,Agency Staff Member,SCLAIM_47124,46.8,Staff Expenses Claim
DFE,Skills Funding Agency,07/12/2016,Petrol Car Mileage,Central Delivery Service - European Social Fund - Audit Compliance,Agency Staff Member,SCLAIM_47140,67.5,Staff Expenses Claim
DFE,Skills Funding Agency,07/12/2016,Petrol Car Mileage,Funding & Programmes - Executive Office,Agency Staff Member,SCLAIM_47108,121.95,Staff Expenses Claim
DFE,Skills Funding Agency,07/12/2016,Petrol Car Mileage,Intervention,Agency Staff Member,SCLAIM_47137,392.4,Staff Expenses Claim
DFE,Skills Funding Agency,07/12/2016,Petrol Car Mileage,Intervention,Agency Staff Member,SCLAIM_47088,1885.95,Staff Expenses Claim
DFE,Skills Funding Agency,07/12/2016,Petrol Car Mileage,Intervention,Agency Staff Member,SCLAIM_47097,2358.3,Staff Expenses Claim
DFE,Skills Funding Agency,07/12/2016,Other Fuel Car Mileage,Intervention,Agency Staff Member,SCLAIM_47088,363.5,Staff Expenses Claim
DFE,Skills Funding Agency,07/12/2016,Other Fuel Car Mileage,Intervention,Agency Staff Member,SCLAIM_47097,193.1,Staff Expenses Claim
DFE,Skills Funding Agency,07/12/2016,Diesel Car Mileage Passenger Supplement,Employer & Provider Services North East & Yorkshire,Agency Staff Member,SCLAIM_47086,7,Staff Expenses Claim
DFE,Skills Funding Agency,07/12/2016,Petrol Car Mileage Passenger Supplement,Funding & Programmes - Executive Office,Agency Staff Member,SCLAIM_47108,6.9,Staff Expenses Claim
DFE,Skills Funding Agency,07/12/2016,Subsistence,Southern Division,Agency Staff Member,SCLAIM_47109,20.95,Staff Expenses Claim
DFE,Skills Funding Agency,07/12/2016,Subsistence,Apprenticeships & Delivery Services - Executive Office,Agency Staff Member,SCLAIM_47136,52.5,Staff Expenses Claim
DFE,Skills Funding Agency,07/12/2016,Subsistence,Apprenticeships & Delivery Services - Executive Office,Agency Staff Member,SCLAIM_47112,17.3,Staff Expenses Claim
DFE,Skills Funding Agency,07/12/2016,Subsistence,Apprenticeships & Delivery Services - Executive Office,Agency Staff Member,SCLAIM_47122,77.99,Staff Expenses Claim
DFE,Skills Funding Agency,07/12/2016,Subsistence,Apprenticeships & Delivery Services - Executive Office,Agency Staff Member,SCLAIM_47141,12.55,Staff Expenses Claim
DFE,Skills Funding Agency,07/12/2016,Subsistence,Apprenticeships & Delivery Services - Executive Office,Agency Staff Member,SCLAIM_47106,37.31,Staff Expenses Claim
DFE,Skills Funding Agency,07/12/2016,Subsistence,Large Companies Unit,Agency Staff Member,SCLAIM_47142,134.14,Staff Expenses Claim
DFE,Skills Funding Agency,07/12/2016,Subsistence,Large Companies Unit,Agency Staff Member,SCLAIM_47147,18.15,Staff Expenses Claim
DFE,Skills Funding Agency,07/12/2016,Subsistence,Large Companies Unit,Agency Staff Member,SCLAIM_47100,21.89,Staff Expenses Claim
DFE,Skills Funding Agency,07/12/2016,Subsistence,Large Companies Unit,Agency Staff Member,SCLAIM_47087,7.9,Staff Expenses Claim
DFE,Skills Funding Agency,07/12/2016,Subsistence,Apprenticeships & Delivery Services - Apprenticeships & Employer Policy Implementation,Agency Staff Member,SCLAIM_47135,12.38,Staff Expenses Claim
DFE,Skills Funding Agency,07/12/2016,Subsistence,Apprenticeships & Delivery Services - Marketing,Agency Staff Member,SCLAIM_47129,14.95,Staff Expenses Claim
DFE,Skills Funding Agency,07/12/2016,Subsistence,National Careers & Learner Services,Agency Staff Member,SCLAIM_47120,19.13,Staff Expenses Claim
DFE,Skills Funding Agency,07/12/2016,Subsistence,National Careers & Learner Services,Agency Staff Member,SCLAIM_47132,4.5,Staff Expenses Claim
DFE,Skills Funding Agency,07/12/2016,Subsistence,Operations Finance - Executive Office,Agency Staff Member,SCLAIM_47096,36.2,Staff Expenses Claim
DFE,Skills Funding Agency,07/12/2016,Subsistence,Operations Finance - Executive Office,Agency Staff Member,SCLAIM_47113,21.5,Staff Expenses Claim
DFE,Skills Funding Agency,07/12/2016,Subsistence,Operations Finance - Executive Office,Agency Staff Member,SCLAIM_47114,35.52,Staff Expenses Claim
DFE,Skills Funding Agency,07/12/2016,Subsistence,Operations Finance - Executive Office,Agency Staff Member,SCLAIM_47145,9,Staff Expenses Claim
DFE,Skills Funding Agency,07/12/2016,Subsistence,Operations Finance - Executive Office,Agency Staff Member,SCLAIM_47095,7.35,Staff Expenses Claim
DFE,Skills Funding Agency,07/12/2016,Subsistence,Operations Finance - Executive Office,Agency Staff Member,SCLAIM_47101,50.92,Staff Expenses Claim
DFE,Skills Funding Agency,07/12/2016,Subsistence,Central Delivery Service - Leeds,Agency Staff Member,SCLAIM_47121,32.45,Staff Expenses Claim
DFE,Skills Funding Agency,07/12/2016,Subsistence,Central Delivery Service - Leeds,Agency Staff Member,SCLAIM_47092,23.8,Staff Expenses Claim
DFE,Skills Funding Agency,07/12/2016,Subsistence,Central Delivery Service - Leeds,Agency Staff Member,SCLAIM_47110,9.4,Staff Expenses Claim
DFE,Skills Funding Agency,07/12/2016,Subsistence,Central Delivery Service - European Social Fund - Audit Compliance,Agency Staff Member,SCLAIM_47139,22.15,Staff Expenses Claim
DFE,Skills Funding Agency,07/12/2016,Subsistence,Central Delivery Service - European Social Fund - Audit Compliance,Agency Staff Member,SCLAIM_47138,58.68,Staff Expenses Claim
DFE,Skills Funding Agency,07/12/2016,Subsistence,Central Delivery Service - European Social Fund - Audit Compliance,Agency Staff Member,SCLAIM_47140,56.83,Staff Expenses Claim
DFE,Skills Funding Agency,07/12/2016,Subsistence,Funding & Programmes - Executive Office,Agency Staff Member,SCLAIM_47127,116.39,Staff Expenses Claim
DFE,Skills Funding Agency,07/12/2016,Subsistence,Funding & Programmes - Executive Office,Agency Staff Member,SCLAIM_47126,58.31,Staff Expenses Claim
DFE,Skills Funding Agency,07/12/2016,Subsistence,Funding & Programmes - Provider Management & Intervention North,Agency Staff Member,SCLAIM_47105,12.55,Staff Expenses Claim
DFE,Skills Funding Agency,07/12/2016,Subsistence,Funding & Programmes - Provider Management & Intervention North,Agency Staff Member,SCLAIM_47107,23.9,Staff Expenses Claim
DFE,Skills Funding Agency,07/12/2016,Rail Warrants & Tickets,Apprenticeships & Delivery Services - Executive Office,Agency Staff Member,SCLAIM_47111,25.7,Staff Expenses Claim
DFE,Skills Funding Agency,07/12/2016,Rail Warrants & Tickets,Apprenticeships & Delivery Services - Executive Office,Agency Staff Member,SCLAIM_47106,4.4,Staff Expenses Claim
DFE,Skills Funding Agency,07/12/2016,Rail Warrants & Tickets,Large Companies Unit,Agency Staff Member,SCLAIM_47142,2.4,Staff Expenses Claim
DFE,Skills Funding Agency,07/12/2016,Rail Warrants & Tickets,Employer & Provider Services London,Agency Staff Member,SCLAIM_47146,55.4,Staff Expenses Claim
DFE,Skills Funding Agency,07/12/2016,Rail Warrants & Tickets,Apprenticeships & Delivery Services - Apprenticeships & Employer Policy Implementation,Agency Staff Member,SCLAIM_47131,40.1,Staff Expenses Claim
DFE,Skills Funding Agency,07/12/2016,Rail Warrants & Tickets,Apprenticeships & Delivery Services - Marketing,Agency Staff Member,SCLAIM_47129,12.1,Staff Expenses Claim
DFE,Skills Funding Agency,07/12/2016,Rail Warrants & Tickets,Operations Finance - Executive Office,Agency Staff Member,SCLAIM_47115,21.6,Staff Expenses Claim
DFE,Skills Funding Agency,07/12/2016,Rail Warrants & Tickets,Operations Finance - Executive Office,Agency Staff Member,SCLAIM_47145,45.8,Staff Expenses Claim
DFE,Skills Funding Agency,07/12/2016,Rail Warrants & Tickets,Operations Finance - Executive Office,Agency Staff Member,SCLAIM_47101,32.2,Staff Expenses Claim
DFE,Skills Funding Agency,07/12/2016,Rail Warrants & Tickets,Central Delivery Service - Leeds,Agency Staff Member,SCLAIM_47121,4.9,Staff Expenses Claim
DFE,Skills Funding Agency,07/12/2016,Self-Drive Car Hire,Southern Division,Agency Staff Member,SCLAIM_47109,16.3,Staff Expenses Claim
DFE,Skills Funding Agency,07/12/2016,Self-Drive Car Hire,Central Delivery Service - Gateshead,Agency Staff Member,SCLAIM_47144,18.31,Staff Expenses Claim
DFE,Skills Funding Agency,07/12/2016,Self-Drive Car Hire,Central Delivery Service - European Social Fund - Audit Compliance,Agency Staff Member,SCLAIM_47138,118.75,Staff Expenses Claim
DFE,Skills Funding Agency,07/12/2016,Self-Drive Car Hire,Intervention,Agency Staff Member,SCLAIM_47098,479.92,Staff Expenses Claim
DFE,Skills Funding Agency,07/12/2016,Taxis,Apprenticeships & Delivery Services - Executive Office,Agency Staff Member,SCLAIM_47133,45,Staff Expenses Claim
DFE,Skills Funding Agency,07/12/2016,Taxis,Large Companies Unit,Agency Staff Member,SCLAIM_47142,29.4,Staff Expenses Claim
DFE,Skills Funding Agency,07/12/2016,Taxis,Employer & Provider Services South East,Agency Staff Member,SCLAIM_47117,24,Staff Expenses Claim
DFE,Skills Funding Agency,07/12/2016,Taxis,Apprenticeships & Delivery Services - Apprenticeships & Employer Policy Implementation,Agency Staff Member,SCLAIM_47131,42,Staff Expenses Claim
DFE,Skills Funding Agency,07/12/2016,Taxis,National Careers & Learner Services,Agency Staff Member,SCLAIM_47120,23.9,Staff Expenses Claim
DFE,Skills Funding Agency,07/12/2016,Taxis,Operations Finance - Executive Office,Agency Staff Member,SCLAIM_47096,16.5,Staff Expenses Claim
DFE,Skills Funding Agency,07/12/2016,Taxis,Central Delivery Service - European Social Fund - Audit Compliance,Agency Staff Member,SCLAIM_47140,20,Staff Expenses Claim
DFE,Skills Funding Agency,07/12/2016,Other Travel,Apprenticeships & Delivery Services - Executive Office,Agency Staff Member,SCLAIM_47102,4.5,Staff Expenses Claim
DFE,Skills Funding Agency,07/12/2016,Other Travel,Apprenticeships & Delivery Services - Executive Office,Agency Staff Member,SCLAIM_47122,6,Staff Expenses Claim
DFE,Skills Funding Agency,07/12/2016,Other Travel,Apprenticeships & Delivery Services - Executive Office,Agency Staff Member,SCLAIM_47133,15,Staff Expenses Claim
DFE,Skills Funding Agency,07/12/2016,Other Travel,Apprenticeships & Delivery Services - Executive Office,Agency Staff Member,SCLAIM_47141,33.8,Staff Expenses Claim
DFE,Skills Funding Agency,07/12/2016,Other Travel,Apprenticeships & Delivery Services - Executive Office,Agency Staff Member,SCLAIM_47106,22.8,Staff Expenses Claim
DFE,Skills Funding Agency,07/12/2016,Other Travel,Large Companies Unit,Agency Staff Member,SCLAIM_47142,96,Staff Expenses Claim
DFE,Skills Funding Agency,07/12/2016,Other Travel,Large Companies Unit,Agency Staff Member,SCLAIM_47147,125,Staff Expenses Claim
DFE,Skills Funding Agency,07/12/2016,Other Travel,Large Companies Unit,Agency Staff Member,SCLAIM_47100,11.3,Staff Expenses Claim
DFE,Skills Funding Agency,07/12/2016,Other Travel,Apprenticeships & Delivery Services - Apprenticeships & Employer Policy Implementation,Agency Staff Member,SCLAIM_47131,13,Staff Expenses Claim
DFE,Skills Funding Agency,07/12/2016,Other Travel,Apprenticeships & Delivery Services - Marketing,Agency Staff Member,SCLAIM_47129,6,Staff Expenses Claim
DFE,Skills Funding Agency,07/12/2016,Other Travel,Operations Finance - Executive Office,Agency Staff Member,SCLAIM_47096,16.05,Staff Expenses Claim
DFE,Skills Funding Agency,07/12/2016,Other Travel,Operations Finance - Executive Office,Agency Staff Member,SCLAIM_47094,14.9,Staff Expenses Claim
DFE,Skills Funding Agency,07/12/2016,Other Travel,Operations Finance - Executive Office,Agency Staff Member,SCLAIM_47115,5.5,Staff Expenses Claim
DFE,Skills Funding Agency,07/12/2016,Other Travel,Operations Finance - Executive Office,Agency Staff Member,SCLAIM_47145,8,Staff Expenses Claim
DFE,Skills Funding Agency,07/12/2016,Other Travel,Central Delivery Service - Gateshead,Agency Staff Member,SCLAIM_47144,23.5,Staff Expenses Claim
DFE,Skills Funding Agency,07/12/2016,Other Travel,Central Delivery Service - Leeds,Agency Staff Member,SCLAIM_47085,2.8,Staff Expenses Claim
DFE,Skills Funding Agency,07/12/2016,Other Travel,Central Delivery Service - Leeds,Agency Staff Member,SCLAIM_47092,23,Staff Expenses Claim
DFE,Skills Funding Agency,07/12/2016,Other Travel,Central Delivery Service - Leeds,Agency Staff Member,SCLAIM_47110,5,Staff Expenses Claim
DFE,Skills Funding Agency,07/12/2016,Other Travel,Central Delivery Service - European Social Fund - Audit Compliance,Agency Staff Member,SCLAIM_47139,29.6,Staff Expenses Claim
DFE,Skills Funding Agency,07/12/2016,Other Travel,Central Delivery Service - European Social Fund - Audit Compliance,Agency Staff Member,SCLAIM_47138,56,Staff Expenses Claim
DFE,Skills Funding Agency,07/12/2016,Other Travel,Central Delivery Service - European Social Fund - Audit Compliance,Agency Staff Member,SCLAIM_47140,16.5,Staff Expenses Claim
DFE,Skills Funding Agency,07/12/2016,Other Travel,Funding & Programmes - Executive Office,Agency Staff Member,SCLAIM_47127,5,Staff Expenses Claim
DFE,Skills Funding Agency,07/12/2016,Other Travel,Funding & Programmes - Executive Office,Agency Staff Member,SCLAIM_47126,6.5,Staff Expenses Claim
DFE,Skills Funding Agency,07/12/2016,Other Travel,Funding & Programmes - Provider Management & Intervention North,Agency Staff Member,SCLAIM_47099,46.2,Staff Expenses Claim
DFE,Skills Funding Agency,07/12/2016,Other Travel,Funding & Programmes - Provider Management & Intervention North,Agency Staff Member,SCLAIM_47118,12.8,Staff Expenses Claim
DFE,Skills Funding Agency,07/12/2016,Other Travel,Funding & Programmes - Provider Management & Intervention North,Agency Staff Member,SCLAIM_47105,11,Staff Expenses Claim
DFE,Skills Funding Agency,07/12/2016,Other Travel,Funding & Programmes - Provider Management & Intervention North,Agency Staff Member,SCLAIM_47107,22,Staff Expenses Claim
DFE,Skills Funding Agency,07/12/2016,Landline Telephone Service,Operations ICT - Information & Communication Technology - Technical,IDN TELECOM LTD,IPINVELECT3_2183,448.06,Purchase Invoice
DFE,Skills Funding Agency,07/12/2016,Sundry Items,Apprenticeships & Delivery Services - Executive Office,Agency Staff Member,SCLAIM_47111,12.34,Staff Expenses Claim
DFE,Skills Funding Agency,07/12/2016,Sundry Items,Employer & Provider Services South East,Agency Staff Member,SCLAIM_47117,51.75,Staff Expenses Claim
DFE,Skills Funding Agency,07/12/2016,Sundry Items,Intervention,Agency Staff Member,SCLAIM_47137,30.6,Staff Expenses Claim
DFE,Skills Funding Agency,07/12/2016,Hosting,Operations ICT - Technical Design Authority,FORDWAY SOLUTIONS LIMITED,SPINVB_33520,540,Purchase Invoice
DFE,Skills Funding Agency,07/12/2016,Managed IT Service,Operations ICT - Projects,CENTRE4 RESOURCES LIMITED,SPINVB_33511,12804,Purchase Invoice
DFE,Skills Funding Agency,07/12/2016,Managed IT Service,Operations ICT - Projects,CENTRE4 RESOURCES LIMITED,SPINVB_33514,4656,Purchase Invoice
DFE,Skills Funding Agency,07/12/2016,Software Upgrades,Operations ICT - Information & Communication Technology - Technical,ENGAGE ESM LTD,SPINVB_33530,8160,Purchase Invoice
DFE,Skills Funding Agency,07/12/2016,Licences,Operations ICT - Technical Design Authority,TRUSTMARQUE SOLUTIONS LIMITED,SPINVB_33531,3903.98,Purchase Invoice
DFE,Skills Funding Agency,07/12/2016,Licences,Operations ICT - Business IT - Agency Services,SCARISTA LTD,SPINVB_33545,223.55,Purchase Invoice
DFE,Skills Funding Agency,07/12/2016,Software Maintenance & Repair,Apprenticeships & Delivery Services - Executive Office,LEIDOS INNOVATIONS UK LTD,SPINVB_33492,11744.52,Purchase Invoice
DFE,Skills Funding Agency,07/12/2016,Software Maintenance & Repair,Operations ICT - Technical Design Authority,FORDWAY SOLUTIONS LIMITED,SPINVB_33523,17319.96,Purchase Invoice
DFE,Skills Funding Agency,07/12/2016,Support Services,Operations ICT - Technical Design Authority,SPECIALIST COMPUTER CENTRES PLC,SPINVB_33532,964.44,Purchase Invoice
DFE,Skills Funding Agency,07/12/2016,Support Services,Operations ICT - Technical Design Authority,SPECIALIST COMPUTER CENTRES PLC,SPINVB_33533,482.65,Purchase Invoice
DFE,Skills Funding Agency,09/12/2016,Business Support Service,Main Funding,SERCO LTD,SPINVB_33501,233774.99,Purchase Invoice
DFE,Skills Funding Agency,09/12/2016,Framework for Excellence,Main Funding,MARKET & OPINION RESEARCH INTERNATIONAL LTD,SPINVB_33572,101126.16,Purchase Invoice
DFE,Skills Funding Agency,09/12/2016,Framework for Excellence,Main Funding,MARKET & OPINION RESEARCH INTERNATIONAL LTD,SPINVB_33573,4890,Purchase Invoice
DFE,Skills Funding Agency,09/12/2016,Temporary Staff,Apprenticeships & Delivery Services - Executive Office,CAPITA BUSINESS SERVICES LTD,IPINVELECT3_2184,5750.64,Purchase Invoice
DFE,Skills Funding Agency,09/12/2016,Temporary Staff,Apprenticeships & Delivery Services - Executive Office,HAYS SPECIALIST RECRUITMENT LTD,IPINVELECT3_2185,15146.37,Purchase Invoice
DFE,Skills Funding Agency,09/12/2016,Temporary Staff,Chief Executive Office - Executive Office,HAYS SPECIALIST RECRUITMENT LTD,IPINVELECT3_2185,3450.24,Purchase Invoice
DFE,Skills Funding Agency,09/12/2016,Temporary Staff,Operations Finance - Executive Office,HAYS SPECIALIST RECRUITMENT LTD,IPINVELECT3_2185,2400,Purchase Invoice
DFE,Skills Funding Agency,09/12/2016,Temporary Staff,Funding & Programmes - Executive Office,CAPITA BUSINESS SERVICES LTD,IPINVELECT3_2184,14673.42,Purchase Invoice
DFE,Skills Funding Agency,09/12/2016,Temporary Staff,Funding & Programmes - Executive Office,HAYS SPECIALIST RECRUITMENT LTD,IPINVELECT3_2185,24472.7,Purchase Invoice
DFE,Skills Funding Agency,09/12/2016,Temporary Staff,Operations ICT - Information & Communication Technology - Technical,CAPITA BUSINESS SERVICES LTD,IPINVELECT3_2184,2111.28,Purchase Invoice
DFE,Skills Funding Agency,09/12/2016,Temporary Staff,Operations ICT - Information & Communication Technology - Technical,EXPERIS LIMITED,SPINVB_33471,12768.96,Purchase Invoice
DFE,Skills Funding Agency,09/12/2016,Temporary Staff,Operations ICT - Information & Communication Technology - Technical,HAYS SPECIALIST RECRUITMENT LTD,IPINVELECT3_2185,10698.9,Purchase Invoice
DFE,Skills Funding Agency,09/12/2016,Temporary Staff,Operations ICT - Projects,CAPITA BUSINESS SERVICES LTD,IPINVELECT3_2184,29537.25,Purchase Invoice
DFE,Skills Funding Agency,09/12/2016,Temporary Staff,Data Science,CAPITA BUSINESS SERVICES LTD,IPINVELECT3_2184,2452.18,Purchase Invoice
DFE,Skills Funding Agency,09/12/2016,Temporary Staff,Data Science,HAYS SPECIALIST RECRUITMENT LTD,IPINVELECT3_2185,5850,Purchase Invoice
DFE,Skills Funding Agency,09/12/2016,Temporary Staff,Data Science,LA INTERNATIONAL,SPINVB_33473,6593.93,Purchase Invoice
DFE,Skills Funding Agency,09/12/2016,Temporary Staff,Data Science,LA INTERNATIONAL,SPINVB_33476,3006.78,Purchase Invoice
DFE,Skills Funding Agency,09/12/2016,Temporary Staff,Data Science,LA INTERNATIONAL,SPINVB_33483,15086.58,Purchase Invoice
DFE,Skills Funding Agency,09/12/2016,Temporary Staff,Transformation & Corporate Strategy,HAYS SPECIALIST RECRUITMENT LTD,IPINVELECT3_2185,4180.5,Purchase Invoice
DFE,Skills Funding Agency,09/12/2016,Subsistence,Apprenticeships & Delivery Services - Executive Office,Private Individual,SPINVNO_3911,200,Purchase Invoice
DFE,Skills Funding Agency,09/12/2016,Professional Services,Operations Finance - Executive Office,BAKER TILLY & CO LTD,SPCRNB_1206,-1154.7,Purchase Credit Note
DFE,Skills Funding Agency,09/12/2016,Professional Services,Operations Finance - Executive Office,BAKER TILLY & CO LTD,SPINVB_33493,3464.1,Purchase Invoice
DFE,Skills Funding Agency,09/12/2016,Managed IT Service,Data Science,CENTRE4 RESOURCES LIMITED,SPINVB_33503,10032,Purchase Invoice
DFE,Skills Funding Agency,09/12/2016,Managed IT Service,Data Science,CENTRE4 RESOURCES LIMITED,SPINVB_33504,11880,Purchase Invoice
DFE,Skills Funding Agency,09/12/2016,Managed IT Service,Data Science,CENTRE4 RESOURCES LIMITED,SPINVB_33505,10800,Purchase Invoice
DFE,Skills Funding Agency,09/12/2016,Managed IT Service,Data Science,CENTRE4 RESOURCES LIMITED,SPINVB_33506,8910,Purchase Invoice
DFE,Skills Funding Agency,09/12/2016,Managed IT Service,Data Science,CENTRE4 RESOURCES LIMITED,SPINVB_33507,11880,Purchase Invoice
DFE,Skills Funding Agency,09/12/2016,Managed IT Service,Data Science,CENTRE4 RESOURCES LIMITED,SPINVB_33508,11880,Purchase Invoice
DFE,Skills Funding Agency,09/12/2016,Managed IT Service,Data Science,CENTRE4 RESOURCES LIMITED,SPINVB_33509,10260,Purchase Invoice
DFE,Skills Funding Agency,09/12/2016,Managed IT Service,Data Science,CENTRE4 RESOURCES LIMITED,SPINVB_33510,11070,Purchase Invoice
DFE,Skills Funding Agency,09/12/2016,Managed IT Service,Data Science,CENTRE4 RESOURCES LIMITED,SPINVB_33547,11880,Purchase Invoice
DFE,Skills Funding Agency,09/12/2016,Managed IT Service,Data Science,CENTRE4 RESOURCES LIMITED,SPINVB_33548,12804,Purchase Invoice
DFE,Skills Funding Agency,09/12/2016,Managed IT Service,Data Science,SOGETI UK LIMITED,SPINVB_33517,7020,Purchase Invoice
DFE,Skills Funding Agency,09/12/2016,Managed IT Service,Data Science,TRUEPENNY PEOPLE UK LTD,SPINVB_33487,60414.6,Purchase Invoice
DFE,Skills Funding Agency,09/12/2016,Managed IT Service,Data Science,TRUEPENNY PEOPLE UK LTD,SPINVB_33488,10800,Purchase Invoice
DFE,Skills Funding Agency,09/12/2016,Support Services,Data Science,LEIDOS INNOVATIONS UK LTD,SPINVB_33142,341.33,Purchase Invoice
DFE,Skills Funding Agency,09/12/2016,Support Services,Data Science,LEIDOS INNOVATIONS UK LTD,SPINVB_33491,1058.11,Purchase Invoice
DFE,Skills Funding Agency,12/12/2016,16-18 Apprenticeships - Centralised Contract Management,Main Funding,ACADEMY EDUCATION LTD,AP16C_4108,-20483.33,Programme System File
DFE,Skills Funding Agency,12/12/2016,16-18 Apprenticeships - Centralised Contract Management,Main Funding,ACADEMY EDUCATION LTD,AP16R_17942,16289.32,Programme System File
DFE,Skills Funding Agency,12/12/2016,16-18 Apprenticeships - Centralised Contract Management,Main Funding,ACACIA TRAINING LTD,AP16C_4105,-13804.32,Programme System File
DFE,Skills Funding Agency,12/12/2016,16-18 Apprenticeships - Centralised Contract Management,Main Funding,ACACIA TRAINING LTD,AP16R_17931,13672.32,Programme System File
DFE,Skills Funding Agency,12/12/2016,16-18 Apprenticeships - Centralised Contract Management,Main Funding,ACADEMIES ENTERPRISE,AP16C_3753,-1500.9,Programme System File
DFE,Skills Funding Agency,12/12/2016,16-18 Apprenticeships - Centralised Contract Management,Main Funding,ACADEMIES ENTERPRISE,AP16R_17356,2666.17,Programme System File
DFE,Skills Funding Agency,12/12/2016,16-18 Apprenticeships - Centralised Contract Management,Main Funding,ACADEMY TRANSFORMATION TRUST,AP16C_3763,-15485.51,Programme System File
DFE,Skills Funding Agency,12/12/2016,16-18 Apprenticeships - Centralised Contract Management,Main Funding,ACADEMY TRANSFORMATION TRUST,AP16R_17387,17714.29,Programme System File
DFE,Skills Funding Agency,12/12/2016,16-18 Apprenticeships - Centralised Contract Management,Main Funding,TRN (TRAIN) LIMITED,AP16R_17940,-1724.65,Programme System File
DFE,Skills Funding Agency,12/12/2016,16-18 Apprenticeships - Centralised Contract Management,Main Funding,A4E LTD,AP16R_17941,-312.15,Programme System File
DFE,Skills Funding Agency,12/12/2016,16-18 Apprenticeships - Centralised Contract Management,Main Funding,APPRENTICE FUNDING ASSISTANT LTD,AP16R_17312,8506.35,Programme System File
DFE,Skills Funding Agency,12/12/2016,16-18 Apprenticeships - Centralised Contract Management,Main Funding,ALL TRADES TRAINING LIMITED,AP16R_17303,714.82,Programme System File
DFE,Skills Funding Agency,12/12/2016,16-18 Apprenticeships - Centralised Contract Management,Main Funding,ALT VALLEY COMMUNITY TRUST LTD,AP16R_18015,9726.59,Programme System File
DFE,Skills Funding Agency,12/12/2016,16-18 Apprenticeships - Centralised Contract Management,Main Funding,ANDERSON STOCKLEY ACCREDITED TRAINING LTD,AP16R_17272,650,Programme System File
DFE,Skills Funding Agency,12/12/2016,16-18 Apprenticeships - Centralised Contract Management,Main Funding,ANNE CLARKE ASSOCIATES LTD,AP16R_17231,-1118.73,Programme System File
DFE,Skills Funding Agency,12/12/2016,16-18 Apprenticeships - Centralised Contract Management,Main Funding,APPRENTICESHIPS & TRAINING SERVICES CONSORTIUM LIMITED,AP16R_17347,-15511.13,Programme System File
DFE,Skills Funding Agency,12/12/2016,16-18 Apprenticeships - Centralised Contract Management,Main Funding,AURELIA TRAINING LTD,AP16R_17958,106.2,Programme System File
DFE,Skills Funding Agency,12/12/2016,16-18 Apprenticeships - Centralised Contract Management,Main Funding,AVANTA ENTERPRISE LTD,AP16R_17380,-11569.84,Programme System File
DFE,Skills Funding Agency,12/12/2016,16-18 Apprenticeships - Centralised Contract Management,Main Funding,AXIA SOLUTIONS LTD,AP16R_17964,-1053.5,Programme System File
DFE,Skills Funding Agency,12/12/2016,16-18 Apprenticeships - Centralised Contract Management,Main Funding,BABCOCK SKILLS DEVELOPMENT & TRAINING LTD,AP16C_3761,-23361.01,Programme System File
DFE,Skills Funding Agency,12/12/2016,16-18 Apprenticeships - Centralised Contract Management,Main Funding,BABCOCK SKILLS DEVELOPMENT & TRAINING LTD,AP16R_17378,57307.71,Programme System File
DFE,Skills Funding Agency,12/12/2016,16-18 Apprenticeships - Centralised Contract Management,Main Funding,BAE SYSTEMS PLC,AP16R_17965,25776.25,Programme System File
DFE,Skills Funding Agency,12/12/2016,16-18 Apprenticeships - Centralised Contract Management,Main Funding,BALTIC TRAINING SERVICES LTD,AP16R_17193,4963.52,Programme System File
DFE,Skills Funding Agency,12/12/2016,16-18 Apprenticeships - Centralised Contract Management,Main Funding,BARNARDOS,AP16R_17974,20180.91,Programme System File
DFE,Skills Funding Agency,12/12/2016,16-18 Apprenticeships - Centralised Contract Management,Main Funding,BASINGSTOKE YOUTH ACTION TRUST LTD,AP16R_17976,1064.65,Programme System File
DFE,Skills Funding Agency,12/12/2016,16-18 Apprenticeships - Centralised Contract Management,Main Funding,BC ARCH LTD T/A ARCH APPRENTICES,AP16R_17408,3869.02,Programme System File
DFE,Skills Funding Agency,12/12/2016,16-18 Apprenticeships - Centralised Contract Management,Main Funding,BIRMINGHAM ELECTRICAL TRAINING LTD,AP16C_4122,-313.5,Programme System File
DFE,Skills Funding Agency,12/12/2016,16-18 Apprenticeships - Centralised Contract Management,Main Funding,BIRMINGHAM ELECTRICAL TRAINING LTD,AP16R_17981,368.69,Programme System File
DFE,Skills Funding Agency,12/12/2016,16-18 Apprenticeships - Centralised Contract Management,Main Funding,BCTG LIMITED,AP16C_3637,-17698.01,Programme System File
DFE,Skills Funding Agency,12/12/2016,16-18 Apprenticeships - Centralised Contract Management,Main Funding,BCTG LIMITED,AP16R_17065,40485.21,Programme System File
DFE,Skills Funding Agency,12/12/2016,16-18 Apprenticeships - Centralised Contract Management,Main Funding,BRITISH NUCLEAR FUELS PLC,AP16R_17146,5219.02,Programme System File
DFE,Skills Funding Agency,12/12/2016,16-18 Apprenticeships - Centralised Contract Management,Main Funding,BPP HOLDINGS PLC,AP16C_4127,-1230.56,Programme System File
DFE,Skills Funding Agency,12/12/2016,16-18 Apprenticeships - Centralised Contract Management,Main Funding,BPP HOLDINGS PLC,AP16R_17987,8706.65,Programme System File
DFE,Skills Funding Agency,12/12/2016,16-18 Apprenticeships - Centralised Contract Management,Main Funding,BRITISH GAS SERVICES LIMITED,AP16R_17979,35089.27,Programme System File
DFE,Skills Funding Agency,12/12/2016,16-18 Apprenticeships - Centralised Contract Management,Main Funding,BRITISH TELECOM PLC,AP16C_3733,-6397.34,Programme System File
DFE,Skills Funding Agency,12/12/2016,16-18 Apprenticeships - Centralised Contract Management,Main Funding,BRITISH TELECOM PLC,AP16R_17299,10500.65,Programme System File
DFE,Skills Funding Agency,12/12/2016,16-18 Apprenticeships - Centralised Contract Management,Main Funding,BRINSWORTH TRAINING LIMITED,AP16R_17238,-569.65,Programme System File
DFE,Skills Funding Agency,12/12/2016,16-18 Apprenticeships - Centralised Contract Management,Main Funding,THE BRITISH RACING SCHOOL,AP16C_3791,-21882.46,Programme System File
DFE,Skills Funding Agency,12/12/2016,16-18 Apprenticeships - Centralised Contract Management,Main Funding,THE BRITISH RACING SCHOOL,AP16R_17450,157472.46,Programme System File
DFE,Skills Funding Agency,12/12/2016,16-18 Apprenticeships - Centralised Contract Management,Main Funding,APPRIS CHARITY LIMITED,AP16C_4128,-11289.58,Programme System File
DFE,Skills Funding Agency,12/12/2016,16-18 Apprenticeships - Centralised Contract Management,Main Funding,APPRIS CHARITY LIMITED,AP16R_17989,16622.55,Programme System File
DFE,Skills Funding Agency,12/12/2016,16-18 Apprenticeships - Centralised Contract Management,Main Funding,CABLECOM TRAINING LTD,AP16R_17990,-854.62,Programme System File
DFE,Skills Funding Agency,12/12/2016,16-18 Apprenticeships - Centralised Contract Management,Main Funding,CAPITAL ENGINEERING GROUP HOLDINGS LTD,AP16R_17240,14237.79,Programme System File
DFE,Skills Funding Agency,12/12/2016,16-18 Apprenticeships - Centralised Contract Management,Main Funding,CARE TRAINING EAST MIDLANDS LIMITED,AP16C_4132,-4600.56,Programme System File
DFE,Skills Funding Agency,12/12/2016,16-18 Apprenticeships - Centralised Contract Management,Main Funding,CARE TRAINING EAST MIDLANDS LIMITED,AP16R_18001,3237.26,Programme System File
DFE,Skills Funding Agency,12/12/2016,16-18 Apprenticeships - Centralised Contract Management,Main Funding,CENTRAL TRAINING ACADEMY LTD,AP16R_17995,14551.03,Programme System File
DFE,Skills Funding Agency,12/12/2016,16-18 Apprenticeships - Centralised Contract Management,Main Funding,CHAMBER TRAINING HUMBER LTD,AP16R_18006,3685.17,Programme System File
DFE,Skills Funding Agency,12/12/2016,16-18 Apprenticeships - Centralised Contract Management,Main Funding,CHEYNES MANAGEMENT LTD,AP16C_3660,-35115.12,Programme System File
DFE,Skills Funding Agency,12/12/2016,16-18 Apprenticeships - Centralised Contract Management,Main Funding,CHEYNES MANAGEMENT LTD,AP16R_17119,100674.41,Programme System File
DFE,Skills Funding Agency,12/12/2016,16-18 Apprenticeships - Centralised Contract Management,Main Funding,CHILDRENS LINKS,AP16C_4135,-2810.68,Programme System File
DFE,Skills Funding Agency,12/12/2016,16-18 Apprenticeships - Centralised Contract Management,Main Funding,CHILDRENS LINKS,AP16R_18009,3584.29,Programme System File
DFE,Skills Funding Agency,12/12/2016,16-18 Apprenticeships - Centralised Contract Management,Main Funding,CITB CONSTRUCTIONSKILLS,AP16R_18013,786605.91,Programme System File
DFE,Skills Funding Agency,12/12/2016,16-18 Apprenticeships - Centralised Contract Management,Main Funding,CLEVELAND YOUTH ASSOCIATION,AP16R_17028,1541.16,Programme System File
DFE,Skills Funding Agency,12/12/2016,16-18 Apprenticeships - Centralised Contract Management,Main Funding,COLLEGE OF ANIMAL WELFARE LTD,AP16C_4136,-19637.36,Programme System File
DFE,Skills Funding Agency,12/12/2016,16-18 Apprenticeships - Centralised Contract Management,Main Funding,COLLEGE OF ANIMAL WELFARE LTD,AP16R_18017,43540.92,Programme System File
DFE,Skills Funding Agency,12/12/2016,16-18 Apprenticeships - Centralised Contract Management,Main Funding,CRACKERJACK TRAINING LTD,AP16R_18012,3372.04,Programme System File
DFE,Skills Funding Agency,12/12/2016,16-18 Apprenticeships - Centralised Contract Management,Main Funding,LOOKFANTASTIC TRAINING LIMITED,AP16R_17169,1668.46,Programme System File
DFE,Skills Funding Agency,12/12/2016,16-18 Apprenticeships - Centralised Contract Management,Main Funding,COVENTRY & WARWICKSHIRE CHAMBERS OF COMMERCE TRAINING LIMITED,AP16R_18002,10116.06,Programme System File
DFE,Skills Funding Agency,12/12/2016,16-18 Apprenticeships - Centralised Contract Management,Main Funding,DAMAR LTD,AP16R_16804,13376.66,Programme System File
DFE,Skills Funding Agency,12/12/2016,16-18 Apprenticeships - Centralised Contract Management,Main Funding,DERBY BUSINESS COLLEGE,AP16R_16985,-1416.06,Programme System File
DFE,Skills Funding Agency,12/12/2016,16-18 Apprenticeships - Centralised Contract Management,Main Funding,EEF LTD,AP16R_17293,30989.02,Programme System File
DFE,Skills Funding Agency,12/12/2016,16-18 Apprenticeships - Centralised Contract Management,Main Funding,ECONOMIC SOLUTIONS LTD,AP16R_16933,139214.99,Programme System File
DFE,Skills Funding Agency,12/12/2016,16-18 Apprenticeships - Centralised Contract Management,Main Funding,E TRAINING LTD,AP16R_16809,3772.94,Programme System File
DFE,Skills Funding Agency,12/12/2016,16-18 Apprenticeships - Centralised Contract Management,Main Funding,EDUCATION & TRAINING SKILLS LTD,AP16C_3557,-12787.29,Programme System File
DFE,Skills Funding Agency,12/12/2016,16-18 Apprenticeships - Centralised Contract Management,Main Funding,EDUCATION & TRAINING SKILLS LTD,AP16R_16821,12788.35,Programme System File
DFE,Skills Funding Agency,12/12/2016,16-18 Apprenticeships - Centralised Contract Management,Main Funding,FNTC TRAINING & CONSULTANCY LTD,AP16R_16827,-3663.81,Programme System File
DFE,Skills Funding Agency,12/12/2016,16-18 Apprenticeships - Centralised Contract Management,Main Funding,FRANCESCO GROUP HOLDINGS LTD,AP16R_16825,2708.23,Programme System File
DFE,Skills Funding Agency,12/12/2016,16-18 Apprenticeships - Centralised Contract Management,Main Funding,KAPLAN FINANCIAL LIMITED,AP16C_4115,-33387.37,Programme System File
DFE,Skills Funding Agency,12/12/2016,16-18 Apprenticeships - Centralised Contract Management,Main Funding,KAPLAN FINANCIAL LIMITED,AP16R_17955,68711.86,Programme System File
DFE,Skills Funding Agency,12/12/2016,16-18 Apprenticeships - Centralised Contract Management,Main Funding,GEN II ENGINEERING & TECHNOLOGY TRAINING LTD,AP16C_3560,-34330.73,Programme System File
DFE,Skills Funding Agency,12/12/2016,16-18 Apprenticeships - Centralised Contract Management,Main Funding,GEN II ENGINEERING & TECHNOLOGY TRAINING LTD,AP16R_16829,124482.78,Programme System File
DFE,Skills Funding Agency,12/12/2016,16-18 Apprenticeships - Centralised Contract Management,Main Funding,GHQ TRAINING LTD,AP16R_17159,-1818.36,Programme System File
DFE,Skills Funding Agency,12/12/2016,16-18 Apprenticeships - Centralised Contract Management,Main Funding,GI GROUP RECRUITMENT LTD,AP16R_17389,-2195.61,Programme System File
DFE,Skills Funding Agency,12/12/2016,16-18 Apprenticeships - Centralised Contract Management,Main Funding,GLOUCESTERSHIRE ENGINEERING TRAINING LTD,AP16R_16834,1958.47,Programme System File
DFE,Skills Funding Agency,12/12/2016,16-18 Apprenticeships - Centralised Contract Management,Main Funding,HAIR & BEAUTY INDUSTRY TRAINING LTD,AP16R_16842,3170.78,Programme System File
DFE,Skills Funding Agency,12/12/2016,16-18 Apprenticeships - Centralised Contract Management,Main Funding,HAWK MANAGEMENT UK LTD,AP16R_17139,-13726.63,Programme System File
DFE,Skills Funding Agency,12/12/2016,16-18 Apprenticeships - Centralised Contract Management,Main Funding,HAWK MANAGEMENT UK LTD,AP16C_3671,-1366.22,Programme System File
DFE,Skills Funding Agency,12/12/2016,16-18 Apprenticeships - Centralised Contract Management,Main Funding,HAYS TRAVEL LIMITED,AP16R_17327,1335.1,Programme System File
DFE,Skills Funding Agency,12/12/2016,16-18 Apprenticeships - Centralised Contract Management,Main Funding,HEATHERCROFT TRAINING SERVICES LTD,AP16R_16839,8106.54,Programme System File
DFE,Skills Funding Agency,12/12/2016,16-18 Apprenticeships - Centralised Contract Management,Main Funding,HEALTH & SAFETY TRAINING LTD,AP16C_3768,-1679.51,Programme System File
DFE,Skills Funding Agency,12/12/2016,16-18 Apprenticeships - Centralised Contract Management,Main Funding,HEALTH & SAFETY TRAINING LTD,AP16R_17409,1679.51,Programme System File
DFE,Skills Funding Agency,12/12/2016,16-18 Apprenticeships - Centralised Contract Management,Main Funding,HEALTH EDUCATION NORTH EAST,AP16C_3764,-6020.58,Programme System File
DFE,Skills Funding Agency,12/12/2016,16-18 Apprenticeships - Centralised Contract Management,Main Funding,HEALTH EDUCATION NORTH EAST,AP16R_17392,14241.52,Programme System File
DFE,Skills Funding Agency,12/12/2016,16-18 Apprenticeships - Centralised Contract Management,Main Funding,HILLINGDON TRAINING LTD,AP16C_3563,-1683.19,Programme System File
DFE,Skills Funding Agency,12/12/2016,16-18 Apprenticeships - Centralised Contract Management,Main Funding,HILLINGDON TRAINING LTD,AP16R_16846,5902.45,Programme System File
DFE,Skills Funding Agency,12/12/2016,16-18 Apprenticeships - Centralised Contract Management,Main Funding,HIT TRAINING LTD,AP16R_17165,-29005.48,Programme System File
DFE,Skills Funding Agency,12/12/2016,16-18 Apprenticeships - Centralised Contract Management,Main Funding,HOLTS ACADEMY OF JEWELLERY LIMITED,AP16R_17432,-1017.35,Programme System File
DFE,Skills Funding Agency,12/12/2016,16-18 Apprenticeships - Centralised Contract Management,Main Funding,HOOPLE LTD,AP16R_17371,1455.49,Programme System File
DFE,Skills Funding Agency,12/12/2016,16-18 Apprenticeships - Centralised Contract Management,Main Funding,BABCOCK TRAINING LTD,AP16R_16847,117390.97,Programme System File
DFE,Skills Funding Agency,12/12/2016,16-18 Apprenticeships - Centralised Contract Management,Main Funding,HOUSE OF CLIVE HAIR & BEAUTY LTD,AP16R_17000,688.31,Programme System File
DFE,Skills Funding Agency,12/12/2016,16-18 Apprenticeships - Centralised Contract Management,Main Funding,RIVERSIDE TRAINING LTD,AP16C_3621,-7356.44,Programme System File
DFE,Skills Funding Agency,12/12/2016,16-18 Apprenticeships - Centralised Contract Management,Main Funding,RIVERSIDE TRAINING LTD,AP16R_17008,1652.97,Programme System File
DFE,Skills Funding Agency,12/12/2016,16-18 Apprenticeships - Centralised Contract Management,Main Funding,HUDDERSFIELD TEXTILE TRAINING LTD,AP16R_16857,5610.86,Programme System File
DFE,Skills Funding Agency,12/12/2016,16-18 Apprenticeships - Centralised Contract Management,Main Funding,HULL BUSINESS TRAINING CENTRE LTD,AP16R_16866,2958.89,Programme System File
DFE,Skills Funding Agency,12/12/2016,16-18 Apprenticeships - Centralised Contract Management,Main Funding,HUMBERSIDE ENGINEERING TRAINING ASSOCIATION LTD,AP16R_16851,27777.02,Programme System File
DFE,Skills Funding Agency,12/12/2016,16-18 Apprenticeships - Centralised Contract Management,Main Funding,HUMBER LEARNING CONSORTIUM,AP16C_3564,-1346.65,Programme System File
DFE,Skills Funding Agency,12/12/2016,16-18 Apprenticeships - Centralised Contract Management,Main Funding,HUMBER LEARNING CONSORTIUM,AP16R_16854,4302.33,Programme System File
DFE,Skills Funding Agency,12/12/2016,16-18 Apprenticeships - Centralised Contract Management,Main Funding,INTEC BUSINESS COLLEGES PLC,AP16R_16877,-4312.27,Programme System File
DFE,Skills Funding Agency,12/12/2016,16-18 Apprenticeships - Centralised Contract Management,Main Funding,IMPACT LEARNING & DATA SOLUTIONS LTD,AP16C_3715,-3576.62,Programme System File
DFE,Skills Funding Agency,12/12/2016,16-18 Apprenticeships - Centralised Contract Management,Main Funding,IMPACT LEARNING & DATA SOLUTIONS LTD,AP16R_17251,9333.09,Programme System File
DFE,Skills Funding Agency,12/12/2016,16-18 Apprenticeships - Centralised Contract Management,Main Funding,INTER TRAINING SERVICES LTD,AP16R_16883,1658.23,Programme System File
DFE,Skills Funding Agency,12/12/2016,16-18 Apprenticeships - Centralised Contract Management,Main Funding,INTUITIONS LTD,AP16R_16869,2006.23,Programme System File
DFE,Skills Funding Agency,12/12/2016,16-18 Apprenticeships - Centralised Contract Management,Main Funding,INTROTRAIN (ACE) LTD,AP16C_3756,-22511.43,Programme System File
DFE,Skills Funding Agency,12/12/2016,16-18 Apprenticeships - Centralised Contract Management,Main Funding,INTROTRAIN (ACE) LTD,AP16R_17364,24581.56,Programme System File
DFE,Skills Funding Agency,12/12/2016,16-18 Apprenticeships - Centralised Contract Management,Main Funding,SMART TRAINING & RECRUITMENT LTD,AP16C_3628,-17870.35,Programme System File
DFE,Skills Funding Agency,12/12/2016,16-18 Apprenticeships - Centralised Contract Management,Main Funding,SMART TRAINING & RECRUITMENT LTD,AP16R_17032,3140.39,Programme System File
DFE,Skills Funding Agency,12/12/2016,16-18 Apprenticeships - Centralised Contract Management,Main Funding,IPS INTERNATIONAL LTD,AP16R_16873,20101.64,Programme System File
DFE,Skills Funding Agency,12/12/2016,16-18 Apprenticeships - Centralised Contract Management,Main Funding,ITEC NORTH EAST LTD,AP16R_16879,5186.2,Programme System File
DFE,Skills Funding Agency,12/12/2016,16-18 Apprenticeships - Centralised Contract Management,Main Funding,JARVIS TRAINING MANAGEMENT LTD,AP16R_16882,2609.47,Programme System File
DFE,Skills Funding Agency,12/12/2016,16-18 Apprenticeships - Centralised Contract Management,Main Funding,JBC COMPUTER TRAINING LIMITED,AP16C_3695,-6335.78,Programme System File
DFE,Skills Funding Agency,12/12/2016,16-18 Apprenticeships - Centralised Contract Management,Main Funding,JBC COMPUTER TRAINING LIMITED,AP16R_17200,6336.33,Programme System File
DFE,Skills Funding Agency,12/12/2016,16-18 Apprenticeships - Centralised Contract Management,Main Funding,K & G HAIR LLP,AP16R_17353,480.48,Programme System File
DFE,Skills Funding Agency,12/12/2016,16-18 Apprenticeships - Centralised Contract Management,Main Funding,ASPIRATION TRAINING LTD,AP16R_17951,-2047.61,Programme System File
DFE,Skills Funding Agency,12/12/2016,16-18 Apprenticeships - Centralised Contract Management,Main Funding,KEITS TRAINING SERVICES LTD,AP16R_16903,2193.28,Programme System File
DFE,Skills Funding Agency,12/12/2016,16-18 Apprenticeships - Centralised Contract Management,Main Funding,BRIGHT HORIZONS FAMILY SOLUTIONS LTD,AP16R_16895,3761.16,Programme System File
DFE,Skills Funding Agency,12/12/2016,16-18 Apprenticeships - Centralised Contract Management,Main Funding,KWIK FIT GB LTD,AP16R_16906,38504.87,Programme System File
DFE,Skills Funding Agency,12/12/2016,16-18 Apprenticeships - Centralised Contract Management,Main Funding,MARITIME & ENGINEERING COLLEGE NORTH WEST,AP16R_16911,-1226.7,Programme System File
DFE,Skills Funding Agency,12/12/2016,16-18 Apprenticeships - Centralised Contract Management,Main Funding,JOHN LAING TRAINING LTD,AP16R_16891,2445.07,Programme System File
DFE,Skills Funding Agency,12/12/2016,16-18 Apprenticeships - Centralised Contract Management,Main Funding,LAWN TENNIS ASSOCIATION LTD,AP16R_17254,18783.41,Programme System File
DFE,Skills Funding Agency,12/12/2016,16-18 Apprenticeships - Centralised Contract Management,Main Funding,LEARNING CURVE JAA LIMITED,AP16R_17123,67947.34,Programme System File
DFE,Skills Funding Agency,12/12/2016,16-18 Apprenticeships - Centralised Contract Management,Main Funding,LESLIE FRANCES HAIR FASHIONS LTD,AP16C_3592,-2834,Programme System File
DFE,Skills Funding Agency,12/12/2016,16-18 Apprenticeships - Centralised Contract Management,Main Funding,LESLIE FRANCES HAIR FASHIONS LTD,AP16R_16917,2986.59,Programme System File
DFE,Skills Funding Agency,12/12/2016,16-18 Apprenticeships - Centralised Contract Management,Main Funding,LAGAT LTD,AP16R_16907,-1319.29,Programme System File
DFE,Skills Funding Agency,12/12/2016,16-18 Apprenticeships - Centralised Contract Management,Main Funding,LONDON SKILLS & DEVELOPMENT NETWORK LIMITED,AP16C_3714,-1441.72,Programme System File
DFE,Skills Funding Agency,12/12/2016,16-18 Apprenticeships - Centralised Contract Management,Main Funding,LONDON SKILLS & DEVELOPMENT NETWORK LIMITED,AP16R_17250,1572.3,Programme System File
DFE,Skills Funding Agency,12/12/2016,16-18 Apprenticeships - Centralised Contract Management,Main Funding,LUNN POLY LTD,AP16R_16931,10363.1,Programme System File
DFE,Skills Funding Agency,12/12/2016,16-18 Apprenticeships - Centralised Contract Management,Main Funding,MERCIA PARTNERSHIP UK LTD,AP16R_16935,2461.37,Programme System File
DFE,Skills Funding Agency,12/12/2016,16-18 Apprenticeships - Centralised Contract Management,Main Funding,MERCEDES-BENZ UK LTD,AP16R_17253,1137.4,Programme System File
DFE,Skills Funding Agency,12/12/2016,16-18 Apprenticeships - Centralised Contract Management,Main Funding,MICHAEL JOHN OF LIVERPOOL,AP16C_3688,-4457.48,Programme System File
DFE,Skills Funding Agency,12/12/2016,16-18 Apprenticeships - Centralised Contract Management,Main Funding,MICHAEL JOHN OF LIVERPOOL,AP16R_17187,19413.75,Programme System File
DFE,Skills Funding Agency,12/12/2016,16-18 Apprenticeships - Centralised Contract Management,Main Funding,MICHAELJOHN TRAINING,AP16R_17170,4175.43,Programme System File
DFE,Skills Funding Agency,12/12/2016,16-18 Apprenticeships - Centralised Contract Management,Main Funding,MITIE GROUP PLC,AP16R_17277,123.06,Programme System File
DFE,Skills Funding Agency,12/12/2016,16-18 Apprenticeships - Centralised Contract Management,Main Funding,MOMENTUM TRAINING & CONSULTANCY LTD,AP16R_17396,4459.02,Programme System File
DFE,Skills Funding Agency,12/12/2016,16-18 Apprenticeships - Centralised Contract Management,Main Funding,NACRO,AP16R_16953,157510.71,Programme System File
DFE,Skills Funding Agency,12/12/2016,16-18 Apprenticeships - Centralised Contract Management,Main Funding,YMCA TRAINING,AP16R_17096,12037.05,Programme System File
DFE,Skills Funding Agency,12/12/2016,16-18 Apprenticeships - Centralised Contract Management,Main Funding,NORTH EAST EMPLOYMENT & TRAINING AGENCY LTD,AP16C_3602,-6074.61,Programme System File
DFE,Skills Funding Agency,12/12/2016,16-18 Apprenticeships - Centralised Contract Management,Main Funding,NORTH EAST EMPLOYMENT & TRAINING AGENCY LTD,AP16R_16954,6074.61,Programme System File
DFE,Skills Funding Agency,12/12/2016,16-18 Apprenticeships - Centralised Contract Management,Main Funding,NETA TRAINING TRUST,AP16R_16957,265.07,Programme System File
DFE,Skills Funding Agency,12/12/2016,16-18 Apprenticeships - Centralised Contract Management,Main Funding,NEXT RETAIL LTD,AP16R_17390,2446.59,Programme System File
DFE,Skills Funding Agency,12/12/2016,16-18 Apprenticeships - Centralised Contract Management,Main Funding,NORTH WEST COMMUNITY SERVICES TRAINING LIMITED,AP16R_16964,5321.78,Programme System File
DFE,Skills Funding Agency,12/12/2016,16-18 Apprenticeships - Centralised Contract Management,Main Funding,DERBYSHIRE & NOTTINGHAMSHIRE CHAMBER OF COMMERCE & INDUSTRY,AP16R_16808,1075.62,Programme System File
DFE,Skills Funding Agency,12/12/2016,16-18 Apprenticeships - Centralised Contract Management,Main Funding,NORTHERN CARE TRAINING LTD,AP16R_17182,-3037.46,Programme System File
DFE,Skills Funding Agency,12/12/2016,16-18 Apprenticeships - Centralised Contract Management,Main Funding,NORTHERN CARE TRAINING LTD,AP16C_3684,-2316.58,Programme System File
DFE,Skills Funding Agency,12/12/2016,16-18 Apprenticeships - Centralised Contract Management,Main Funding,NORTH LIVERPOOL REGENERATION COMPANY LTD,AP16C_3703,-12572.1,Programme System File
DFE,Skills Funding Agency,12/12/2016,16-18 Apprenticeships - Centralised Contract Management,Main Funding,NORTH LIVERPOOL REGENERATION COMPANY LTD,AP16R_17218,77745.01,Programme System File
DFE,Skills Funding Agency,12/12/2016,16-18 Apprenticeships - Centralised Contract Management,Main Funding,NOTTINGHAMSHIRE TRAINING NETWORK,AP16R_16975,1296.49,Programme System File
DFE,Skills Funding Agency,12/12/2016,16-18 Apprenticeships - Centralised Contract Management,Main Funding,VOLUNTARY AND COMMUNITY SECTOR LEARNING AND SKILLS CONSORTIUM,AP16R_16973,1524.83,Programme System File
DFE,Skills Funding Agency,12/12/2016,16-18 Apprenticeships - Centralised Contract Management,Main Funding,STAFF SELECT LTD,AP16C_3735,-4312.53,Programme System File
DFE,Skills Funding Agency,12/12/2016,16-18 Apprenticeships - Centralised Contract Management,Main Funding,STAFF SELECT LTD,AP16R_17305,36455.37,Programme System File
DFE,Skills Funding Agency,12/12/2016,16-18 Apprenticeships - Centralised Contract Management,Main Funding,OLDHAM ENGINEERING GROUP TRAINING ASSOCIATION LTD,AP16R_16978,2100.02,Programme System File
DFE,Skills Funding Agency,12/12/2016,16-18 Apprenticeships - Centralised Contract Management,Main Funding,PARTNERSHIP DEVELOPMENT SOLUTIONS LTD,AP16C_3741,-4137.99,Programme System File
DFE,Skills Funding Agency,12/12/2016,16-18 Apprenticeships - Centralised Contract Management,Main Funding,PARTNERSHIP DEVELOPMENT SOLUTIONS LTD,AP16R_17311,34790.27,Programme System File
DFE,Skills Funding Agency,12/12/2016,16-18 Apprenticeships - Centralised Contract Management,Main Funding,PEOPLE & BUSINESS DEVELOPMENT LTD,AP16C_3701,-12516.8,Programme System File
DFE,Skills Funding Agency,12/12/2016,16-18 Apprenticeships - Centralised Contract Management,Main Funding,PEOPLE & BUSINESS DEVELOPMENT LTD,AP16R_17214,12516.8,Programme System File
DFE,Skills Funding Agency,12/12/2016,16-18 Apprenticeships - Centralised Contract Management,Main Funding,PETA LTD,AP16C_3615,-2268.59,Programme System File
DFE,Skills Funding Agency,12/12/2016,16-18 Apprenticeships - Centralised Contract Management,Main Funding,PETA LTD,AP16R_16989,5000.15,Programme System File
DFE,Skills Funding Agency,12/12/2016,16-18 Apprenticeships - Centralised Contract Management,Main Funding,PORTSMOUTH CITY COUNCIL,AP16C_3950,-4517.46,Programme System File
DFE,Skills Funding Agency,12/12/2016,16-18 Apprenticeships - Centralised Contract Management,Main Funding,PORTSMOUTH CITY COUNCIL,AP16R_17690,4517.46,Programme System File
DFE,Skills Funding Agency,12/12/2016,16-18 Apprenticeships - Centralised Contract Management,Main Funding,PROJECT MANAGEMENT STAFFORDSHIRE LTD,AP16C_3618,-9510.9,Programme System File
DFE,Skills Funding Agency,12/12/2016,16-18 Apprenticeships - Centralised Contract Management,Main Funding,PROJECT MANAGEMENT STAFFORDSHIRE LTD,AP16R_16998,18378.45,Programme System File
DFE,Skills Funding Agency,12/12/2016,16-18 Apprenticeships - Centralised Contract Management,Main Funding,PROSPECTS COLLEGE OF ADVANCED TECHNOLOGY,AP16R_17912,-18653.38,Programme System File
DFE,Skills Funding Agency,12/12/2016,16-18 Apprenticeships - Centralised Contract Management,Main Funding,SKILLS TO GROUP LTD,AP16C_3625,-54074.9,Programme System File
DFE,Skills Funding Agency,12/12/2016,16-18 Apprenticeships - Centralised Contract Management,Main Funding,SKILLS TO GROUP LTD,AP16R_17017,-8393.54,Programme System File
DFE,Skills Funding Agency,12/12/2016,16-18 Apprenticeships - Centralised Contract Management,Main Funding,PROVQ LIMITED,AP16C_3709,-35495.33,Programme System File
DFE,Skills Funding Agency,12/12/2016,16-18 Apprenticeships - Centralised Contract Management,Main Funding,PROVQ LIMITED,AP16R_17244,49010.02,Programme System File
DFE,Skills Funding Agency,12/12/2016,16-18 Apprenticeships - Centralised Contract Management,Main Funding,QA LIMITED,AP16R_16887,507638.62,Programme System File
DFE,Skills Funding Agency,12/12/2016,16-18 Apprenticeships - Centralised Contract Management,Main Funding,QINETIQ PLC,AP16R_16820,1786.43,Programme System File
DFE,Skills Funding Agency,12/12/2016,16-18 Apprenticeships - Centralised Contract Management,Main Funding,RATHBONE TRAINING,AP16R_17375,17844.48,Programme System File
DFE,Skills Funding Agency,12/12/2016,16-18 Apprenticeships - Centralised Contract Management,Main Funding,RAYTHEON SYSTEMS LTD,AP16R_17282,-215.13,Programme System File
DFE,Skills Funding Agency,12/12/2016,16-18 Apprenticeships - Centralised Contract Management,Main Funding,RELEASE POTENTIAL LIMITED,AP16R_17290,-3661.46,Programme System File
DFE,Skills Funding Agency,12/12/2016,16-18 Apprenticeships - Centralised Contract Management,Main Funding,RESOURCES N E LTD,AP16R_17279,1106.79,Programme System File
DFE,Skills Funding Agency,12/12/2016,16-18 Apprenticeships - Centralised Contract Management,Main Funding,REWARDS TRAINING RECRUITMENT CONSULTANCY LTD,AP16R_17003,18013.25,Programme System File
DFE,Skills Funding Agency,12/12/2016,16-18 Apprenticeships - Centralised Contract Management,Main Funding,ROLLS ROYCE PLC,AP16R_17020,13990.27,Programme System File
DFE,Skills Funding Agency,12/12/2016,16-18 Apprenticeships - Centralised Contract Management,Main Funding,ROLLS ROYCE POWER ENGINEERING PLC,AP16R_17178,16519.09,Programme System File
DFE,Skills Funding Agency,12/12/2016,16-18 Apprenticeships - Centralised Contract Management,Main Funding,MINISTRY OF DEFENCE,AP16C_3752,-696594.76,Programme System File
DFE,Skills Funding Agency,12/12/2016,16-18 Apprenticeships - Centralised Contract Management,Main Funding,MINISTRY OF DEFENCE,AP16R_17355,696594.76,Programme System File
DFE,Skills Funding Agency,12/12/2016,16-18 Apprenticeships - Centralised Contract Management,Main Funding,MINISTRY OF DEFENCE,AP16C_3749,-254934.31,Programme System File
DFE,Skills Funding Agency,12/12/2016,16-18 Apprenticeships - Centralised Contract Management,Main Funding,MINISTRY OF DEFENCE,AP16R_17346,254934.31,Programme System File
DFE,Skills Funding Agency,12/12/2016,16-18 Apprenticeships - Centralised Contract Management,Main Funding,SAKS EDUCATION LTD,AP16R_17025,-5608.96,Programme System File
DFE,Skills Funding Agency,12/12/2016,16-18 Apprenticeships - Centralised Contract Management,Main Funding,HAIR ACADEMY SOUTH WEST LIMITED,AP16R_16835,711.88,Programme System File
DFE,Skills Funding Agency,12/12/2016,16-18 Apprenticeships - Centralised Contract Management,Main Funding,SBC TRAINING LIMITED,AP16R_17357,-1469.43,Programme System File
DFE,Skills Funding Agency,12/12/2016,16-18 Apprenticeships - Centralised Contract Management,Main Funding,SIEMENS PLC,AP16C_3682,-217243.48,Programme System File
DFE,Skills Funding Agency,12/12/2016,16-18 Apprenticeships - Centralised Contract Management,Main Funding,SIEMENS PLC,AP16R_17179,252977.91,Programme System File
DFE,Skills Funding Agency,12/12/2016,16-18 Apprenticeships - Centralised Contract Management,Main Funding,STEPS TO WORK (WALSALL) LIMITED,AP16C_3773,-337.01,Programme System File
DFE,Skills Funding Agency,12/12/2016,16-18 Apprenticeships - Centralised Contract Management,Main Funding,STEPS TO WORK (WALSALL) LIMITED,AP16R_17419,749.51,Programme System File
DFE,Skills Funding Agency,12/12/2016,16-18 Apprenticeships - Centralised Contract Management,Main Funding,SKILLS FOR HEALTH LTD,AP16R_17382,2138.31,Programme System File
DFE,Skills Funding Agency,12/12/2016,16-18 Apprenticeships - Centralised Contract Management,Main Funding,SOMERSET SKILLS & LEARNING CIC,AP16R_17394,-332.75,Programme System File
DFE,Skills Funding Agency,12/12/2016,16-18 Apprenticeships - Centralised Contract Management,Main Funding,SETA LTD,AP16R_17026,987.64,Programme System File
DFE,Skills Funding Agency,12/12/2016,16-18 Apprenticeships - Centralised Contract Management,Main Funding,NORTHERN RACING COLLEGE,AP16R_16970,6312.4,Programme System File
DFE,Skills Funding Agency,12/12/2016,16-18 Apprenticeships - Centralised Contract Management,Main Funding,SPECSAVERS OPTICAL SUPERSTORES LTD,AP16R_17422,44116.16,Programme System File
DFE,Skills Funding Agency,12/12/2016,16-18 Apprenticeships - Centralised Contract Management,Main Funding,SPRINGBOARD SUNDERLAND TRUST,AP16C_3631,-18443.59,Programme System File
DFE,Skills Funding Agency,12/12/2016,16-18 Apprenticeships - Centralised Contract Management,Main Funding,SPRINGBOARD SUNDERLAND TRUST,AP16R_17038,40690.71,Programme System File
DFE,Skills Funding Agency,12/12/2016,16-18 Apprenticeships - Centralised Contract Management,Main Funding,SSE SERVICES PLC,AP16C_3721,-11206.51,Programme System File
DFE,Skills Funding Agency,12/12/2016,16-18 Apprenticeships - Centralised Contract Management,Main Funding,SSE SERVICES PLC,AP16R_17261,9487.59,Programme System File
DFE,Skills Funding Agency,12/12/2016,16-18 Apprenticeships - Centralised Contract Management,Main Funding,METSKILL LTD,AP16R_16936,24763.9,Programme System File
DFE,Skills Funding Agency,12/12/2016,16-18 Apprenticeships - Centralised Contract Management,Main Funding,STRAIGHT A TRAINING LTD,AP16R_17051,117.98,Programme System File
DFE,Skills Funding Agency,12/12/2016,16-18 Apprenticeships - Centralised Contract Management,Main Funding,SOUTH WEST ASSOCIATION OF TRAINING PROVIDERS LIMITED,AP16R_17340,11311.97,Programme System File
DFE,Skills Funding Agency,12/12/2016,16-18 Apprenticeships - Centralised Contract Management,Main Funding,SW DURHAM TRAINING LTD,AP16R_17036,32210.16,Programme System File
DFE,Skills Funding Agency,12/12/2016,16-18 Apprenticeships - Centralised Contract Management,Main Funding,TEAM ENTERPRISES LTD,AP16R_17056,2980.86,Programme System File
DFE,Skills Funding Agency,12/12/2016,16-18 Apprenticeships - Centralised Contract Management,Main Funding,TTE TRAINING LTD,AP16R_16960,891.76,Programme System File
DFE,Skills Funding Agency,12/12/2016,16-18 Apprenticeships - Centralised Contract Management,Main Funding,TTE TECHNICAL TRAINING GROUP,AP16C_3654,-57648.1,Programme System File
DFE,Skills Funding Agency,12/12/2016,16-18 Apprenticeships - Centralised Contract Management,Main Funding,TTE TECHNICAL TRAINING GROUP,AP16R_17084,32423.8,Programme System File
DFE,Skills Funding Agency,12/12/2016,16-18 Apprenticeships - Centralised Contract Management,Main Funding,TESCO STORES LTD,AP16R_17061,-744.66,Programme System File
DFE,Skills Funding Agency,12/12/2016,16-18 Apprenticeships - Centralised Contract Management,Main Funding,DERBYSHIRE NETWORK,AP16C_3643,-6672.29,Programme System File
DFE,Skills Funding Agency,12/12/2016,16-18 Apprenticeships - Centralised Contract Management,Main Funding,DERBYSHIRE NETWORK,AP16R_17071,20711.69,Programme System File
DFE,Skills Funding Agency,12/12/2016,16-18 Apprenticeships - Centralised Contract Management,Main Funding,THOMAS COOK GROUP UK LIMITED,AP16C_3748,-6035.28,Programme System File
DFE,Skills Funding Agency,12/12/2016,16-18 Apprenticeships - Centralised Contract Management,Main Funding,THOMAS COOK GROUP UK LIMITED,AP16R_17345,44010.89,Programme System File
DFE,Skills Funding Agency,12/12/2016,16-18 Apprenticeships - Centralised Contract Management,Main Funding,TOTAL PEOPLE LTD,AP16R_17221,33864.51,Programme System File
DFE,Skills Funding Agency,12/12/2016,16-18 Apprenticeships - Centralised Contract Management,Main Funding,TOYOTAGB PLC,AP16R_17156,1720.39,Programme System File
DFE,Skills Funding Agency,12/12/2016,16-18 Apprenticeships - Centralised Contract Management,Main Funding,TRAINING 2000 LTD,AP16R_17088,9958.58,Programme System File
DFE,Skills Funding Agency,12/12/2016,16-18 Apprenticeships - Centralised Contract Management,Main Funding,TRAINING FOR TODAY LTD,AP16R_17093,-25636.27,Programme System File
DFE,Skills Funding Agency,12/12/2016,16-18 Apprenticeships - Centralised Contract Management,Main Funding,TRAINING SERVICES 2000 LTD,AP16C_3649,-4383.86,Programme System File
DFE,Skills Funding Agency,12/12/2016,16-18 Apprenticeships - Centralised Contract Management,Main Funding,TRAINING SERVICES 2000 LTD,AP16R_17079,11065.94,Programme System File
DFE,Skills Funding Agency,12/12/2016,16-18 Apprenticeships - Centralised Contract Management,Main Funding,TRAINING & RECRUITMENT PARTNERSHIP LTD,AP16R_17086,2358.87,Programme System File
DFE,Skills Funding Agency,12/12/2016,16-18 Apprenticeships - Centralised Contract Management,Main Funding,TYNE NORTH TRAINING LTD,AP16R_17090,1679.08,Programme System File
DFE,Skills Funding Agency,12/12/2016,16-18 Apprenticeships - Centralised Contract Management,Main Funding,URBAN FUTURES LONDON LIMITED,AP16R_17413,17261.36,Programme System File
DFE,Skills Funding Agency,12/12/2016,16-18 Apprenticeships - Centralised Contract Management,Main Funding,UK TRAINING & DEVELOPMENT LTD,AP16R_17091,98.62,Programme System File
DFE,Skills Funding Agency,12/12/2016,16-18 Apprenticeships - Centralised Contract Management,Main Funding,UNITED UTILITIES WATER LTD,AP16C_3792,-1056.49,Programme System File
DFE,Skills Funding Agency,12/12/2016,16-18 Apprenticeships - Centralised Contract Management,Main Funding,UNITED UTILITIES WATER LTD,AP16R_17451,25153.17,Programme System File
DFE,Skills Funding Agency,12/12/2016,16-18 Apprenticeships - Centralised Contract Management,Main Funding,UNIVERSITY OF SHEFFIELD,AP16R_17813,11671.66,Programme System File
DFE,Skills Funding Agency,12/12/2016,16-18 Apprenticeships - Centralised Contract Management,Main Funding,VECTOR AEROSPACE INTERNATIONAL,AP16C_3726,-36109.09,Programme System File
DFE,Skills Funding Agency,12/12/2016,16-18 Apprenticeships - Centralised Contract Management,Main Funding,VECTOR AEROSPACE INTERNATIONAL,AP16R_17278,36109.09,Programme System File
DFE,Skills Funding Agency,12/12/2016,16-18 Apprenticeships - Centralised Contract Management,Main Funding,VEOLIA ENVIRONNEMENT DEVELOPMENT CENTRE LTD,AP16C_3691,-2843.74,Programme System File
DFE,Skills Funding Agency,12/12/2016,16-18 Apprenticeships - Centralised Contract Management,Main Funding,VEOLIA ENVIRONNEMENT DEVELOPMENT CENTRE LTD,AP16R_17192,8156.78,Programme System File
DFE,Skills Funding Agency,12/12/2016,16-18 Apprenticeships - Centralised Contract Management,Main Funding,VIRTUAL COLLEGE GROUP PLC,AP16C_3645,-22158.6,Programme System File
DFE,Skills Funding Agency,12/12/2016,16-18 Apprenticeships - Centralised Contract Management,Main Funding,VIRTUAL COLLEGE GROUP PLC,AP16R_17073,22158.6,Programme System File
DFE,Skills Funding Agency,12/12/2016,16-18 Apprenticeships - Centralised Contract Management,Main Funding,VIRGIN MEDIA LTD,AP16C_3724,-1940.03,Programme System File
DFE,Skills Funding Agency,12/12/2016,16-18 Apprenticeships - Centralised Contract Management,Main Funding,VIRGIN MEDIA LTD,AP16R_17275,11823.15,Programme System File
DFE,Skills Funding Agency,12/12/2016,16-18 Apprenticeships - Centralised Contract Management,Main Funding,VISION EXPRESS (UK) LIMITED,AP16R_17388,10475.15,Programme System File
DFE,Skills Funding Agency,12/12/2016,16-18 Apprenticeships - Centralised Contract Management,Main Funding,WEST BERKSHIRE TRAINING CONSORTIUM,AP16R_17109,11839,Programme System File
DFE,Skills Funding Agency,12/12/2016,16-18 Apprenticeships - Centralised Contract Management,Main Funding,WEBS TRAINING LTD,AP16R_17098,3286.59,Programme System File
DFE,Skills Funding Agency,12/12/2016,16-18 Apprenticeships - Centralised Contract Management,Main Funding,WEST ANGLIA TRAINING ASSOCIATION LIMITED,AP16R_17105,713.24,Programme System File
DFE,Skills Funding Agency,12/12/2016,16-18 Apprenticeships - Centralised Contract Management,Main Funding,WEST YORKSHIRE LEARNING PROVIDERS LTD,AP16R_17125,4687.95,Programme System File
DFE,Skills Funding Agency,12/12/2016,16-18 Apprenticeships - Centralised Contract Management,Main Funding,WALTHAM FOREST CHAMBER OF COMMERCE TRAINING TRUST LTD,AP16C_3657,-10159.63,Programme System File
DFE,Skills Funding Agency,12/12/2016,16-18 Apprenticeships - Centralised Contract Management,Main Funding,WALTHAM FOREST CHAMBER OF COMMERCE TRAINING TRUST LTD,AP16R_17095,15134.32,Programme System File
DFE,Skills Funding Agency,12/12/2016,16-18 Apprenticeships - Centralised Contract Management,Main Funding,WINCANTON GROUP LTD,AP16C_3782,-2250.15,Programme System File
DFE,Skills Funding Agency,12/12/2016,16-18 Apprenticeships - Centralised Contract Management,Main Funding,WINCANTON GROUP LTD,AP16R_17437,2250.15,Programme System File
DFE,Skills Funding Agency,12/12/2016,16-18 Apprenticeships - Centralised Contract Management,Main Funding,XTP INTERNATIONAL LTD,AP16C_3610,-2883.75,Programme System File
DFE,Skills Funding Agency,12/12/2016,16-18 Apprenticeships - Centralised Contract Management,Main Funding,XTP INTERNATIONAL LTD,AP16R_16986,3246.32,Programme System File
DFE,Skills Funding Agency,12/12/2016,16-18 Apprenticeships - Centralised Contract Management,Main Funding,YORKSHIRE COLLEGE OF BEAUTY LTD,AP16R_17129,9573.1,Programme System File
DFE,Skills Funding Agency,12/12/2016,16-18 Apprenticeships - Centralised Contract Management,Main Funding,YORKSHIRE TRAINING PARTNERSHIP LTD,AP16R_17110,5641.47,Programme System File
DFE,Skills Funding Agency,12/12/2016,16-18 Apprenticeships - Centralised Contract Management,Main Funding,YOUNGSAVE CO LTD,AP16R_16949,-3919.82,Programme System File
DFE,Skills Funding Agency,12/12/2016,16-18 Apprenticeships - Centralised Contract Management,Main Funding,ABINGDON & WITNEY COLLEGE,AP16R_16796,7627.12,Programme System File
DFE,Skills Funding Agency,12/12/2016,16-18 Apprenticeships - Centralised Contract Management,Main Funding,ACCRINGTON & ROSSENDALE COLLEGE,AP16C_3802,-21464.91,Programme System File
DFE,Skills Funding Agency,12/12/2016,16-18 Apprenticeships - Centralised Contract Management,Main Funding,ACCRINGTON & ROSSENDALE COLLEGE,AP16R_17529,57035.81,Programme System File
DFE,Skills Funding Agency,12/12/2016,16-18 Apprenticeships - Centralised Contract Management,Main Funding,AMERSHAM & WYCOMBE COLLEGE,AP16C_3549,-83609.89,Programme System File
DFE,Skills Funding Agency,12/12/2016,16-18 Apprenticeships - Centralised Contract Management,Main Funding,AMERSHAM & WYCOMBE COLLEGE,AP16R_16880,83651.28,Programme System File
DFE,Skills Funding Agency,12/12/2016,16-18 Apprenticeships - Centralised Contract Management,Main Funding,ASHTON UNDER LYNE SIXTH FORM COLLEGE,AP16R_17465,85.31,Programme System File
DFE,Skills Funding Agency,12/12/2016,16-18 Apprenticeships - Centralised Contract Management,Main Funding,ASKHAM BRYAN COLLEGE,AP16C_3664,-159504.88,Programme System File
DFE,Skills Funding Agency,12/12/2016,16-18 Apprenticeships - Centralised Contract Management,Main Funding,ASKHAM BRYAN COLLEGE,AP16R_17203,166174.12,Programme System File
DFE,Skills Funding Agency,12/12/2016,16-18 Apprenticeships - Centralised Contract Management,Main Funding,AYLESBURY COLLEGE,AP16C_3817,-5204.77,Programme System File
DFE,Skills Funding Agency,12/12/2016,16-18 Apprenticeships - Centralised Contract Management,Main Funding,AYLESBURY COLLEGE,AP16R_17489,48972.17,Programme System File
DFE,Skills Funding Agency,12/12/2016,16-18 Apprenticeships - Centralised Contract Management,Main Funding,BARNFIELD COLLEGE,AP16C_3836,-19460.37,Programme System File
DFE,Skills Funding Agency,12/12/2016,16-18 Apprenticeships - Centralised Contract Management,Main Funding,BARNFIELD COLLEGE,AP16R_17514,65884.13,Programme System File
DFE,Skills Funding Agency,12/12/2016,16-18 Apprenticeships - Centralised Contract Management,Main Funding,BARKING & DAGENHAM COLLEGE,AP16C_3845,-63307.92,Programme System File
DFE,Skills Funding Agency,12/12/2016,16-18 Apprenticeships - Centralised Contract Management,Main Funding,BARKING & DAGENHAM COLLEGE,AP16R_17530,151222.99,Programme System File
DFE,Skills Funding Agency,12/12/2016,16-18 Apprenticeships - Centralised Contract Management,Main Funding,BASINGSTOKE COLLEGE,AP16C_3884,-18359.57,Programme System File
DFE,Skills Funding Agency,12/12/2016,16-18 Apprenticeships - Centralised Contract Management,Main Funding,BASINGSTOKE COLLEGE,AP16R_17588,59131.91,Programme System File
DFE,Skills Funding Agency,12/12/2016,16-18 Apprenticeships - Centralised Contract Management,Main Funding,BLACKBURN COLLEGE,AP16R_17748,-688.07,Programme System File
DFE,Skills Funding Agency,12/12/2016,16-18 Apprenticeships - Centralised Contract Management,Main Funding,BEDFORD COLLEGE,AP16R_17616,41478.85,Programme System File
DFE,Skills Funding Agency,12/12/2016,16-18 Apprenticeships - Centralised Contract Management,Main Funding,BEXLEY COLLEGE,AP16C_3911,-8227.44,Programme System File
DFE,Skills Funding Agency,12/12/2016,16-18 Apprenticeships - Centralised Contract Management,Main Funding,BEXLEY COLLEGE,AP16R_17627,32303.92,Programme System File
DFE,Skills Funding Agency,12/12/2016,16-18 Apprenticeships - Centralised Contract Management,Main Funding,EAST RIDING COLLEGE,AP16C_3822,-3357.6,Programme System File
DFE,Skills Funding Agency,12/12/2016,16-18 Apprenticeships - Centralised Contract Management,Main Funding,EAST RIDING COLLEGE,AP16R_17490,38065.7,Programme System File
DFE,Skills Funding Agency,12/12/2016,16-18 Apprenticeships - Centralised Contract Management,Main Funding,BEXHILL COLLEGE,AP16R_17609,3768.05,Programme System File
DFE,Skills Funding Agency,12/12/2016,16-18 Apprenticeships - Centralised Contract Management,Main Funding,BLACKPOOL & FLYDE COLLEGE,AP16C_4005,-22327.15,Programme System File
DFE,Skills Funding Agency,12/12/2016,16-18 Apprenticeships - Centralised Contract Management,Main Funding,BLACKPOOL & FLYDE COLLEGE,AP16R_17769,13202.73,Programme System File
DFE,Skills Funding Agency,12/12/2016,16-18 Apprenticeships - Centralised Contract Management,Main Funding,BISHOP BURTON COLLEGE,AP16C_3952,-6191.31,Programme System File
DFE,Skills Funding Agency,12/12/2016,16-18 Apprenticeships - Centralised Contract Management,Main Funding,BISHOP BURTON COLLEGE,AP16R_17699,7147.89,Programme System File
DFE,Skills Funding Agency,12/12/2016,16-18 Apprenticeships - Centralised Contract Management,Main Funding,BRACKNELL & WOKINGHAM COLLEGE,AP16R_17845,25948.99,Programme System File
DFE,Skills Funding Agency,12/12/2016,16-18 Apprenticeships - Centralised Contract Management,Main Funding,UNIVERSITY COLLEGE BIRMINGHAM,AP16C_3922,-41017.7,Programme System File
DFE,Skills Funding Agency,12/12/2016,16-18 Apprenticeships - Centralised Contract Management,Main Funding,UNIVERSITY COLLEGE BIRMINGHAM,AP16R_17641,40877.76,Programme System File
DFE,Skills Funding Agency,12/12/2016,16-18 Apprenticeships - Centralised Contract Management,Main Funding,BARNSLEY COLLEGE,AP16C_3861,-60828.85,Programme System File
DFE,Skills Funding Agency,12/12/2016,16-18 Apprenticeships - Centralised Contract Management,Main Funding,BARNSLEY COLLEGE,AP16R_17556,117980.32,Programme System File
DFE,Skills Funding Agency,12/12/2016,16-18 Apprenticeships - Centralised Contract Management,Main Funding,BOLTON COMMUNITY COLLEGE,AP16C_3930,-14024.12,Programme System File
DFE,Skills Funding Agency,12/12/2016,16-18 Apprenticeships - Centralised Contract Management,Main Funding,BOLTON COMMUNITY COLLEGE,AP16R_17656,34086.59,Programme System File
DFE,Skills Funding Agency,12/12/2016,16-18 Apprenticeships - Centralised Contract Management,Main Funding,BOSTON COLLEGE,AP16C_3972,-4132.53,Programme System File
DFE,Skills Funding Agency,12/12/2016,16-18 Apprenticeships - Centralised Contract Management,Main Funding,BOSTON COLLEGE,AP16R_17722,50526.32,Programme System File
DFE,Skills Funding Agency,12/12/2016,16-18 Apprenticeships - Centralised Contract Management,Main Funding,BOURNEMOUTH & POOLE COLLEGE,AP16R_17734,218640.99,Programme System File
DFE,Skills Funding Agency,12/12/2016,16-18 Apprenticeships - Centralised Contract Management,Main Funding,BROOKLANDS TECHNICAL COLLEGE,AP16R_17971,882892.31,Programme System File
DFE,Skills Funding Agency,12/12/2016,16-18 Apprenticeships - Centralised Contract Management,Main Funding,BRIDGWATER COLLEGE,AP16C_4075,-117035.16,Programme System File
DFE,Skills Funding Agency,12/12/2016,16-18 Apprenticeships - Centralised Contract Management,Main Funding,BRIDGWATER COLLEGE,AP16R_17887,130823.38,Programme System File
DFE,Skills Funding Agency,12/12/2016,16-18 Apprenticeships - Centralised Contract Management,Main Funding,BERKSHIRE COLLEGE OF AGRICULTURE,AP16R_17575,5300.66,Programme System File
DFE,Skills Funding Agency,12/12/2016,16-18 Apprenticeships - Centralised Contract Management,Main Funding,BRADFORD COLLEGE,AP16C_4038,-59270.02,Programme System File
DFE,Skills Funding Agency,12/12/2016,16-18 Apprenticeships - Centralised Contract Management,Main Funding,BRADFORD COLLEGE,AP16R_17823,59273.8,Programme System File
DFE,Skills Funding Agency,12/12/2016,16-18 Apprenticeships - Centralised Contract Management,Main Funding,BROMLEY COLLEGE OF FURTHER & HIGHER EDUCATION,AP16C_4093,-7297.84,Programme System File
DFE,Skills Funding Agency,12/12/2016,16-18 Apprenticeships - Centralised Contract Management,Main Funding,BROMLEY COLLEGE OF FURTHER & HIGHER EDUCATION,AP16R_17914,52346.4,Programme System File
DFE,Skills Funding Agency,12/12/2016,16-18 Apprenticeships - Centralised Contract Management,Main Funding,BURNLEY COLLEGE,AP16C_3558,-38273.96,Programme System File
DFE,Skills Funding Agency,12/12/2016,16-18 Apprenticeships - Centralised Contract Management,Main Funding,BURNLEY COLLEGE,AP16R_16830,135289.87,Programme System File
DFE,Skills Funding Agency,12/12/2016,16-18 Apprenticeships - Centralised Contract Management,Main Funding,BROCKENHURST COLLEGE,AP16R_17853,-3160.5,Programme System File
DFE,Skills Funding Agency,12/12/2016,16-18 Apprenticeships - Centralised Contract Management,Main Funding,BROOKSBY MELTON COLLEGE,AP16C_4121,-1339.93,Programme System File
DFE,Skills Funding Agency,12/12/2016,16-18 Apprenticeships - Centralised Contract Management,Main Funding,BROOKSBY MELTON COLLEGE,AP16R_17985,344.98,Programme System File
DFE,Skills Funding Agency,12/12/2016,16-18 Apprenticeships - Centralised Contract Management,Main Funding,CITY COLLEGE BRIGHTON & HOVE,AP16C_3685,-4749.57,Programme System File
DFE,Skills Funding Agency,12/12/2016,16-18 Apprenticeships - Centralised Contract Management,Main Funding,CITY COLLEGE BRIGHTON & HOVE,AP16R_17189,19338.79,Programme System File
DFE,Skills Funding Agency,12/12/2016,16-18 Apprenticeships - Centralised Contract Management,Main Funding,BISHOP AUCKLAND COLLEGE,AP16R_17679,17581.52,Programme System File
DFE,Skills Funding Agency,12/12/2016,16-18 Apprenticeships - Centralised Contract Management,Main Funding,BURTON & SOUTH DERBYSHIRE COLLEGE,AP16C_3579,-122410.01,Programme System File
DFE,Skills Funding Agency,12/12/2016,16-18 Apprenticeships - Centralised Contract Management,Main Funding,BURTON & SOUTH DERBYSHIRE COLLEGE,AP16R_16898,124025.36,Programme System File
DFE,Skills Funding Agency,12/12/2016,16-18 Apprenticeships - Centralised Contract Management,Main Funding,BOURNVILLE COLLEGE OF HIGHER EDUCATION,AP16C_4033,-59786,Programme System File
DFE,Skills Funding Agency,12/12/2016,16-18 Apprenticeships - Centralised Contract Management,Main Funding,BOURNVILLE COLLEGE OF HIGHER EDUCATION,AP16R_17809,72515.86,Programme System File
DFE,Skills Funding Agency,12/12/2016,16-18 Apprenticeships - Centralised Contract Management,Main Funding,CARSHALTON COLLEGE,AP16C_3658,-19768.72,Programme System File
DFE,Skills Funding Agency,12/12/2016,16-18 Apprenticeships - Centralised Contract Management,Main Funding,CARSHALTON COLLEGE,AP16R_17118,76128.33,Programme System File
DFE,Skills Funding Agency,12/12/2016,16-18 Apprenticeships - Centralised Contract Management,Main Funding,CARLISLE COLLEGE,AP16C_3635,-28059.36,Programme System File
DFE,Skills Funding Agency,12/12/2016,16-18 Apprenticeships - Centralised Contract Management,Main Funding,CARLISLE COLLEGE,AP16R_17064,47510.39,Programme System File
DFE,Skills Funding Agency,12/12/2016,16-18 Apprenticeships - Centralised Contract Management,Main Funding,CALDERDALE COLLEGE,AP16C_3607,-12097.04,Programme System File
DFE,Skills Funding Agency,12/12/2016,16-18 Apprenticeships - Centralised Contract Management,Main Funding,CALDERDALE COLLEGE,AP16R_16981,64535.09,Programme System File
DFE,Skills Funding Agency,12/12/2016,16-18 Apprenticeships - Centralised Contract Management,Main Funding,CAMBRIDGE REGIONAL COLLEGE,AP16C_3567,-42266.14,Programme System File
DFE,Skills Funding Agency,12/12/2016,16-18 Apprenticeships - Centralised Contract Management,Main Funding,CAMBRIDGE REGIONAL COLLEGE,AP16R_16864,122647.53,Programme System File
DFE,Skills Funding Agency,12/12/2016,16-18 Apprenticeships - Centralised Contract Management,Main Funding,CAPEL MANOR COLLEGE,AP16C_3620,-16007.02,Programme System File
DFE,Skills Funding Agency,12/12/2016,16-18 Apprenticeships - Centralised Contract Management,Main Funding,CAPEL MANOR COLLEGE,AP16R_17012,22530.31,Programme System File
DFE,Skills Funding Agency,12/12/2016,16-18 Apprenticeships - Centralised Contract Management,Main Funding,CHELMSFORD COLLEGE,AP16C_3647,-7874.03,Programme System File
DFE,Skills Funding Agency,12/12/2016,16-18 Apprenticeships - Centralised Contract Management,Main Funding,CHELMSFORD COLLEGE,AP16R_17082,5923.54,Programme System File
DFE,Skills Funding Agency,12/12/2016,16-18 Apprenticeships - Centralised Contract Management,Main Funding,CHICHESTER COLLEGE,AP16R_17879,48633.68,Programme System File
DFE,Skills Funding Agency,12/12/2016,16-18 Apprenticeships - Centralised Contract Management,Main Funding,CHESTERFIELD COLLEGE,AP16R_17140,94136.57,Programme System File
DFE,Skills Funding Agency,12/12/2016,16-18 Apprenticeships - Centralised Contract Management,Main Funding,CIRENCESTER TERTIARY COLLEGE,AP16C_3679,-10365.58,Programme System File
DFE,Skills Funding Agency,12/12/2016,16-18 Apprenticeships - Centralised Contract Management,Main Funding,CIRENCESTER TERTIARY COLLEGE,AP16R_17175,34017.65,Programme System File
DFE,Skills Funding Agency,12/12/2016,16-18 Apprenticeships - Centralised Contract Management,Main Funding,NEW COLLEGE NOTTINGHAM,AP16R_17638,-1328.82,Programme System File
DFE,Skills Funding Agency,12/12/2016,16-18 Apprenticeships - Centralised Contract Management,Main Funding,COLCHESTER INSTITUTE,AP16C_3754,-54949.53,Programme System File
DFE,Skills Funding Agency,12/12/2016,16-18 Apprenticeships - Centralised Contract Management,Main Funding,COLCHESTER INSTITUTE,AP16R_17366,228555.44,Programme System File
DFE,Skills Funding Agency,12/12/2016,16-18 Apprenticeships - Centralised Contract Management,Main Funding,COLLEGE OF NORTH WEST LONDON,AP16R_17452,-32981.21,Programme System File
DFE,Skills Funding Agency,12/12/2016,16-18 Apprenticeships - Centralised Contract Management,Main Funding,REDCAR & CLEVELAND COLLEGE,AP16R_17703,7174.32,Programme System File
DFE,Skills Funding Agency,12/12/2016,16-18 Apprenticeships - Centralised Contract Management,Main Funding,COLLEGE OF NORTH EAST LONDON,AP16C_3776,-5351.91,Programme System File
DFE,Skills Funding Agency,12/12/2016,16-18 Apprenticeships - Centralised Contract Management,Main Funding,COLLEGE OF NORTH EAST LONDON,AP16R_17433,18263.3,Programme System File
DFE,Skills Funding Agency,12/12/2016,16-18 Apprenticeships - Centralised Contract Management,Main Funding,CANTERBURY COLLEGE,AP16C_3603,-9002.34,Programme System File
DFE,Skills Funding Agency,12/12/2016,16-18 Apprenticeships - Centralised Contract Management,Main Funding,CANTERBURY COLLEGE,AP16R_16963,159152.3,Programme System File
DFE,Skills Funding Agency,12/12/2016,16-18 Apprenticeships - Centralised Contract Management,Main Funding,STEPHENSON COLLEGE,AP16R_17763,-25792.67,Programme System File
DFE,Skills Funding Agency,12/12/2016,16-18 Apprenticeships - Centralised Contract Management,Main Funding,CORNWALL COLLEGE,AP16C_3794,-109214.36,Programme System File
DFE,Skills Funding Agency,12/12/2016,16-18 Apprenticeships - Centralised Contract Management,Main Funding,CORNWALL COLLEGE,AP16R_17454,215925.73,Programme System File
DFE,Skills Funding Agency,12/12/2016,16-18 Apprenticeships - Centralised Contract Management,Main Funding,CRAVEN COLLEGE,AP16R_17457,7392.68,Programme System File
DFE,Skills Funding Agency,12/12/2016,16-18 Apprenticeships - Centralised Contract Management,Main Funding,CROYDON COLLEGE,AP16C_3796,-37804.14,Programme System File
DFE,Skills Funding Agency,12/12/2016,16-18 Apprenticeships - Centralised Contract Management,Main Funding,CROYDON COLLEGE,AP16R_17458,82876.3,Programme System File
DFE,Skills Funding Agency,12/12/2016,16-18 Apprenticeships - Centralised Contract Management,Main Funding,CITY OF BRISTOL COLLEGE,AP16C_3711,-76373.67,Programme System File
DFE,Skills Funding Agency,12/12/2016,16-18 Apprenticeships - Centralised Contract Management,Main Funding,CITY OF BRISTOL COLLEGE,AP16R_17252,141030.37,Programme System File
DFE,Skills Funding Agency,12/12/2016,16-18 Apprenticeships - Centralised Contract Management,Main Funding,CITY OF SUNDERLAND COLLEGE,AP16R_17324,22388.13,Programme System File
DFE,Skills Funding Agency,12/12/2016,16-18 Apprenticeships - Centralised Contract Management,Main Funding,CITY OF BATH COLLEGE,AP16R_17212,40249.9,Programme System File
DFE,Skills Funding Agency,12/12/2016,16-18 Apprenticeships - Centralised Contract Management,Main Funding,CITY COLLEGE COVENTRY,AP16R_17229,41939.48,Programme System File
DFE,Skills Funding Agency,12/12/2016,16-18 Apprenticeships - Centralised Contract Management,Main Funding,CITY AND ISLINGTON COLLEGE,AP16R_17157,13335.95,Programme System File
DFE,Skills Funding Agency,12/12/2016,16-18 Apprenticeships - Centralised Contract Management,Main Funding,THE CITY OF LIVERPOOL COLLEGE,AP16C_3892,-29184.89,Programme System File
DFE,Skills Funding Agency,12/12/2016,16-18 Apprenticeships - Centralised Contract Management,Main Funding,THE CITY OF LIVERPOOL COLLEGE,AP16R_17596,52554.77,Programme System File
DFE,Skills Funding Agency,12/12/2016,16-18 Apprenticeships - Centralised Contract Management,Main Funding,CITY OF WESTMINSTER COLLEGE,AP16C_3769,-55583.63,Programme System File
DFE,Skills Funding Agency,12/12/2016,16-18 Apprenticeships - Centralised Contract Management,Main Funding,CITY OF WESTMINSTER COLLEGE,AP16R_17417,46183.16,Programme System File
DFE,Skills Funding Agency,12/12/2016,16-18 Apprenticeships - Centralised Contract Management,Main Funding,DARLINGTON COLLEGE,AP16C_3803,-131437.57,Programme System File
DFE,Skills Funding Agency,12/12/2016,16-18 Apprenticeships - Centralised Contract Management,Main Funding,DARLINGTON COLLEGE,AP16R_17467,177350.18,Programme System File
DFE,Skills Funding Agency,12/12/2016,16-18 Apprenticeships - Centralised Contract Management,Main Funding,DERWENTSIDE COLLEGE,AP16R_17479,-3912.87,Programme System File
DFE,Skills Funding Agency,12/12/2016,16-18 Apprenticeships - Centralised Contract Management,Main Funding,DERBY COLLEGE,AP16C_3804,-144356.92,Programme System File
DFE,Skills Funding Agency,12/12/2016,16-18 Apprenticeships - Centralised Contract Management,Main Funding,DERBY COLLEGE,AP16R_17468,262349.72,Programme System File
DFE,Skills Funding Agency,12/12/2016,16-18 Apprenticeships - Centralised Contract Management,Main Funding,DONCASTER COLLEGE,AP16C_3811,-9769.59,Programme System File
DFE,Skills Funding Agency,12/12/2016,16-18 Apprenticeships - Centralised Contract Management,Main Funding,DONCASTER COLLEGE,AP16R_17476,30429.98,Programme System File
DFE,Skills Funding Agency,12/12/2016,16-18 Apprenticeships - Centralised Contract Management,Main Funding,DUDLEY COLLEGE OF TECHNOLOGY,AP16C_4081,-109248.83,Programme System File
DFE,Skills Funding Agency,12/12/2016,16-18 Apprenticeships - Centralised Contract Management,Main Funding,DUDLEY COLLEGE OF TECHNOLOGY,AP16R_17890,119477.49,Programme System File
DFE,Skills Funding Agency,12/12/2016,16-18 Apprenticeships - Centralised Contract Management,Main Funding,CENTRAL BEDFORDSHIRE COLLEGE,AP16C_3815,-131748.29,Programme System File
DFE,Skills Funding Agency,12/12/2016,16-18 Apprenticeships - Centralised Contract Management,Main Funding,CENTRAL BEDFORDSHIRE COLLEGE,AP16R_17483,131885.49,Programme System File
DFE,Skills Funding Agency,12/12/2016,16-18 Apprenticeships - Centralised Contract Management,Main Funding,DURHAM COUNTY COUNCIL,AP16C_3820,-30751.47,Programme System File
DFE,Skills Funding Agency,12/12/2016,16-18 Apprenticeships - Centralised Contract Management,Main Funding,DURHAM COUNTY COUNCIL,AP16R_17487,30926.75,Programme System File
DFE,Skills Funding Agency,12/12/2016,16-18 Apprenticeships - Centralised Contract Management,Main Funding,EAST BERKSHIRE COLLEGE,AP16C_3813,-85962.27,Programme System File
DFE,Skills Funding Agency,12/12/2016,16-18 Apprenticeships - Centralised Contract Management,Main Funding,EAST BERKSHIRE COLLEGE,AP16R_17481,103865.34,Programme System File
DFE,Skills Funding Agency,12/12/2016,16-18 Apprenticeships - Centralised Contract Management,Main Funding,EPPING FOREST COLLEGE,AP16R_17502,9148.03,Programme System File
DFE,Skills Funding Agency,12/12/2016,16-18 Apprenticeships - Centralised Contract Management,Main Funding,EASTON & OTLEY COLLEGE,AP16C_4094,-22236.84,Programme System File
DFE,Skills Funding Agency,12/12/2016,16-18 Apprenticeships - Centralised Contract Management,Main Funding,EASTON & OTLEY COLLEGE,AP16R_17909,22834.35,Programme System File
DFE,Skills Funding Agency,12/12/2016,16-18 Apprenticeships - Centralised Contract Management,Main Funding,EASTLEIGH COLLEGE,AP16C_3829,-25615.18,Programme System File
DFE,Skills Funding Agency,12/12/2016,16-18 Apprenticeships - Centralised Contract Management,Main Funding,EASTLEIGH COLLEGE,AP16R_17497,99472.24,Programme System File
DFE,Skills Funding Agency,12/12/2016,16-18 Apprenticeships - Centralised Contract Management,Main Funding,EAST SURREY COLLEGE,AP16C_3826,-12669.47,Programme System File
DFE,Skills Funding Agency,12/12/2016,16-18 Apprenticeships - Centralised Contract Management,Main Funding,EAST SURREY COLLEGE,AP16R_17494,22041.25,Programme System File
DFE,Skills Funding Agency,12/12/2016,16-18 Apprenticeships - Centralised Contract Management,Main Funding,SOUTH WORCESTERSHIRE COLLEGE,AP16C_3838,-3814.48,Programme System File
DFE,Skills Funding Agency,12/12/2016,16-18 Apprenticeships - Centralised Contract Management,Main Funding,SOUTH WORCESTERSHIRE COLLEGE,AP16R_17510,3865.8,Programme System File
DFE,Skills Funding Agency,12/12/2016,16-18 Apprenticeships - Centralised Contract Management,Main Funding,EXETER COLLEGE,AP16C_3831,-20525.04,Programme System File
DFE,Skills Funding Agency,12/12/2016,16-18 Apprenticeships - Centralised Contract Management,Main Funding,EXETER COLLEGE,AP16R_17500,39046.32,Programme System File
DFE,Skills Funding Agency,12/12/2016,16-18 Apprenticeships - Centralised Contract Management,Main Funding,FAREHAM COLLEGE,AP16C_4079,-26533.41,Programme System File
DFE,Skills Funding Agency,12/12/2016,16-18 Apprenticeships - Centralised Contract Management,Main Funding,FAREHAM COLLEGE,AP16R_17888,227934.37,Programme System File
DFE,Skills Funding Agency,12/12/2016,16-18 Apprenticeships - Centralised Contract Management,Main Funding,FARNBOROUGH COLLEGE,AP16C_3833,-60257.36,Programme System File
DFE,Skills Funding Agency,12/12/2016,16-18 Apprenticeships - Centralised Contract Management,Main Funding,FARNBOROUGH COLLEGE,AP16R_17507,60481.11,Programme System File
DFE,Skills Funding Agency,12/12/2016,16-18 Apprenticeships - Centralised Contract Management,Main Funding,FRANKLIN COLLEGE,AP16C_3835,-84.6,Programme System File
DFE,Skills Funding Agency,12/12/2016,16-18 Apprenticeships - Centralised Contract Management,Main Funding,FRANKLIN COLLEGE,AP16R_17509,4512.25,Programme System File
DFE,Skills Funding Agency,12/12/2016,16-18 Apprenticeships - Centralised Contract Management,Main Funding,FURNESS COLLEGE,AP16R_17511,27851,Programme System File
DFE,Skills Funding Agency,12/12/2016,16-18 Apprenticeships - Centralised Contract Management,Main Funding,GATESHEAD COLLEGE,AP16C_3841,-90269.93,Programme System File
DFE,Skills Funding Agency,12/12/2016,16-18 Apprenticeships - Centralised Contract Management,Main Funding,GATESHEAD COLLEGE,AP16R_17515,183409.75,Programme System File
DFE,Skills Funding Agency,12/12/2016,16-18 Apprenticeships - Centralised Contract Management,Main Funding,GATESHEAD COUNCIL,AP16C_3840,-52741.09,Programme System File
DFE,Skills Funding Agency,12/12/2016,16-18 Apprenticeships - Centralised Contract Management,Main Funding,GATESHEAD COUNCIL,AP16R_17513,60988.09,Programme System File
DFE,Skills Funding Agency,12/12/2016,16-18 Apprenticeships - Centralised Contract Management,Main Funding,GLOUCESTERSHIRE COLLEGE OF ARTS & TECHNOLOGY,AP16R_17518,42679.85,Programme System File
DFE,Skills Funding Agency,12/12/2016,16-18 Apprenticeships - Centralised Contract Management,Main Funding,GRANTHAM COLLEGE,AP16R_17524,10765.13,Programme System File
DFE,Skills Funding Agency,12/12/2016,16-18 Apprenticeships - Centralised Contract Management,Main Funding,GRIMSBY INSTITUTE OF FURTHER & HIGHER EDUCATION,AP16R_17893,175644.02,Programme System File
DFE,Skills Funding Agency,12/12/2016,16-18 Apprenticeships - Centralised Contract Management,Main Funding,GUILDFORD COLLEGE OF FURTHER & HIGHER EDUCATION,AP16C_3844,-70254.89,Programme System File
DFE,Skills Funding Agency,12/12/2016,16-18 Apprenticeships - Centralised Contract Management,Main Funding,GUILDFORD COLLEGE OF FURTHER & HIGHER EDUCATION,AP16R_17522,73099.96,Programme System File
DFE,Skills Funding Agency,12/12/2016,16-18 Apprenticeships - Centralised Contract Management,Main Funding,GREAT YARMOUTH COLLEGE,AP16R_17526,55135.82,Programme System File
DFE,Skills Funding Agency,12/12/2016,16-18 Apprenticeships - Centralised Contract Management,Main Funding,HAVANT COLLEGE,AP16C_3859,-9644.13,Programme System File
DFE,Skills Funding Agency,12/12/2016,16-18 Apprenticeships - Centralised Contract Management,Main Funding,HAVANT COLLEGE,AP16R_17549,9644.13,Programme System File
DFE,Skills Funding Agency,12/12/2016,16-18 Apprenticeships - Centralised Contract Management,Main Funding,HACKNEY COMMUNITY COLLEGE,AP16R_17531,35422.05,Programme System File
DFE,Skills Funding Agency,12/12/2016,16-18 Apprenticeships - Centralised Contract Management,Main Funding,HADLOW COLLEGE,AP16C_3774,-141.88,Programme System File
DFE,Skills Funding Agency,12/12/2016,16-18 Apprenticeships - Centralised Contract Management,Main Funding,HADLOW COLLEGE,AP16R_17423,6283.73,Programme System File
DFE,Skills Funding Agency,12/12/2016,16-18 Apprenticeships - Centralised Contract Management,Main Funding,HAVERING COLLEGE OF FURTHER & HIGHER EDUCATION,AP16C_3856,-53184.74,Programme System File
DFE,Skills Funding Agency,12/12/2016,16-18 Apprenticeships - Centralised Contract Management,Main Funding,HAVERING COLLEGE OF FURTHER & HIGHER EDUCATION,AP16R_17542,50896.29,Programme System File
DFE,Skills Funding Agency,12/12/2016,16-18 Apprenticeships - Centralised Contract Management,Main Funding,HALESOWEN COLLEGE,AP16R_17533,777.92,Programme System File
DFE,Skills Funding Agency,12/12/2016,16-18 Apprenticeships - Centralised Contract Management,Main Funding,EALING HAMMERSMITH & WEST LONDON COLLEGE,AP16C_3824,-469.21,Programme System File
DFE,Skills Funding Agency,12/12/2016,16-18 Apprenticeships - Centralised Contract Management,Main Funding,EALING HAMMERSMITH & WEST LONDON COLLEGE,AP16R_17492,18929.5,Programme System File
DFE,Skills Funding Agency,12/12/2016,16-18 Apprenticeships - Centralised Contract Management,Main Funding,HAMPSHIRE COUNTY COUNCIL,AP16C_3849,-4539.7,Programme System File
DFE,Skills Funding Agency,12/12/2016,16-18 Apprenticeships - Centralised Contract Management,Main Funding,HAMPSHIRE COUNTY COUNCIL,AP16R_17532,4539.7,Programme System File
DFE,Skills Funding Agency,12/12/2016,16-18 Apprenticeships - Centralised Contract Management,Main Funding,HARROW COLLEGE,AP16R_17536,7685.1,Programme System File
DFE,Skills Funding Agency,12/12/2016,16-18 Apprenticeships - Centralised Contract Management,Main Funding,SUSSEX COAST COLLEGE,AP16R_17546,33180.28,Programme System File
DFE,Skills Funding Agency,12/12/2016,16-18 Apprenticeships - Centralised Contract Management,Main Funding,RIVERSIDE COLLEGE HALTON,AP16C_3847,-102255.38,Programme System File
DFE,Skills Funding Agency,12/12/2016,16-18 Apprenticeships - Centralised Contract Management,Main Funding,RIVERSIDE COLLEGE HALTON,AP16R_17527,111829.04,Programme System File
DFE,Skills Funding Agency,12/12/2016,16-18 Apprenticeships - Centralised Contract Management,Main Funding,HUGH BAIRD COLLEGE,AP16C_3869,-7205.48,Programme System File
DFE,Skills Funding Agency,12/12/2016,16-18 Apprenticeships - Centralised Contract Management,Main Funding,HUGH BAIRD COLLEGE,AP16R_17561,17275.88,Programme System File
DFE,Skills Funding Agency,12/12/2016,16-18 Apprenticeships - Centralised Contract Management,Main Funding,HENLEY COLLEGE COVENTRY,AP16R_17545,-2262.07,Programme System File
DFE,Skills Funding Agency,12/12/2016,16-18 Apprenticeships - Centralised Contract Management,Main Funding,HENLEY COLLEGE,AP16C_3857,-8133.84,Programme System File
DFE,Skills Funding Agency,12/12/2016,16-18 Apprenticeships - Centralised Contract Management,Main Funding,HENLEY COLLEGE,AP16R_17547,14809,Programme System File
DFE,Skills Funding Agency,12/12/2016,16-18 Apprenticeships - Centralised Contract Management,Main Funding,HEREFORDSHIRE & LUDLOW COLLEGE,AP16C_3862,-19098.4,Programme System File
DFE,Skills Funding Agency,12/12/2016,16-18 Apprenticeships - Centralised Contract Management,Main Funding,HEREFORDSHIRE & LUDLOW COLLEGE,AP16R_17551,265515.02,Programme System File
DFE,Skills Funding Agency,12/12/2016,16-18 Apprenticeships - Centralised Contract Management,Main Funding,HIGHBURY COLLEGE,AP16C_4085,-2154.55,Programme System File
DFE,Skills Funding Agency,12/12/2016,16-18 Apprenticeships - Centralised Contract Management,Main Funding,HIGHBURY COLLEGE,AP16R_17897,89890.48,Programme System File
DFE,Skills Funding Agency,12/12/2016,16-18 Apprenticeships - Centralised Contract Management,Main Funding,HOPWOOD HALL COLLEGE,AP16C_3864,-20024.95,Programme System File
DFE,Skills Funding Agency,12/12/2016,16-18 Apprenticeships - Centralised Contract Management,Main Funding,HOPWOOD HALL COLLEGE,AP16R_17553,31388.74,Programme System File
DFE,Skills Funding Agency,12/12/2016,16-18 Apprenticeships - Centralised Contract Management,Main Funding,HARTLEPOOL COLLEGE OF HIGHER EDUCATION,AP16C_3853,-18495.04,Programme System File
DFE,Skills Funding Agency,12/12/2016,16-18 Apprenticeships - Centralised Contract Management,Main Funding,HARTLEPOOL COLLEGE OF HIGHER EDUCATION,AP16R_17538,7851.18,Programme System File
DFE,Skills Funding Agency,12/12/2016,16-18 Apprenticeships - Centralised Contract Management,Main Funding,HARTLEPOOL SIXTH FORM COLLEGE,AP16R_17541,38.72,Programme System File
DFE,Skills Funding Agency,12/12/2016,16-18 Apprenticeships - Centralised Contract Management,Main Funding,HARLOW COLLEGE,AP16C_3850,-13421.3,Programme System File
DFE,Skills Funding Agency,12/12/2016,16-18 Apprenticeships - Centralised Contract Management,Main Funding,HARLOW COLLEGE,AP16R_17535,75001.31,Programme System File
DFE,Skills Funding Agency,12/12/2016,16-18 Apprenticeships - Centralised Contract Management,Main Funding,HARTPURY COLLEGE,AP16R_17543,282.93,Programme System File
DFE,Skills Funding Agency,12/12/2016,16-18 Apprenticeships - Centralised Contract Management,Main Funding,HERTFORD REGIONAL COLLEGE,AP16C_3860,-18760.32,Programme System File
DFE,Skills Funding Agency,12/12/2016,16-18 Apprenticeships - Centralised Contract Management,Main Funding,HERTFORD REGIONAL COLLEGE,AP16R_17550,67590.46,Programme System File
DFE,Skills Funding Agency,12/12/2016,16-18 Apprenticeships - Centralised Contract Management,Main Funding,KIRKLEES COLLEGE,AP16R_17557,106632.33,Programme System File
DFE,Skills Funding Agency,12/12/2016,16-18 Apprenticeships - Centralised Contract Management,Main Funding,HUNTINGDONSHIRE REGIONAL COLLEGE,AP16R_17899,-3141.11,Programme System File
DFE,Skills Funding Agency,12/12/2016,16-18 Apprenticeships - Centralised Contract Management,Main Funding,ISLE OF WIGHT COLLEGE,AP16C_3874,-26389.7,Programme System File
DFE,Skills Funding Agency,12/12/2016,16-18 Apprenticeships - Centralised Contract Management,Main Funding,ISLE OF WIGHT COLLEGE,AP16R_17564,64730.83,Programme System File
DFE,Skills Funding Agency,12/12/2016,16-18 Apprenticeships - Centralised Contract Management,Main Funding,JOHN LEGGOTT SIXTH FORM COLLEGE,AP16C_4102,-6743.54,Programme System File
DFE,Skills Funding Agency,12/12/2016,16-18 Apprenticeships - Centralised Contract Management,Main Funding,JOHN LEGGOTT SIXTH FORM COLLEGE,AP16R_17921,6743.54,Programme System File
DFE,Skills Funding Agency,12/12/2016,16-18 Apprenticeships - Centralised Contract Management,Main Funding,JOHN RUSKIN COLLEGE,AP16R_17568,47626.39,Programme System File
DFE,Skills Funding Agency,12/12/2016,16-18 Apprenticeships - Centralised Contract Management,Main Funding,KENDAL COLLEGE,AP16C_3878,-211.53,Programme System File
DFE,Skills Funding Agency,12/12/2016,16-18 Apprenticeships - Centralised Contract Management,Main Funding,KENDAL COLLEGE,AP16R_17572,32496.66,Programme System File
DFE,Skills Funding Agency,12/12/2016,16-18 Apprenticeships - Centralised Contract Management,Main Funding,KENSINGTON & CHELSEA COLLEGE,AP16R_17566,-13098.06,Programme System File
DFE,Skills Funding Agency,12/12/2016,16-18 Apprenticeships - Centralised Contract Management,Main Funding,KINGSTON COLLEGE,AP16C_3880,-755.36,Programme System File
DFE,Skills Funding Agency,12/12/2016,16-18 Apprenticeships - Centralised Contract Management,Main Funding,KINGSTON COLLEGE,AP16R_17574,31687.46,Programme System File
DFE,Skills Funding Agency,12/12/2016,16-18 Apprenticeships - Centralised Contract Management,Main Funding,KINGSTON MAURWARD COLLEGE,AP16R_17577,49.46,Programme System File
DFE,Skills Funding Agency,12/12/2016,16-18 Apprenticeships - Centralised Contract Management,Main Funding,KNOWSLEY COMMUNITY COLLEGE,AP16R_17578,9949.74,Programme System File
DFE,Skills Funding Agency,12/12/2016,16-18 Apprenticeships - Centralised Contract Management,Main Funding,LAMBETH COLLEGE AT CLAPHAM CENTRE,AP16C_3885,-56547.14,Programme System File
DFE,Skills Funding Agency,12/12/2016,16-18 Apprenticeships - Centralised Contract Management,Main Funding,LAMBETH COLLEGE AT CLAPHAM CENTRE,AP16R_17583,726527.51,Programme System File
DFE,Skills Funding Agency,12/12/2016,16-18 Apprenticeships - Centralised Contract Management,Main Funding,LANCASTER & MORECAMBE COLLEGE,AP16R_17587,69519.95,Programme System File
DFE,Skills Funding Agency,12/12/2016,16-18 Apprenticeships - Centralised Contract Management,Main Funding,LONDON COLLEGE OF BEAUTY THERAPY LTD,AP16R_16926,5950.74,Programme System File
DFE,Skills Funding Agency,12/12/2016,16-18 Apprenticeships - Centralised Contract Management,Main Funding,LEICESTER COLLEGE CO FREEMENS PARK CAMPUS,AP16C_3888,-48269.53,Programme System File
DFE,Skills Funding Agency,12/12/2016,16-18 Apprenticeships - Centralised Contract Management,Main Funding,LEICESTER COLLEGE CO FREEMENS PARK CAMPUS,AP16R_17585,122340.1,Programme System File
DFE,Skills Funding Agency,12/12/2016,16-18 Apprenticeships - Centralised Contract Management,Main Funding,LEEDS COLLEGE OF BUILDING,AP16C_3882,-56388.28,Programme System File
DFE,Skills Funding Agency,12/12/2016,16-18 Apprenticeships - Centralised Contract Management,Main Funding,LEEDS COLLEGE OF BUILDING,AP16R_17580,363677.31,Programme System File
DFE,Skills Funding Agency,12/12/2016,16-18 Apprenticeships - Centralised Contract Management,Main Funding,LEEDS CITY COLLEGE,AP16C_4097,-50754.41,Programme System File
DFE,Skills Funding Agency,12/12/2016,16-18 Apprenticeships - Centralised Contract Management,Main Funding,LEEDS CITY COLLEGE,AP16R_17916,127123.66,Programme System File
DFE,Skills Funding Agency,12/12/2016,16-18 Apprenticeships - Centralised Contract Management,Main Funding,LOUGHBOROUGH COLLEGE,AP16C_3896,-67963.39,Programme System File
DFE,Skills Funding Agency,12/12/2016,16-18 Apprenticeships - Centralised Contract Management,Main Funding,LOUGHBOROUGH COLLEGE,AP16R_17598,295600.06,Programme System File
DFE,Skills Funding Agency,12/12/2016,16-18 Apprenticeships - Centralised Contract Management,Main Funding,LESOCO,AP16R_17593,-7440.13,Programme System File
DFE,Skills Funding Agency,12/12/2016,16-18 Apprenticeships - Centralised Contract Management,Main Funding,LOWESTOFT COLLEGE,AP16C_3898,-8856.93,Programme System File
DFE,Skills Funding Agency,12/12/2016,16-18 Apprenticeships - Centralised Contract Management,Main Funding,LOWESTOFT COLLEGE,AP16R_17600,92970.91,Programme System File
DFE,Skills Funding Agency,12/12/2016,16-18 Apprenticeships - Centralised Contract Management,Main Funding,LOWESTOFT COLLEGE,AP16R_18193,71638.09,Programme System File
DFE,Skills Funding Agency,12/12/2016,16-18 Apprenticeships - Centralised Contract Management,Main Funding,MACCLESFIELD COLLEGE,AP16C_3899,-2609.2,Programme System File
DFE,Skills Funding Agency,12/12/2016,16-18 Apprenticeships - Centralised Contract Management,Main Funding,MACCLESFIELD COLLEGE,AP16R_17603,25311,Programme System File
DFE,Skills Funding Agency,12/12/2016,16-18 Apprenticeships - Centralised Contract Management,Main Funding,MANCHESTER COLLEGE,AP16C_4091,-57153.12,Programme System File
DFE,Skills Funding Agency,12/12/2016,16-18 Apprenticeships - Centralised Contract Management,Main Funding,MANCHESTER COLLEGE,AP16R_17906,150239.64,Programme System File
DFE,Skills Funding Agency,12/12/2016,16-18 Apprenticeships - Centralised Contract Management,Main Funding,MID CHESHIRE COLLEGE,AP16R_17607,7332.13,Programme System File
DFE,Skills Funding Agency,12/12/2016,16-18 Apprenticeships - Centralised Contract Management,Main Funding,MIDDLESBROUGH COLLEGE,AP16C_3908,-18453.9,Programme System File
DFE,Skills Funding Agency,12/12/2016,16-18 Apprenticeships - Centralised Contract Management,Main Funding,MIDDLESBROUGH COLLEGE,AP16R_17619,60519.66,Programme System File
DFE,Skills Funding Agency,12/12/2016,16-18 Apprenticeships - Centralised Contract Management,Main Funding,MIDDLESBROUGH COUNCIL,AP16R_17615,3967.83,Programme System File
DFE,Skills Funding Agency,12/12/2016,16-18 Apprenticeships - Centralised Contract Management,Main Funding,MILTON KEYNES COLLEGE,AP16R_17610,31017.44,Programme System File
DFE,Skills Funding Agency,12/12/2016,16-18 Apprenticeships - Centralised Contract Management,Main Funding,MID KENT COLLEGE,AP16C_3903,-23262.38,Programme System File
DFE,Skills Funding Agency,12/12/2016,16-18 Apprenticeships - Centralised Contract Management,Main Funding,MID KENT COLLEGE,AP16R_17612,74135.29,Programme System File
DFE,Skills Funding Agency,12/12/2016,16-18 Apprenticeships - Centralised Contract Management,Main Funding,MOULTON COLLEGE,AP16C_3906,-3257.58,Programme System File
DFE,Skills Funding Agency,12/12/2016,16-18 Apprenticeships - Centralised Contract Management,Main Funding,MOULTON COLLEGE,AP16R_17617,12295.28,Programme System File
DFE,Skills Funding Agency,12/12/2016,16-18 Apprenticeships - Centralised Contract Management,Main Funding,MYERSCOUGH COLLEGE,AP16C_3910,-25274.98,Programme System File
DFE,Skills Funding Agency,12/12/2016,16-18 Apprenticeships - Centralised Contract Management,Main Funding,MYERSCOUGH COLLEGE,AP16R_17622,36852.83,Programme System File
DFE,Skills Funding Agency,12/12/2016,16-18 Apprenticeships - Centralised Contract Management,Main Funding,NORTHAMPTON COLLEGE,AP16C_4034,-7429.12,Programme System File
DFE,Skills Funding Agency,12/12/2016,16-18 Apprenticeships - Centralised Contract Management,Main Funding,NORTHAMPTON COLLEGE,AP16R_17802,72616.83,Programme System File
DFE,Skills Funding Agency,12/12/2016,16-18 Apprenticeships - Centralised Contract Management,Main Funding,NORTHBROOK COLLEGE SUSSEX,AP16C_3933,-6534.37,Programme System File
DFE,Skills Funding Agency,12/12/2016,16-18 Apprenticeships - Centralised Contract Management,Main Funding,NORTHBROOK COLLEGE SUSSEX,AP16R_17663,80173.36,Programme System File
DFE,Skills Funding Agency,12/12/2016,16-18 Apprenticeships - Centralised Contract Management,Main Funding,NELSON & COLNE COLLEGE,AP16C_3915,-2204.69,Programme System File
DFE,Skills Funding Agency,12/12/2016,16-18 Apprenticeships - Centralised Contract Management,Main Funding,NELSON & COLNE COLLEGE,AP16R_17625,37985.04,Programme System File
DFE,Skills Funding Agency,12/12/2016,16-18 Apprenticeships - Centralised Contract Management,Main Funding,NORTH EAST WORCESTERSHIRE COLLEGE,AP16C_4088,-20375.96,Programme System File
DFE,Skills Funding Agency,12/12/2016,16-18 Apprenticeships - Centralised Contract Management,Main Funding,NORTH EAST WORCESTERSHIRE COLLEGE,AP16R_17903,57457.43,Programme System File
DFE,Skills Funding Agency,12/12/2016,16-18 Apprenticeships - Centralised Contract Management,Main Funding,NORTH EAST SURREY COLLEGE OF TECHNOLOGY,AP16C_3929,-3671.84,Programme System File
DFE,Skills Funding Agency,12/12/2016,16-18 Apprenticeships - Centralised Contract Management,Main Funding,NORTH EAST SURREY COLLEGE OF TECHNOLOGY,AP16R_17648,10171.48,Programme System File
DFE,Skills Funding Agency,12/12/2016,16-18 Apprenticeships - Centralised Contract Management,Main Funding,NEWHAM COLLEGE OF HIGHER EDUCATION,AP16R_17636,35303.9,Programme System File
DFE,Skills Funding Agency,12/12/2016,16-18 Apprenticeships - Centralised Contract Management,Main Funding,NEWCASTLE UNDER LYME COLLEGE,AP16C_3920,-92886.39,Programme System File
DFE,Skills Funding Agency,12/12/2016,16-18 Apprenticeships - Centralised Contract Management,Main Funding,NEWCASTLE UNDER LYME COLLEGE,AP16R_17632,112139.27,Programme System File
DFE,Skills Funding Agency,12/12/2016,16-18 Apprenticeships - Centralised Contract Management,Main Funding,NORTH HERTFORDSHIRE COLLEGE,AP16R_17650,41661.59,Programme System File
DFE,Skills Funding Agency,12/12/2016,16-18 Apprenticeships - Centralised Contract Management,Main Funding,COLLEGE OF WEST ANGLIA,AP16R_17885,80484.1,Programme System File
DFE,Skills Funding Agency,12/12/2016,16-18 Apprenticeships - Centralised Contract Management,Main Funding,LINCOLN COLLEGE,AP16C_3890,-12230.83,Programme System File
DFE,Skills Funding Agency,12/12/2016,16-18 Apprenticeships - Centralised Contract Management,Main Funding,LINCOLN COLLEGE,AP16R_17591,97495.67,Programme System File
DFE,Skills Funding Agency,12/12/2016,16-18 Apprenticeships - Centralised Contract Management,Main Funding,NORTHUMBERLAND COLLEGE,AP16R_17668,131676.83,Programme System File
DFE,Skills Funding Agency,12/12/2016,16-18 Apprenticeships - Centralised Contract Management,Main Funding,NORTH NOTTINGHAMSHIRE COLLEGE,AP16R_17651,15856.7,Programme System File
DFE,Skills Funding Agency,12/12/2016,16-18 Apprenticeships - Centralised Contract Management,Main Funding,NORWICH CITY COLLEGE,AP16C_3936,-13739.84,Programme System File
DFE,Skills Funding Agency,12/12/2016,16-18 Apprenticeships - Centralised Contract Management,Main Funding,NORWICH CITY COLLEGE,AP16R_17666,65415.98,Programme System File
DFE,Skills Funding Agency,12/12/2016,16-18 Apprenticeships - Centralised Contract Management,Main Funding,NORTH DEVON COLLEGE,AP16C_3926,-11034.41,Programme System File
DFE,Skills Funding Agency,12/12/2016,16-18 Apprenticeships - Centralised Contract Management,Main Funding,NORTH DEVON COLLEGE,AP16R_17643,96265.34,Programme System File
DFE,Skills Funding Agency,12/12/2016,16-18 Apprenticeships - Centralised Contract Management,Main Funding,NORTH LINDSEY COLLEGE,AP16C_3931,-83417.2,Programme System File
DFE,Skills Funding Agency,12/12/2016,16-18 Apprenticeships - Centralised Contract Management,Main Funding,NORTH LINDSEY COLLEGE,AP16R_17649,118549.67,Programme System File
DFE,Skills Funding Agency,12/12/2016,16-18 Apprenticeships - Centralised Contract Management,Main Funding,NORTH WARWICKSHIRE & HINCKLEY COLLEGE,AP16R_17658,105507.37,Programme System File
DFE,Skills Funding Agency,12/12/2016,16-18 Apprenticeships - Centralised Contract Management,Main Funding,NEWBURY COLLEGE,AP16C_3913,-6619.27,Programme System File
DFE,Skills Funding Agency,12/12/2016,16-18 Apprenticeships - Centralised Contract Management,Main Funding,NEWBURY COLLEGE,AP16R_17624,48533.27,Programme System File
DFE,Skills Funding Agency,12/12/2016,16-18 Apprenticeships - Centralised Contract Management,Main Funding,NEWCASTLE COLLEGE,AP16C_3917,-772321.83,Programme System File
DFE,Skills Funding Agency,12/12/2016,16-18 Apprenticeships - Centralised Contract Management,Main Funding,NEWCASTLE COLLEGE,AP16R_17427,14396.98,Programme System File
DFE,Skills Funding Agency,12/12/2016,16-18 Apprenticeships - Centralised Contract Management,Main Funding,NEWCASTLE COLLEGE,AP16R_17428,6164.22,Programme System File
DFE,Skills Funding Agency,12/12/2016,16-18 Apprenticeships - Centralised Contract Management,Main Funding,NEWCASTLE COLLEGE,AP16R_17430,24264.07,Programme System File
DFE,Skills Funding Agency,12/12/2016,16-18 Apprenticeships - Centralised Contract Management,Main Funding,NEWCASTLE COLLEGE,AP16R_17628,772322.83,Programme System File
DFE,Skills Funding Agency,12/12/2016,16-18 Apprenticeships - Centralised Contract Management,Main Funding,NEW COLLEGE DURHAM,AP16C_3923,-73859.07,Programme System File
DFE,Skills Funding Agency,12/12/2016,16-18 Apprenticeships - Centralised Contract Management,Main Funding,NEW COLLEGE DURHAM,AP16R_17634,61488.3,Programme System File
DFE,Skills Funding Agency,12/12/2016,16-18 Apprenticeships - Centralised Contract Management,Main Funding,NORTH WEST KENT COLLEGE,AP16R_17653,26431.73,Programme System File
DFE,Skills Funding Agency,12/12/2016,16-18 Apprenticeships - Centralised Contract Management,Main Funding,NEW COLLEGE SWINDON,AP16R_17642,4124.42,Programme System File
DFE,Skills Funding Agency,12/12/2016,16-18 Apprenticeships - Centralised Contract Management,Main Funding,NEW COLLEGE TELFORD,AP16R_17645,-1744.63,Programme System File
DFE,Skills Funding Agency,12/12/2016,16-18 Apprenticeships - Centralised Contract Management,Main Funding,OAKLANDS COLLEGE,AP16C_3938,-6553.39,Programme System File
DFE,Skills Funding Agency,12/12/2016,16-18 Apprenticeships - Centralised Contract Management,Main Funding,OAKLANDS COLLEGE,AP16R_17671,50727.01,Programme System File
DFE,Skills Funding Agency,12/12/2016,16-18 Apprenticeships - Centralised Contract Management,Main Funding,OLDHAM COLLEGE,AP16R_17804,27284.77,Programme System File
DFE,Skills Funding Agency,12/12/2016,16-18 Apprenticeships - Centralised Contract Management,Main Funding,OXFORD & CHERWELL COLLEGE,AP16R_17676,111566.53,Programme System File
DFE,Skills Funding Agency,12/12/2016,16-18 Apprenticeships - Centralised Contract Management,Main Funding,PETERBOROUGH REGIONAL COLLEGE,AP16C_3940,-5431.53,Programme System File
DFE,Skills Funding Agency,12/12/2016,16-18 Apprenticeships - Centralised Contract Management,Main Funding,PETERBOROUGH REGIONAL COLLEGE,AP16R_17674,53855.89,Programme System File
DFE,Skills Funding Agency,12/12/2016,16-18 Apprenticeships - Centralised Contract Management,Main Funding,SALFORD CITY COLLEGE,AP16C_3945,-19365.38,Programme System File
DFE,Skills Funding Agency,12/12/2016,16-18 Apprenticeships - Centralised Contract Management,Main Funding,SALFORD CITY COLLEGE,AP16R_17682,56075.07,Programme System File
DFE,Skills Funding Agency,12/12/2016,16-18 Apprenticeships - Centralised Contract Management,Main Funding,EAST DURHAM COLLEGE,AP16C_3818,-39423.49,Programme System File
DFE,Skills Funding Agency,12/12/2016,16-18 Apprenticeships - Centralised Contract Management,Main Funding,EAST DURHAM COLLEGE,AP16R_17485,56014.92,Programme System File
DFE,Skills Funding Agency,12/12/2016,16-18 Apprenticeships - Centralised Contract Management,Main Funding,PLUMPTON COLLEGE,AP16C_3942,-6111.53,Programme System File
DFE,Skills Funding Agency,12/12/2016,16-18 Apprenticeships - Centralised Contract Management,Main Funding,PLUMPTON COLLEGE,AP16R_17678,2814.11,Programme System File
DFE,Skills Funding Agency,12/12/2016,16-18 Apprenticeships - Centralised Contract Management,Main Funding,CITY COLLEGE PLYMOUTH,AP16C_3947,-1631.71,Programme System File
DFE,Skills Funding Agency,12/12/2016,16-18 Apprenticeships - Centralised Contract Management,Main Funding,CITY COLLEGE PLYMOUTH,AP16R_17685,28171.72,Programme System File
DFE,Skills Funding Agency,12/12/2016,16-18 Apprenticeships - Centralised Contract Management,Main Funding,PLYMOUTH CITY COUNCIL,AP16R_17684,3226.24,Programme System File
DFE,Skills Funding Agency,12/12/2016,16-18 Apprenticeships - Centralised Contract Management,Main Funding,PRESTON COLLEGE,AP16C_3954,-21153.43,Programme System File
DFE,Skills Funding Agency,12/12/2016,16-18 Apprenticeships - Centralised Contract Management,Main Funding,PRESTON COLLEGE,AP16R_17696,65596.03,Programme System File
DFE,Skills Funding Agency,12/12/2016,16-18 Apprenticeships - Centralised Contract Management,Main Funding,PRIOR PURSGLOVE COLLEGE,AP16R_17689,3196.19,Programme System File
DFE,Skills Funding Agency,12/12/2016,16-18 Apprenticeships - Centralised Contract Management,Main Funding,PORTSMOUTH COLLEGE,AP16C_3953,-7434.95,Programme System File
DFE,Skills Funding Agency,12/12/2016,16-18 Apprenticeships - Centralised Contract Management,Main Funding,PORTSMOUTH COLLEGE,AP16R_17693,10634.44,Programme System File
DFE,Skills Funding Agency,12/12/2016,16-18 Apprenticeships - Centralised Contract Management,Main Funding,COLLEGE OF RICHARD COLLYER,AP16R_17456,-1531.39,Programme System File
DFE,Skills Funding Agency,12/12/2016,16-18 Apprenticeships - Centralised Contract Management,Main Funding,THE UNIVERSITY OF WEST LONDON,AP16C_4030,-33665.78,Programme System File
DFE,Skills Funding Agency,12/12/2016,16-18 Apprenticeships - Centralised Contract Management,Main Funding,THE UNIVERSITY OF WEST LONDON,AP16R_17797,38071.42,Programme System File
DFE,Skills Funding Agency,12/12/2016,16-18 Apprenticeships - Centralised Contract Management,Main Funding,REDBRIDGE COLLEGE,AP16R_17694,16293.92,Programme System File
DFE,Skills Funding Agency,12/12/2016,16-18 Apprenticeships - Centralised Contract Management,Main Funding,REASEHEATH COLLEGE,AP16R_17692,-2810.92,Programme System File
DFE,Skills Funding Agency,12/12/2016,16-18 Apprenticeships - Centralised Contract Management,Main Funding,RICHARD HUISH COLLEGE,AP16C_3958,-5114.9,Programme System File
DFE,Skills Funding Agency,12/12/2016,16-18 Apprenticeships - Centralised Contract Management,Main Funding,RICHARD HUISH COLLEGE,AP16R_17701,17324.45,Programme System File
DFE,Skills Funding Agency,12/12/2016,16-18 Apprenticeships - Centralised Contract Management,Main Funding,RICHMOND UPON THAMES COLLEGE,AP16R_17705,-902.32,Programme System File
DFE,Skills Funding Agency,12/12/2016,16-18 Apprenticeships - Centralised Contract Management,Main Funding,RICHMOND UPON THAMES BOROUGH COUNCIL,AP16R_17829,4728.18,Programme System File
DFE,Skills Funding Agency,12/12/2016,16-18 Apprenticeships - Centralised Contract Management,Main Funding,CHEADLE & MARPLE SIXTH FORM COLLEGE,AP16C_3630,-53.48,Programme System File
DFE,Skills Funding Agency,12/12/2016,16-18 Apprenticeships - Centralised Contract Management,Main Funding,CHEADLE & MARPLE SIXTH FORM COLLEGE,AP16R_17046,7947.19,Programme System File
DFE,Skills Funding Agency,12/12/2016,16-18 Apprenticeships - Centralised Contract Management,Main Funding,DEARNE VALLEY COLLEGE,AP16C_3809,-3882.05,Programme System File
DFE,Skills Funding Agency,12/12/2016,16-18 Apprenticeships - Centralised Contract Management,Main Funding,DEARNE VALLEY COLLEGE,AP16R_17474,13988.52,Programme System File
DFE,Skills Funding Agency,12/12/2016,16-18 Apprenticeships - Centralised Contract Management,Main Funding,ROTHERHAM COLLEGE OF ARTS & TECHNOLOGY,AP16C_3962,-9845.28,Programme System File
DFE,Skills Funding Agency,12/12/2016,16-18 Apprenticeships - Centralised Contract Management,Main Funding,ROTHERHAM COLLEGE OF ARTS & TECHNOLOGY,AP16R_17707,41600.54,Programme System File
DFE,Skills Funding Agency,12/12/2016,16-18 Apprenticeships - Centralised Contract Management,Main Funding,RUNSHAW COLLEGE,AP16C_3960,-6805.09,Programme System File
DFE,Skills Funding Agency,12/12/2016,16-18 Apprenticeships - Centralised Contract Management,Main Funding,RUNSHAW COLLEGE,AP16R_17706,27704,Programme System File
DFE,Skills Funding Agency,12/12/2016,16-18 Apprenticeships - Centralised Contract Management,Main Funding,SANDWELL COLLEGE,AP16C_3967,-30689.23,Programme System File
DFE,Skills Funding Agency,12/12/2016,16-18 Apprenticeships - Centralised Contract Management,Main Funding,SANDWELL COLLEGE,AP16R_17714,119927.83,Programme System File
DFE,Skills Funding Agency,12/12/2016,16-18 Apprenticeships - Centralised Contract Management,Main Funding,SOUTH DOWNS COLLEGE,AP16C_3987,-40599.96,Programme System File
DFE,Skills Funding Agency,12/12/2016,16-18 Apprenticeships - Centralised Contract Management,Main Funding,SOUTH DOWNS COLLEGE,AP16R_17732,40599.96,Programme System File
DFE,Skills Funding Agency,12/12/2016,16-18 Apprenticeships - Centralised Contract Management,Main Funding,SUSSEX DOWNS COLLEGE,AP16C_4010,-2460.21,Programme System File
DFE,Skills Funding Agency,12/12/2016,16-18 Apprenticeships - Centralised Contract Management,Main Funding,SUSSEX DOWNS COLLEGE,AP16R_17772,40929.61,Programme System File
DFE,Skills Funding Agency,12/12/2016,16-18 Apprenticeships - Centralised Contract Management,Main Funding,SOUTH ESSEX COLLEGE,AP16C_3993,-42869.78,Programme System File
DFE,Skills Funding Agency,12/12/2016,16-18 Apprenticeships - Centralised Contract Management,Main Funding,SOUTH ESSEX COLLEGE,AP16R_17738,151000.16,Programme System File
DFE,Skills Funding Agency,12/12/2016,16-18 Apprenticeships - Centralised Contract Management,Main Funding,SELBY COLLEGE,AP16C_3965,-4011.38,Programme System File
DFE,Skills Funding Agency,12/12/2016,16-18 Apprenticeships - Centralised Contract Management,Main Funding,SELBY COLLEGE,AP16R_17713,3330.94,Programme System File
DFE,Skills Funding Agency,12/12/2016,16-18 Apprenticeships - Centralised Contract Management,Main Funding,SEEVIC COLLEGE,AP16C_3971,-22706.51,Programme System File
DFE,Skills Funding Agency,12/12/2016,16-18 Apprenticeships - Centralised Contract Management,Main Funding,SEEVIC COLLEGE,AP16R_17717,22294.25,Programme System File
DFE,Skills Funding Agency,12/12/2016,16-18 Apprenticeships - Centralised Contract Management,Main Funding,SHREWSBURY COLLEGE OF ARTS & TECHNOLOGY,AP16C_3978,-19184.28,Programme System File
DFE,Skills Funding Agency,12/12/2016,16-18 Apprenticeships - Centralised Contract Management,Main Funding,SHREWSBURY COLLEGE OF ARTS & TECHNOLOGY,AP16R_17724,88442.03,Programme System File
DFE,Skills Funding Agency,12/12/2016,16-18 Apprenticeships - Centralised Contract Management,Main Funding,SHEFFIELD COLLEGE,AP16C_3969,-49157.18,Programme System File
DFE,Skills Funding Agency,12/12/2016,16-18 Apprenticeships - Centralised Contract Management,Main Funding,SHEFFIELD COLLEGE,AP16R_17716,65793.17,Programme System File
DFE,Skills Funding Agency,12/12/2016,16-18 Apprenticeships - Centralised Contract Management,Main Funding,SHIPLEY COLLEGE,AP16C_3974,-8528.87,Programme System File
DFE,Skills Funding Agency,12/12/2016,16-18 Apprenticeships - Centralised Contract Management,Main Funding,SHIPLEY COLLEGE,AP16R_17719,17243.77,Programme System File
DFE,Skills Funding Agency,12/12/2016,16-18 Apprenticeships - Centralised Contract Management,Main Funding,SOUTHAMPTON CITY COLLEGE,AP16R_17750,38871.87,Programme System File
DFE,Skills Funding Agency,12/12/2016,16-18 Apprenticeships - Centralised Contract Management,Main Funding,SOUTH BIRMINGHAM COLLEGE,AP16C_3988,-15632.99,Programme System File
DFE,Skills Funding Agency,12/12/2016,16-18 Apprenticeships - Centralised Contract Management,Main Funding,SOUTH BIRMINGHAM COLLEGE,AP16R_17733,33508.01,Programme System File
DFE,Skills Funding Agency,12/12/2016,16-18 Apprenticeships - Centralised Contract Management,Main Funding,SOUTH CHESHIRE COLLEGE,AP16C_3981,-1604.93,Programme System File
DFE,Skills Funding Agency,12/12/2016,16-18 Apprenticeships - Centralised Contract Management,Main Funding,SOUTH CHESHIRE COLLEGE,AP16R_17727,25980.08,Programme System File
DFE,Skills Funding Agency,12/12/2016,16-18 Apprenticeships - Centralised Contract Management,Main Funding,SOUTH DEVON COLLEGE,AP16R_17728,81719.03,Programme System File
DFE,Skills Funding Agency,12/12/2016,16-18 Apprenticeships - Centralised Contract Management,Main Funding,SOLIHULL COLLEGE,AP16C_3980,-135666.96,Programme System File
DFE,Skills Funding Agency,12/12/2016,16-18 Apprenticeships - Centralised Contract Management,Main Funding,SOLIHULL COLLEGE,AP16R_17726,158220.91,Programme System File
DFE,Skills Funding Agency,12/12/2016,16-18 Apprenticeships - Centralised Contract Management,Main Funding,SOMERSET COLLEGE OF ARTS & TECHNOLOGY,AP16C_3985,-1620.78,Programme System File
DFE,Skills Funding Agency,12/12/2016,16-18 Apprenticeships - Centralised Contract Management,Main Funding,SOMERSET COLLEGE OF ARTS & TECHNOLOGY,AP16R_17730,4515.72,Programme System File
DFE,Skills Funding Agency,12/12/2016,16-18 Apprenticeships - Centralised Contract Management,Main Funding,CENTRAL COLLEGE NOTTINGHAM,AP16C_3990,-42392.03,Programme System File
DFE,Skills Funding Agency,12/12/2016,16-18 Apprenticeships - Centralised Contract Management,Main Funding,CENTRAL COLLEGE NOTTINGHAM,AP16R_17736,180648.51,Programme System File
DFE,Skills Funding Agency,12/12/2016,16-18 Apprenticeships - Centralised Contract Management,Main Funding,TRAFFORD COLLEGE,AP16R_17743,-10648.42,Programme System File
DFE,Skills Funding Agency,12/12/2016,16-18 Apprenticeships - Centralised Contract Management,Main Funding,SOUTH GLOUCESTERSHIRE & STROUD COLLEGE,AP16C_4099,-54599.16,Programme System File
DFE,Skills Funding Agency,12/12/2016,16-18 Apprenticeships - Centralised Contract Management,Main Funding,SOUTH GLOUCESTERSHIRE & STROUD COLLEGE,AP16R_17918,199924.72,Programme System File
DFE,Skills Funding Agency,12/12/2016,16-18 Apprenticeships - Centralised Contract Management,Main Funding,SPARSHOLT COLLEGE HAMPSHIRE,AP16R_17753,15299.34,Programme System File
DFE,Skills Funding Agency,12/12/2016,16-18 Apprenticeships - Centralised Contract Management,Main Funding,SOUTHPORT COLLEGE,AP16R_17754,-1031.61,Programme System File
DFE,Skills Funding Agency,12/12/2016,16-18 Apprenticeships - Centralised Contract Management,Main Funding,SOUTHPORT COLLEGE,AP16C_3999,-605.64,Programme System File
DFE,Skills Funding Agency,12/12/2016,16-18 Apprenticeships - Centralised Contract Management,Main Funding,ST HELENS COLLEGE,AP16C_4001,-1159.02,Programme System File
DFE,Skills Funding Agency,12/12/2016,16-18 Apprenticeships - Centralised Contract Management,Main Funding,ST HELENS COLLEGE,AP16R_17757,70570.82,Programme System File
DFE,Skills Funding Agency,12/12/2016,16-18 Apprenticeships - Centralised Contract Management,Main Funding,STAFFORD COLLEGE,AP16R_17761,20878.89,Programme System File
DFE,Skills Funding Agency,12/12/2016,16-18 Apprenticeships - Centralised Contract Management,Main Funding,SOUTH THAMES COLLEGE,AP16R_17741,-2359.08,Programme System File
DFE,Skills Funding Agency,12/12/2016,16-18 Apprenticeships - Centralised Contract Management,Main Funding,STOKE ON TRENT COLLEGE,AP16R_17774,114665.6,Programme System File
DFE,Skills Funding Agency,12/12/2016,16-18 Apprenticeships - Centralised Contract Management,Main Funding,NEW COLLEGE STAMFORD,AP16C_4004,-3485.65,Programme System File
DFE,Skills Funding Agency,12/12/2016,16-18 Apprenticeships - Centralised Contract Management,Main Funding,NEW COLLEGE STAMFORD,AP16R_17760,16882.55,Programme System File
DFE,Skills Funding Agency,12/12/2016,16-18 Apprenticeships - Centralised Contract Management,Main Funding,STOCKTON RIVERSIDE COLLEGE,AP16C_4008,-5324.09,Programme System File
DFE,Skills Funding Agency,12/12/2016,16-18 Apprenticeships - Centralised Contract Management,Main Funding,STOCKTON RIVERSIDE COLLEGE,AP16R_17770,17818.69,Programme System File
DFE,Skills Funding Agency,12/12/2016,16-18 Apprenticeships - Centralised Contract Management,Main Funding,STOCKPORT COLLEGE,AP16R_17765,24514.55,Programme System File
DFE,Skills Funding Agency,12/12/2016,16-18 Apprenticeships - Centralised Contract Management,Main Funding,STRODE COLLEGE,AP16C_4017,-1016.4,Programme System File
DFE,Skills Funding Agency,12/12/2016,16-18 Apprenticeships - Centralised Contract Management,Main Funding,STRODE COLLEGE,AP16R_17780,20300.13,Programme System File
DFE,Skills Funding Agency,12/12/2016,16-18 Apprenticeships - Centralised Contract Management,Main Funding,STRATFORD UPON AVON COLLEGE,AP16R_17746,15133.94,Programme System File
DFE,Skills Funding Agency,12/12/2016,16-18 Apprenticeships - Centralised Contract Management,Main Funding,ST VINCENT COLLEGE,AP16C_4003,-7447.82,Programme System File
DFE,Skills Funding Agency,12/12/2016,16-18 Apprenticeships - Centralised Contract Management,Main Funding,ST VINCENT COLLEGE,AP16R_17759,7447.82,Programme System File
DFE,Skills Funding Agency,12/12/2016,16-18 Apprenticeships - Centralised Contract Management,Main Funding,SOUTH TYNESIDE COLLEGE,AP16C_3997,-10553.84,Programme System File
DFE,Skills Funding Agency,12/12/2016,16-18 Apprenticeships - Centralised Contract Management,Main Funding,SOUTH TYNESIDE COLLEGE,AP16R_17749,30735.94,Programme System File
DFE,Skills Funding Agency,12/12/2016,16-18 Apprenticeships - Centralised Contract Management,Main Funding,SUFFOLK COLLEGE,AP16R_17784,12386.03,Programme System File
DFE,Skills Funding Agency,12/12/2016,16-18 Apprenticeships - Centralised Contract Management,Main Funding,BIRMINGHAM METROPOLITAN COLLEGE,AP16C_4012,-94706.26,Programme System File
DFE,Skills Funding Agency,12/12/2016,16-18 Apprenticeships - Centralised Contract Management,Main Funding,BIRMINGHAM METROPOLITAN COLLEGE,AP16R_17776,150347.59,Programme System File
DFE,Skills Funding Agency,12/12/2016,16-18 Apprenticeships - Centralised Contract Management,Main Funding,SWINDON COLLEGE CORPORATION,AP16C_4020,-64266.08,Programme System File
DFE,Skills Funding Agency,12/12/2016,16-18 Apprenticeships - Centralised Contract Management,Main Funding,SWINDON COLLEGE CORPORATION,AP16R_17786,94736.07,Programme System File
DFE,Skills Funding Agency,12/12/2016,16-18 Apprenticeships - Centralised Contract Management,Main Funding,TAMESIDE COLLEGE,AP16C_4025,-6333.7,Programme System File
DFE,Skills Funding Agency,12/12/2016,16-18 Apprenticeships - Centralised Contract Management,Main Funding,TAMESIDE COLLEGE,AP16R_17790,39621.24,Programme System File
DFE,Skills Funding Agency,12/12/2016,16-18 Apprenticeships - Centralised Contract Management,Main Funding,SOUTH STAFFORDSHIRE COLLEGE,AP16R_17911,70261.61,Programme System File
DFE,Skills Funding Agency,12/12/2016,16-18 Apprenticeships - Centralised Contract Management,Main Funding,TELFORD COLLEGE OF ARTS & TECHNOLOGY,AP16C_4027,-8309.49,Programme System File
DFE,Skills Funding Agency,12/12/2016,16-18 Apprenticeships - Centralised Contract Management,Main Funding,TELFORD COLLEGE OF ARTS & TECHNOLOGY,AP16R_17792,24557.3,Programme System File
DFE,Skills Funding Agency,12/12/2016,16-18 Apprenticeships - Centralised Contract Management,Main Funding,EAST KENT COLLEGE,AP16R_17800,20683.43,Programme System File
DFE,Skills Funding Agency,12/12/2016,16-18 Apprenticeships - Centralised Contract Management,Main Funding,TOWER HAMLETS COLLEGE,AP16C_4028,-18292.69,Programme System File
DFE,Skills Funding Agency,12/12/2016,16-18 Apprenticeships - Centralised Contract Management,Main Funding,TOWER HAMLETS COLLEGE,AP16R_17795,23245.82,Programme System File
DFE,Skills Funding Agency,12/12/2016,16-18 Apprenticeships - Centralised Contract Management,Main Funding,TRESHAM INSTITUTE,AP16R_17806,427.86,Programme System File
DFE,Skills Funding Agency,12/12/2016,16-18 Apprenticeships - Centralised Contract Management,Main Funding,TRURO COLLEGE,AP16R_17810,38025.77,Programme System File
DFE,Skills Funding Agency,12/12/2016,16-18 Apprenticeships - Centralised Contract Management,Main Funding,TYNE METRO COLLEGE,AP16R_17895,10381.6,Programme System File
DFE,Skills Funding Agency,12/12/2016,16-18 Apprenticeships - Centralised Contract Management,Main Funding,UXBRIDGE COLLEGE,AP16R_17815,-37260.49,Programme System File
DFE,Skills Funding Agency,12/12/2016,16-18 Apprenticeships - Centralised Contract Management,Main Funding,WALSALL COLLEGE CO ST PAULS STREET CAMPUS,AP16R_17826,136533.51,Programme System File
DFE,Skills Funding Agency,12/12/2016,16-18 Apprenticeships - Centralised Contract Management,Main Funding,WAKEFIELD COLLEGE,AP16C_4039,-30698.2,Programme System File
DFE,Skills Funding Agency,12/12/2016,16-18 Apprenticeships - Centralised Contract Management,Main Funding,WAKEFIELD COLLEGE,AP16R_17818,93854.81,Programme System File
DFE,Skills Funding Agency,12/12/2016,16-18 Apprenticeships - Centralised Contract Management,Main Funding,WALTHAM FOREST COLLEGE,AP16R_17821,-2187.26,Programme System File
DFE,Skills Funding Agency,12/12/2016,16-18 Apprenticeships - Centralised Contract Management,Main Funding,WAVERLEY BOROUGH COUNCIL,AP16C_4087,-131.51,Programme System File
DFE,Skills Funding Agency,12/12/2016,16-18 Apprenticeships - Centralised Contract Management,Main Funding,WAVERLEY BOROUGH COUNCIL,AP16R_17902,3500.86,Programme System File
DFE,Skills Funding Agency,12/12/2016,16-18 Apprenticeships - Centralised Contract Management,Main Funding,LAKES COLLEGE WEST CUMBRIA,AP16R_17582,13357.74,Programme System File
DFE,Skills Funding Agency,12/12/2016,16-18 Apprenticeships - Centralised Contract Management,Main Funding,WEST CHESHIRE COLLEGE,AP16C_4045,-165432.27,Programme System File
DFE,Skills Funding Agency,12/12/2016,16-18 Apprenticeships - Centralised Contract Management,Main Funding,WEST CHESHIRE COLLEGE,AP16R_17832,164542.1,Programme System File
DFE,Skills Funding Agency,12/12/2016,16-18 Apprenticeships - Centralised Contract Management,Main Funding,WEST HERTS COLLEGE,AP16R_17839,10519.24,Programme System File
DFE,Skills Funding Agency,12/12/2016,16-18 Apprenticeships - Centralised Contract Management,Main Funding,WEST KENT COLLEGE,AP16C_4051,-26758.91,Programme System File
DFE,Skills Funding Agency,12/12/2016,16-18 Apprenticeships - Centralised Contract Management,Main Funding,WEST KENT COLLEGE,AP16R_17841,38902.02,Programme System File
DFE,Skills Funding Agency,12/12/2016,16-18 Apprenticeships - Centralised Contract Management,Main Funding,WESTON COLLEGE,AP16R_17850,24328.55,Programme System File
DFE,Skills Funding Agency,12/12/2016,16-18 Apprenticeships - Centralised Contract Management,Main Funding,WIGAN & LEIGH COLLEGE,AP16C_4061,-68402.01,Programme System File
DFE,Skills Funding Agency,12/12/2016,16-18 Apprenticeships - Centralised Contract Management,Main Funding,WIGAN & LEIGH COLLEGE,AP16R_17857,53412.23,Programme System File
DFE,Skills Funding Agency,12/12/2016,16-18 Apprenticeships - Centralised Contract Management,Main Funding,WILTSHIRE COLLEGE,AP16C_4065,-22380,Programme System File
DFE,Skills Funding Agency,12/12/2016,16-18 Apprenticeships - Centralised Contract Management,Main Funding,WILTSHIRE COLLEGE,AP16R_17866,116050.3,Programme System File
DFE,Skills Funding Agency,12/12/2016,16-18 Apprenticeships - Centralised Contract Management,Main Funding,WIRRAL METRO COLLEGE,AP16C_4059,-9963.26,Programme System File
DFE,Skills Funding Agency,12/12/2016,16-18 Apprenticeships - Centralised Contract Management,Main Funding,WIRRAL METRO COLLEGE,AP16R_17855,28088.78,Programme System File
DFE,Skills Funding Agency,12/12/2016,16-18 Apprenticeships - Centralised Contract Management,Main Funding,WESTMINSTER KINGSWAY COLLEGE,AP16R_17846,-37234.13,Programme System File
DFE,Skills Funding Agency,12/12/2016,16-18 Apprenticeships - Centralised Contract Management,Main Funding,GREENWICH COMMUNITY COLLEGE AT PLUMSTEAD CENTRE,AP16R_17520,2191.7,Programme System File
DFE,Skills Funding Agency,12/12/2016,16-18 Apprenticeships - Centralised Contract Management,Main Funding,WARRINGTON COLLEGIATE,AP16R_17827,68354.96,Programme System File
DFE,Skills Funding Agency,12/12/2016,16-18 Apprenticeships - Centralised Contract Management,Main Funding,WARWICKSHIRE COLLEGE,AP16C_4074,-16894.05,Programme System File
DFE,Skills Funding Agency,12/12/2016,16-18 Apprenticeships - Centralised Contract Management,Main Funding,WARWICKSHIRE COLLEGE,AP16R_17881,28162.04,Programme System File
DFE,Skills Funding Agency,12/12/2016,16-18 Apprenticeships - Centralised Contract Management,Main Funding,WORTHING COLLEGE,AP16R_17865,5644.27,Programme System File
DFE,Skills Funding Agency,12/12/2016,16-18 Apprenticeships - Centralised Contract Management,Main Funding,WEST THAMES COLLEGE,AP16C_4053,-6095.63,Programme System File
DFE,Skills Funding Agency,12/12/2016,16-18 Apprenticeships - Centralised Contract Management,Main Funding,WEST THAMES COLLEGE,AP16R_17843,2937.8,Programme System File
DFE,Skills Funding Agency,12/12/2016,16-18 Apprenticeships - Centralised Contract Management,Main Funding,WEST SUFFOLK COLLEGE,AP16C_4049,-17479.84,Programme System File
DFE,Skills Funding Agency,12/12/2016,16-18 Apprenticeships - Centralised Contract Management,Main Funding,WEST SUFFOLK COLLEGE,AP16R_17835,85803.43,Programme System File
DFE,Skills Funding Agency,12/12/2016,16-18 Apprenticeships - Centralised Contract Management,Main Funding,WEST NOTTINGHAMSHIRE COLLEGE,AP16C_4055,-66745.72,Programme System File
DFE,Skills Funding Agency,12/12/2016,16-18 Apprenticeships - Centralised Contract Management,Main Funding,WEST NOTTINGHAMSHIRE COLLEGE,AP16R_17848,144851.27,Programme System File
DFE,Skills Funding Agency,12/12/2016,16-18 Apprenticeships - Centralised Contract Management,Main Funding,CITY OF WOLVERHAMPTON COLLEGE,AP16R_17861,15849.98,Programme System File
DFE,Skills Funding Agency,12/12/2016,16-18 Apprenticeships - Centralised Contract Management,Main Funding,REGENT COLLEGE,AP16C_3957,-5963.49,Programme System File
DFE,Skills Funding Agency,12/12/2016,16-18 Apprenticeships - Centralised Contract Management,Main Funding,REGENT COLLEGE,AP16R_17700,5963.49,Programme System File
DFE,Skills Funding Agency,12/12/2016,16-18 Apprenticeships - Centralised Contract Management,Main Funding,YEOVIL COLLEGE,AP16R_17871,84341.6,Programme System File
DFE,Skills Funding Agency,12/12/2016,16-18 Apprenticeships - Centralised Contract Management,Main Funding,YORK COLLEGE,AP16R_17874,85066.32,Programme System File
DFE,Skills Funding Agency,12/12/2016,16-18 Apprenticeships - Centralised Contract Management,Main Funding,CITY OF YORK COUNCIL,AP16C_3747,-1129.97,Programme System File
DFE,Skills Funding Agency,12/12/2016,16-18 Apprenticeships - Centralised Contract Management,Main Funding,CITY OF YORK COUNCIL,AP16R_17350,2898.9,Programme System File
DFE,Skills Funding Agency,12/12/2016,16-18 Apprenticeships - Centralised Contract Management,Main Funding,HEREWARD COLLEGE OF HIGHER EDUCATION,AP16C_3866,-1621.88,Programme System File
DFE,Skills Funding Agency,12/12/2016,16-18 Apprenticeships - Centralised Contract Management,Main Funding,HEREWARD COLLEGE OF HIGHER EDUCATION,AP16R_17555,1621.88,Programme System File
DFE,Skills Funding Agency,12/12/2016,16-18 Apprenticeships - Centralised Contract Management,Main Funding,THE UNIVERSITY OF KENT,AP16R_17447,4230.63,Programme System File
DFE,Skills Funding Agency,12/12/2016,16-18 Apprenticeships - Centralised Contract Management,Main Funding,MANCHESTER METRO UNIVERSITY,AP16C_3901,-5867.48,Programme System File
DFE,Skills Funding Agency,12/12/2016,16-18 Apprenticeships - Centralised Contract Management,Main Funding,MANCHESTER METRO UNIVERSITY,AP16R_17605,3609.55,Programme System File
DFE,Skills Funding Agency,12/12/2016,16-18 Apprenticeships - Centralised Contract Management,Main Funding,SHEFFIELD HALLAM UNIVERSITY,AP16C_3787,-82824.32,Programme System File
DFE,Skills Funding Agency,12/12/2016,16-18 Apprenticeships - Centralised Contract Management,Main Funding,SHEFFIELD HALLAM UNIVERSITY,AP16R_17444,85207.48,Programme System File
DFE,Skills Funding Agency,12/12/2016,16-18 Apprenticeships - Centralised Contract Management,Main Funding,UNIVERSITY OF LINCOLN,AP16R_17811,-1776.04,Programme System File
DFE,Skills Funding Agency,12/12/2016,16-18 Apprenticeships - Centralised Contract Management,Main Funding,UNIVERSITY OF DERBY,AP16C_4072,-44111.53,Programme System File
DFE,Skills Funding Agency,12/12/2016,16-18 Apprenticeships - Centralised Contract Management,Main Funding,UNIVERSITY OF DERBY,AP16R_17877,170288.78,Programme System File
DFE,Skills Funding Agency,12/12/2016,16-18 Apprenticeships - Centralised Contract Management,Main Funding,UNIVERSITY OF DURHAM,AP16C_4036,-1298.94,Programme System File
DFE,Skills Funding Agency,12/12/2016,16-18 Apprenticeships - Centralised Contract Management,Main Funding,UNIVERSITY OF DURHAM,AP16R_17812,1298.94,Programme System File
DFE,Skills Funding Agency,12/12/2016,16-18 Apprenticeships - Centralised Contract Management,Main Funding,UNIVERSITY OF SALFORD,AP16R_15251,5195.29,Programme System File
DFE,Skills Funding Agency,12/12/2016,16-18 Apprenticeships - Centralised Contract Management,Main Funding,UNIVERSITY OF SALFORD,AP16R_16472,6910.97,Programme System File
DFE,Skills Funding Agency,12/12/2016,16-18 Apprenticeships - Centralised Contract Management,Main Funding,UNIVERSITY OF SALFORD,AP16R_17449,72637.57,Programme System File
DFE,Skills Funding Agency,12/12/2016,16-18 Apprenticeships - Centralised Contract Management,Main Funding,UNIVERSITY OF SALFORD,AP16R_18925,6053.13,Programme System File
DFE,Skills Funding Agency,12/12/2016,16-18 Apprenticeships - Centralised Contract Management,Main Funding,WRITTLE COLLEGE SERVICES LTD,AP16C_4069,-4520.55,Programme System File
DFE,Skills Funding Agency,12/12/2016,16-18 Apprenticeships - Centralised Contract Management,Main Funding,WRITTLE COLLEGE SERVICES LTD,AP16R_17868,6835.48,Programme System File
DFE,Skills Funding Agency,12/12/2016,16-18 Apprenticeships - Centralised Contract Management,Main Funding,BARKING & DAGENHAM LONDON BOROUGH COUNCIL,AP16C_3983,-7995.81,Programme System File
DFE,Skills Funding Agency,12/12/2016,16-18 Apprenticeships - Centralised Contract Management,Main Funding,BARKING & DAGENHAM LONDON BOROUGH COUNCIL,AP16R_17793,8701.16,Programme System File
DFE,Skills Funding Agency,12/12/2016,16-18 Apprenticeships - Centralised Contract Management,Main Funding,ROYAL BOROUGH OF KINGSTON UPON THAMES COUNCIL,AP16R_17710,-1794.48,Programme System File
DFE,Skills Funding Agency,12/12/2016,16-18 Apprenticeships - Centralised Contract Management,Main Funding,FORSTER COMMUNITY COLLEGE,AP16R_17992,1913.94,Programme System File
DFE,Skills Funding Agency,12/12/2016,16-18 Apprenticeships - Centralised Contract Management,Main Funding,BRADFORD CITY COUNCIL,AP16C_4067,-395.6,Programme System File
DFE,Skills Funding Agency,12/12/2016,16-18 Apprenticeships - Centralised Contract Management,Main Funding,BRADFORD CITY COUNCIL,AP16R_17873,815.9,Programme System File
DFE,Skills Funding Agency,12/12/2016,16-18 Apprenticeships - Centralised Contract Management,Main Funding,BRISTOL CITY COUNCIL,AP16C_4107,-4241.62,Programme System File
DFE,Skills Funding Agency,12/12/2016,16-18 Apprenticeships - Centralised Contract Management,Main Funding,BRISTOL CITY COUNCIL,AP16R_17945,58210.05,Programme System File
DFE,Skills Funding Agency,12/12/2016,16-18 Apprenticeships - Centralised Contract Management,Main Funding,BROADLAND DISTRICT COUNCIL,AP16R_18008,693.4,Programme System File
DFE,Skills Funding Agency,12/12/2016,16-18 Apprenticeships - Centralised Contract Management,Main Funding,BUCKINGHAMSHIRE COUNTY COUNCIL,AP16R_16805,10012.1,Programme System File
DFE,Skills Funding Agency,12/12/2016,16-18 Apprenticeships - Centralised Contract Management,Main Funding,BUILDING CRAFTS COLLEGE,AP16C_3668,-23459.27,Programme System File
DFE,Skills Funding Agency,12/12/2016,16-18 Apprenticeships - Centralised Contract Management,Main Funding,BUILDING CRAFTS COLLEGE,AP16R_17131,23528.08,Programme System File
DFE,Skills Funding Agency,12/12/2016,16-18 Apprenticeships - Centralised Contract Management,Main Funding,CENTRAL BEDFORDSHIRE COUNCIL,AP16R_17922,46.19,Programme System File
DFE,Skills Funding Agency,12/12/2016,16-18 Apprenticeships - Centralised Contract Management,Main Funding,WESTMINSTER CITY COUNCIL,AP16C_3732,-49.15,Programme System File
DFE,Skills Funding Agency,12/12/2016,16-18 Apprenticeships - Centralised Contract Management,Main Funding,WESTMINSTER CITY COUNCIL,AP16R_17300,13119.25,Programme System File
DFE,Skills Funding Agency,12/12/2016,16-18 Apprenticeships - Centralised Contract Management,Main Funding,CITY OF LONDON ADULT EDUCATION,AP16R_17896,580.39,Programme System File
DFE,Skills Funding Agency,12/12/2016,16-18 Apprenticeships - Centralised Contract Management,Main Funding,NORTH EAST LINCOLNSHIRE COUNCIL,AP16R_17646,4589.1,Programme System File
DFE,Skills Funding Agency,12/12/2016,16-18 Apprenticeships - Centralised Contract Management,Main Funding,THE CORNWALL COUNCIL,AP16C_3783,-4266.04,Programme System File
DFE,Skills Funding Agency,12/12/2016,16-18 Apprenticeships - Centralised Contract Management,Main Funding,THE CORNWALL COUNCIL,AP16R_17445,4116.58,Programme System File
DFE,Skills Funding Agency,12/12/2016,16-18 Apprenticeships - Centralised Contract Management,Main Funding,COVENTRY CITY COUNCIL,AP16C_3785,-51923.6,Programme System File
DFE,Skills Funding Agency,12/12/2016,16-18 Apprenticeships - Centralised Contract Management,Main Funding,COVENTRY CITY COUNCIL,AP16R_17441,59442.78,Programme System File
DFE,Skills Funding Agency,12/12/2016,16-18 Apprenticeships - Centralised Contract Management,Main Funding,DARLINGTON BOROUGH COUNCIL,AP16R_17466,-1499.73,Programme System File
DFE,Skills Funding Agency,12/12/2016,16-18 Apprenticeships - Centralised Contract Management,Main Funding,DERBY CITY COUNCIL,AP16C_3800,-905.65,Programme System File
DFE,Skills Funding Agency,12/12/2016,16-18 Apprenticeships - Centralised Contract Management,Main Funding,DERBY CITY COUNCIL,AP16R_17463,6323.45,Programme System File
DFE,Skills Funding Agency,12/12/2016,16-18 Apprenticeships - Centralised Contract Management,Main Funding,DERBYSHIRE COUNTY COUNCIL,AP16C_3806,-35433.99,Programme System File
DFE,Skills Funding Agency,12/12/2016,16-18 Apprenticeships - Centralised Contract Management,Main Funding,DERBYSHIRE COUNTY COUNCIL,AP16R_17470,33802.58,Programme System File
DFE,Skills Funding Agency,12/12/2016,16-18 Apprenticeships - Centralised Contract Management,Main Funding,DONCASTER METRO BOROUGH COUNCIL,AP16R_17480,-13139.14,Programme System File
DFE,Skills Funding Agency,12/12/2016,16-18 Apprenticeships - Centralised Contract Management,Main Funding,EAST RIDING OF YORKSHIRE COUNCIL,AP16R_17898,6917.91,Programme System File
DFE,Skills Funding Agency,12/12/2016,16-18 Apprenticeships - Centralised Contract Management,Main Funding,ELATT,AP16R_16810,-2547.93,Programme System File
DFE,Skills Funding Agency,12/12/2016,16-18 Apprenticeships - Centralised Contract Management,Main Funding,ELATT,AP16C_3553,-1128.6,Programme System File
DFE,Skills Funding Agency,12/12/2016,16-18 Apprenticeships - Centralised Contract Management,Main Funding,ENFIELD LONDON BOROUGH COUNCIL,AP16R_17499,2605.6,Programme System File
DFE,Skills Funding Agency,12/12/2016,16-18 Apprenticeships - Centralised Contract Management,Main Funding,ESSEX COUNTY COUNCIL,AP16R_17505,-4211.02,Programme System File
DFE,Skills Funding Agency,12/12/2016,16-18 Apprenticeships - Centralised Contract Management,Main Funding,GLOUCESTERSHIRE COUNTY COUNCIL,AP16R_17521,-416.32,Programme System File
DFE,Skills Funding Agency,12/12/2016,16-18 Apprenticeships - Centralised Contract Management,Main Funding,HARTLEPOOL BOROUGH COUNCIL,AP16C_3855,-2589.13,Programme System File
DFE,Skills Funding Agency,12/12/2016,16-18 Apprenticeships - Centralised Contract Management,Main Funding,HARTLEPOOL BOROUGH COUNCIL,AP16R_17540,2907.23,Programme System File
DFE,Skills Funding Agency,12/12/2016,16-18 Apprenticeships - Centralised Contract Management,Main Funding,KINGSTON UPON HULL CITY COUNCIL,AP16C_3871,-14908.89,Programme System File
DFE,Skills Funding Agency,12/12/2016,16-18 Apprenticeships - Centralised Contract Management,Main Funding,KINGSTON UPON HULL CITY COUNCIL,AP16R_17562,83103.01,Programme System File
DFE,Skills Funding Agency,12/12/2016,16-18 Apprenticeships - Centralised Contract Management,Main Funding,KENT COUNTY COUNCIL,AP16C_3876,-19556.82,Programme System File
DFE,Skills Funding Agency,12/12/2016,16-18 Apprenticeships - Centralised Contract Management,Main Funding,KENT COUNTY COUNCIL,AP16R_17570,32134.97,Programme System File
DFE,Skills Funding Agency,12/12/2016,16-18 Apprenticeships - Centralised Contract Management,Main Funding,LEICESTERSHIRE COUNTY COUNCIL,AP16R_17590,3174.85,Programme System File
DFE,Skills Funding Agency,12/12/2016,16-18 Apprenticeships - Centralised Contract Management,Main Funding,HILLINGDON LONDON BOROUGH COUNCIL,AP16C_3786,-12039.08,Programme System File
DFE,Skills Funding Agency,12/12/2016,16-18 Apprenticeships - Centralised Contract Management,Main Funding,HILLINGDON LONDON BOROUGH COUNCIL,AP16R_17443,12204.78,Programme System File
DFE,Skills Funding Agency,12/12/2016,16-18 Apprenticeships - Centralised Contract Management,Main Funding,TOWER HAMLETS LONDON BOROUGH COUNCIL,AP16C_4032,-50986.71,Programme System File
DFE,Skills Funding Agency,12/12/2016,16-18 Apprenticeships - Centralised Contract Management,Main Funding,TOWER HAMLETS LONDON BOROUGH COUNCIL,AP16R_17799,50986.71,Programme System File
DFE,Skills Funding Agency,12/12/2016,16-18 Apprenticeships - Centralised Contract Management,Main Funding,LONDON BOROUGH OF WALTHAM FOREST,AP16R_17825,14615.16,Programme System File
DFE,Skills Funding Agency,12/12/2016,16-18 Apprenticeships - Centralised Contract Management,Main Funding,BEXLEY LONDON BOROUGH COUNCIL,AP16C_3784,-4691.43,Programme System File
DFE,Skills Funding Agency,12/12/2016,16-18 Apprenticeships - Centralised Contract Management,Main Funding,BEXLEY LONDON BOROUGH COUNCIL,AP16R_17440,5408.57,Programme System File
DFE,Skills Funding Agency,12/12/2016,16-18 Apprenticeships - Centralised Contract Management,Main Funding,LONDON LEARNING CONSORTIUM C.I.C.,AP16R_17216,1171.4,Programme System File
DFE,Skills Funding Agency,12/12/2016,16-18 Apprenticeships - Centralised Contract Management,Main Funding,LUTON BOROUGH COUNCIL,AP16R_17601,3742.88,Programme System File
DFE,Skills Funding Agency,12/12/2016,16-18 Apprenticeships - Centralised Contract Management,Main Funding,MILTON KEYNES COUNCIL,AP16C_3905,-503.7,Programme System File
